{"text_format":"1","workbook":"xlsx","n_sheets":5,"sheets":["入力フォーム","月変","裏面","選択項目","標準報酬"],"not_rendered":{"charts":0,"images":8,"macros":1,"external_links":0,"defined_names":3,"comments":0,"pivot_tables":0},"unopened":[],"bounds":{"document_bytes":16777216,"sheet_cells":100000,"rows_first":2000,"rows_last":500,"rows_between":2000,"halvings":0,"cell_chars":16384,"cell_head_chars":4096},"cells_cut":0,"cells_raw":0,"read":"whole","date_system":"1900"}

{"sheet":"入力フォーム","index":0,"n_rows":113,"n_cols":65,"rows_kept":113,"cut":false,"hidden":false,"merged":[[106,4,107,27],[108,4,108,14],[108,15,108,27],[108,28,108,40],[102,45,102,46],[102,47,102,56],[102,57,102,58],[103,4,104,27],[105,4,105,5],[105,6,105,7],[105,8,105,9],[105,10,105,11],[105,12,105,13],[105,14,105,15],[105,16,105,17],[105,18,105,19],[105,20,105,21],[105,22,105,23],[105,24,105,25],[105,26,105,27],[102,4,102,7],[102,8,102,9],[102,10,102,13],[102,14,102,15],[102,16,102,23],[102,24,102,25],[102,26,102,33],[102,34,102,35],[102,36,102,44],[100,45,100,46],[100,47,100,56],[100,57,100,58],[101,4,101,7],[101,8,101,9],[101,10,101,13],[101,14,101,15],[101,16,101,23],[101,24,101,25],[101,26,101,33],[101,34,101,35],[101,36,101,44],[101,45,101,46],[101,47,101,56],[101,57,101,58],[100,4,100,7],[100,8,100,9],[100,10,100,13],[100,14,100,15],[100,16,100,23],[100,24,100,25],[100,26,100,33],[100,34,100,35],[100,36,100,44],[97,5,98,9],[97,10,97,15],[97,16,97,46],[97,47,97,58],[98,10,99,15],[98,16,99,25],[98,26,99,35],[98,36,99,46],[98,47,98,58],[99,4,99,9],[99,47,99,58],[94,24,95,34],[94,35,95,46],[94,47,95,58],[96,4,96,7],[96,8,96,11],[96,12,96,13],[96,14,96,17],[96,18,96,21],[96,22,96,23],[96,24,96,26],[96,27,96,28],[96,29,96,30],[96,31,96,32],[96,33,96,34],[96,35,96,37],[96,38,96,39],[96,40,96,46],[96,47,96,48],[96,49,96,50],[96,51,96,56],[96,57,96,58],[87,4,88,27],[89,4,89,14],[89,15,89,27],[89,28,89,40],[91,1,108,3],[91,4,92,13],[91,14,92,31],[91,32,92,47],[91,48,92,58],[93,4,93,13],[93,14,93,31],[93,32,93,33],[93,34,93,37],[93,38,93,39],[93,40,93,41],[93,42,93,43],[93,44,93,45],[93,46,93,47],[93,48,93,50],[93,51,93,52],[93,53,93,54],[93,55,93,56],[93,57,93,58],[94,4,95,23],[83,45,83,46],[83,47,83,56],[83,57,83,58],[84,4,85,27],[86,4,86,5],[86,6,86,7],[86,8,86,9],[86,10,86,11],[86,12,86,13],[86,14,86,15],[86,16,86,17],[86,18,86,19],[86,20,86,21],[86,22,86,23],[86,24,86,25],[86,26,86,27],[83,4,83,7],[83,8,83,9],[83,10,83,13],[83,14,83,15],[83,16,83,23],[83,24,83,25],[83,26,83,33],[83,34,83,35],[83,36,83,44],[81,45,81,46],[81,47,81,56],[81,57,81,58],[82,4,82,7],[82,8,82,9],[82,10,82,13],[82,14,82,15],[82,16,82,23],[82,24,82,25],[82,26,82,33],[82,34,82,35],[82,36,82,44],[82,45,82,46],[82,47,82,56],[82,57,82,58],[81,4,81,7],[81,8,81,9],[81,10,81,13],[81,14,81,15],[81,16,81,23],[81,24,81,25],[81,26,81,33],[81,34,81,35],[81,36,81,44],[78,5,79,9],[78,10,78,15],[78,16,78,46],[78,47,78,58],[79,10,80,15],[79,16,80,25],[79,26,80,35],[79,36,80,46],[79,47,79,58],[80,4,80,9],[80,47,80,58],[75,24,76,34],[75,35,76,46],[75,47,76,58],[77,4,77,7],[77,8,77,11],[77,12,77,13],[77,14,77,17],[77,18,77,21],[77,22,77,23],[77,24,77,26],[77,27,77,28],[77,29,77,30],[77,31,77,32],[77,33,77,34],[77,35,77,37],[77,38,77,39],[77,40,77,46],[77,47,77,48],[77,49,77,50],[77,51,77,56],[77,57,77,58],[68,4,69,27],[70,4,70,14],[70,15,70,27],[70,28,70,40],[72,1,89,3],[72,4,73,13],[72,14,73,31],[72,32,73,47],[72,48,73,58],[74,4,74,13],[74,14,74,31],[74,32,74,33],[74,34,74,37],[74,38,74,39],[74,40,74,41],[74,42,74,43],[74,44,74,45],[74,46,74,47],[74,48,74,50],[74,51,74,52],[74,53,74,54],[74,55,74,56],[74,57,74,58],[75,4,76,23],[64,45,64,46],[64,47,64,56],[64,57,64,58],[65,4,66,27],[67,4,67,5],[67,6,67,7],[67,8,67,9],[67,10,67,11],[67,12,67,13],[67,14,67,15],[67,16,67,17],[67,18,67,19],[67,20,67,21],[67,22,67,23],[67,24,67,25],[67,26,67,27],[64,4,64,7],[64,8,64,9],[64,10,64,13],[64,14,64,15],[64,16,64,23],[64,24,64,25],[64,26,64,33],[64,34,64,35],[64,36,64,44],[62,45,62,46],[62,47,62,56],[62,57,62,58],[63,4,63,7],[63,8,63,9],[63,10,63,13],[63,14,63,15],[63,16,63,23],[63,24,63,25],[63,26,63,33],[63,34,63,35],[63,36,63,44],[63,45,63,46],[63,47,63,56],[63,57,63,58],[62,4,62,7],[62,8,62,9],[62,10,62,13],[62,14,62,15],[62,16,62,23],[62,24,62,25],[62,26,62,33],[62,34,62,35],[62,36,62,44],[59,5,60,9],[59,10,59,15],[59,16,59,46],[59,47,59,58],[60,10,61,15],[60,16,61,25],[60,26,61,35],[60,36,61,46],[60,47,60,58],[61,4,61,9],[61,47,61,58],[56,24,57,34],[56,35,57,46],[56,47,57,58],[58,4,58,7],[58,8,58,11],[58,12,58,13],[58,14,58,17],[58,18,58,21],[58,22,58,23],[58,24,58,26],[58,27,58,28],[58,29,58,30],[58,31,58,32],[58,33,58,34],[58,35,58,37],[58,38,58,39],[58,40,58,46],[58,47,58,48],[58,49,58,50],[58,51,58,56],[58,57,58,58],[49,4,50,27],[51,4,51,14],[51,15,51,27],[51,28,51,40],[53,1,70,3],[53,4,54,13],[53,14,54,31],[53,32,54,47],[53,48,54,58],[55,4,55,13],[55,14,55,31],[55,32,55,33],[55,34,55,37],[55,38,55,39],[55,40,55,41],[55,42,55,43],[55,44,55,45],[55,46,55,47],[55,48,55,50],[55,51,55,52],[55,53,55,54],[55,55,55,56],[55,57,55,58],[56,4,57,23],[45,45,45,46],[45,47,45,56],[45,57,45,58],[46,4,47,27],[48,4,48,5],[48,6,48,7],[48,8,48,9],[48,10,48,11],[48,12,48,13],[48,14,48,15],[48,16,48,17],[48,18,48,19],[48,20,48,21],[48,22,48,23],[48,24,48,25],[48,26,48,27],[45,4,45,7],[45,8,45,9],[45,10,45,13],[45,14,45,15],[45,16,45,23],[45,24,45,25],[45,26,45,33],[45,34,45,35],[45,36,45,44],[43,45,43,46],[43,47,43,56],[43,57,43,58],[44,4,44,7],[44,8,44,9],[44,10,44,13],[44,14,44,15],[44,16,44,23],[44,24,44,25],[44,26,44,33],[44,34,44,35],[44,36,44,44],[44,45,44,46],[44,47,44,56],[44,57,44,58],[43,4,43,7],[43,8,43,9],[43,10,43,13],[43,14,43,15],[43,16,43,23],[43,24,43,25],[43,26,43,33],[43,34,43,35],[43,36,43,44],[40,5,41,9],[40,10,40,15],[40,16,40,46],[40,47,40,58],[41,10,42,15],[41,16,42,25],[41,26,42,35],[41,36,42,46],[41,47,41,58],[42,4,42,9],[42,47,42,58],[37,47,38,58],[39,4,39,7],[39,8,39,11],[39,12,39,13],[39,14,39,17],[39,18,39,21],[39,22,39,23],[39,24,39,26],[39,27,39,28],[39,29,39,30],[39,31,39,32],[39,33,39,34],[39,35,39,37],[39,38,39,39],[39,40,39,46],[39,47,39,48],[39,49,39,50],[39,51,39,56],[39,57,39,58],[32,4,32,14],[32,15,32,27],[34,1,51,3],[34,4,35,13],[34,14,35,31],[34,32,35,47],[34,48,35,58],[36,4,36,13],[36,14,36,31],[36,32,36,33],[36,34,36,37],[36,38,36,39],[36,40,36,41],[36,42,36,43],[36,44,36,45],[36,46,36,47],[36,48,36,50],[36,51,36,52],[36,53,36,54],[36,55,36,56],[36,57,36,58],[37,4,38,23],[37,24,38,34],[37,35,38,46],[18,24,19,34],[15,4,16,13],[15,14,16,31],[15,32,16,47],[17,4,17,13],[17,14,17,31],[25,57,25,58],[24,24,24,25],[24,16,24,23],[25,16,25,23],[25,24,25,25],[20,57,20,58],[20,51,20,56],[20,47,20,48],[20,22,20,23],[20,40,20,46],[20,49,20,50],[20,24,20,26],[20,27,20,28],[20,29,20,30],[20,31,20,32],[20,33,20,34],[20,8,20,11],[20,18,20,21],[26,45,26,46],[26,47,26,56],[26,57,26,58],[24,47,24,56],[25,26,25,33],[25,34,25,35],[25,36,25,44],[25,45,25,46],[25,47,25,56],[24,26,24,33],[24,34,24,35],[24,45,24,46],[24,36,24,44],[24,57,24,58],[24,4,24,7],[25,4,25,7],[26,34,26,35],[26,36,26,44],[29,14,29,15],[29,16,29,17],[29,18,29,19],[29,20,29,21],[29,22,29,23],[6,20,6,24],[6,25,6,26],[29,24,29,25],[27,4,28,27],[29,4,29,5],[29,6,29,7],[29,8,29,9],[29,10,29,11],[29,12,29,13],[20,4,20,7],[20,14,20,17],[20,12,20,13],[26,16,26,23],[26,24,26,25],[24,10,24,13],[24,14,24,15],[25,10,25,13],[25,14,25,15],[26,10,26,13],[26,14,26,15],[21,5,22,9],[23,4,23,9],[29,26,29,27],[26,26,26,33],[4,32,4,33],[4,34,4,35],[17,51,17,52],[17,57,17,58],[15,48,16,58],[26,8,26,9],[23,47,23,58],[21,10,21,15],[21,16,21,46],[21,47,21,58],[22,10,23,15],[22,16,23,25],[22,26,23,35],[22,36,23,46],[22,47,22,58],[17,34,17,37],[17,32,17,33],[20,38,20,39],[20,35,20,37],[17,53,17,54],[18,4,19,23],[18,35,19,46],[25,8,25,9],[26,4,26,7],[0,1,0,43],[4,4,4,17],[4,18,4,19],[4,20,4,21],[4,22,4,23],[4,24,4,25],[4,26,4,27],[4,28,4,29],[4,30,4,31],[4,1,10,3],[10,4,10,17],[10,18,10,23],[10,25,10,31],[10,33,10,39],[5,18,5,23],[6,27,6,33],[7,18,7,45],[8,4,8,17],[8,18,8,45],[9,4,9,17],[9,18,9,45],[5,4,5,17],[6,4,7,17],[6,18,6,19],[32,28,32,51],[21,71,21,74],[14,4,14,6],[12,4,13,18],[110,1,111,26],[112,1,114,9],[112,10,114,41],[18,47,19,58],[17,55,17,56],[12,1,32,3],[14,9,14,10],[14,11,14,12],[14,13,14,14],[14,15,14,16],[14,17,14,18],[14,7,14,8],[17,38,17,39],[17,40,17,41],[17,42,17,43],[17,44,17,45],[17,46,17,47],[17,48,17,50],[30,4,31,27],[24,8,24,9]]}
[null,"被保険者報酬月額変更届入力フォーム"]
[]
[]
[]
[null,"提出者記入欄",null,null,"厚生年金保険\n事業所整理記号",null,null,null,null,null,null,null,null,null,null,null,null,null,null,null,null,null,null,null,null,null,"-"]
[null,null,null,null,"健康保険\n事業所記号"]
[null,null,null,null,"事業所\n所在地",null,null,null,null,null,null,null,null,null,null,null,null,null,"〒",null,null,null,null,null,null,"-"]
[]
[null,null,null,null,"事業所\n名 　称"]
[null,null,null,null,"事業主\n氏　 名"]
[null,null,null,null,"電話番号",null,null,null,null,null,null,null,null,null,null,null,null,null,null,null,null,null,null,null,"(",null,null,null,null,null,null,null,")"]
[]
[null,"被保険者➊",null,null,"提出日"]
[]
[null,null,null,null,"令和",null,null,null,null,"年",null,null,null,"月",null,null,null,"日"]
[null,null,null,null,"①　被保険者整理番号",null,null,null,null,null,null,null,null,null,"②　被保険者氏名",null,null,null,null,null,null,null,null,null,null,null,null,null,null,null,null,null,"③　生年月日　※西暦でご入力ください。",null,null,null,null,null,null,null,null,null,null,null,null,null,null,null,"④　改定年月"]
[]
[null,null,null,null,null,null,null,null,null,null,null,null,null,null,null,null,null,null,null,null,null,null,null,null,null,null,null,null,null,null,null,null,"西暦",null,null,null,null,null,"年",null,null,null,"月",null,null,null,"日",null,"令和",null,null,null,null,"年",null,null,null,"月",null,null,null,null,null,null,{"$f":"DATE(AI18,AO18,AS18)","v":{"$error":"#NUM!"}}]
[null,null,null,null,"⑤　従前の標準報酬月額　(厚生年金は自動入力）",null,null,null,null,null,null,null,null,null,null,null,null,null,null,null,null,null,null,null,"⑥　従前改定月",null,null,null,null,null,null,null,null,null,null,"⑦　昇(降)給月",null,null,null,null,null,null,null,null,null,null,null,"⑧　遡及支払額\n（該当する場合のみ）"]
[]
[null,null,null,null,"健康保険",null,null,null,null,null,null,null,"千円",null,"厚生年金",null,null,null,{"$f":"IF(I21=\"\",\"\",IF(I21>=650,650,IF(I21<=88,88,IF(I21=\"\",\"\",I21))))","v":""},null,null,null,"千円",null,"令和",null,null,null,null,"年",null,null,null,"月",null,null,null,null,"月",null,"選択してください",null,null,null,null,null,null,null,null,"月",null,null,null,null,null,null,null,"円"]
[null,null,null,null,"⑨","給与\n支給月",null,null,null,null,"⑩",null,null,null,null,null,"報酬月額",null,null,null,null,null,null,null,null,null,null,null,null,null,null,null,null,null,null,null,null,null,null,null,null,null,null,null,null,null,null,"⑭　総計"]
[null,null,null,null,null,null,null,null,null,null,"給与計算の\n基礎日数",null,null,null,null,null,"⑪　\n   通貨によるものの額",null,null,null,null,null,null,null,null,null,"⑫　\n   現物によるものの額",null,null,null,null,null,null,null,null,null,"⑬　合計（⑪+⑫）",null,null,null,null,null,null,null,null,null,null,"⑮　平均額"]
[null,null,null,null,"(改定年月で自動入力)",null,null,null,null,null,null,null,null,null,null,null,null,null,null,null,null,null,null,null,null,null,null,null,null,null,null,null,null,null,null,null,null,null,null,null,null,null,null,null,null,null,null,"⑯　修正平均額"]
[null,null,null,null,{"$f":"IF(BD18-3=-3,\"\",IF(BD18-3=-2,10,IF(BD18-3=-1,11,IF(BD18-3=0,12,BD18-3))))","v":""},null,null,null,"月",null,null,null,null,null,"日",null,null,null,null,null,null,null,null,null,"円",null,null,null,null,null,null,null,null,null,"円",null,{"$f":"IF(Q25+AA25=0,\"\",Q25+AA25)","v":""},null,null,null,null,null,null,null,null,"円",null,{"$f":"IF(AK25=\"\",\"\",AK25+AK26+AK27)","v":""},null,null,null,null,null,null,null,null,null,"円"]
[null,null,null,null,{"$f":"IF(BD18-2=-2,\"\",IF(BD18-2=-1,11,IF(BD18-2=-1,11,IF(BD18-2=0,12,BD18-2))))","v":""},null,null,null,"月",null,null,null,null,null,"日",null,null,null,null,null,null,null,null,null,"円",null,null,null,null,null,null,null,null,null,"円",null,{"$f":"IF(Q26+AA26=0,\"\",Q26+AA26)","v":""},null,null,null,null,null,null,null,null,"円",null,{"$f":"IF(AV25=\"\",\"\",ROUNDDOWN(AV25/3,0))","v":""},null,null,null,null,null,null,null,null,null,"円"]
[null,null,null,null,{"$f":"IF(BD18-1=-1,\"\",IF(BD18-1=0,12,BD18-1))","v":""},null,null,null,"月",null,null,null,null,null,"日",null,null,null,null,null,null,null,null,null,"円",null,null,null,null,null,null,null,null,null,"円",null,"",null,null,null,null,null,null,null,null,"円",null,null,null,null,null,null,null,null,null,null,null,"円"]
[null,null,null,null,"⑰　個人番号［基礎年金番号］\n※70歳以上被用者の場合のみ"]
[null,null,null,null,null,null,null,null,null,null,null,null,null,null,null,null,null,null,null,null,null,null,null,null,null,null,null,null,null,"生年月日","年齢"]
[null,null,null,null,null,null,null,null,null,null,null,null,null,null,null,null,null,null,null,null,null,null,null,null,null,null,null,null,null,{"$f":"IF(AI18=\"\",\"\",DATE(AI18,AO18,AS18))","v":""},{"$f":"DATEDIF(AD30,TODAY(),\"Y\")","v":{"$error":"#VALUE!"}}]
[null,null,null,null,"　　　　　　　　　　　　　⑱　備考記入欄\n↓選択してください"]
[]
[null,null,null,null,"4. 昇給・降給の理由",null,null,null,null,null,null,null,null,null,null,null,null,null,null,null,null,null,null,null,null,null,null,null,{"$f":"VLOOKUP(E33,選択項目!B:C,2,0)&\"\"","v":"←（例）基本給の増（減）、職務手当の変更　等"}]
[]
[null,"被保険者➋",null,null,"①　被保険者整理番号",null,null,null,null,null,null,null,null,null,"②　被保険者氏名",null,null,null,null,null,null,null,null,null,null,null,null,null,null,null,null,null,"③　生年月日　※西暦でご入力ください。",null,null,null,null,null,null,null,null,null,null,null,null,null,null,null,"④　改定年月"]
[]
[null,null,null,null,null,null,null,null,null,null,null,null,null,null,null,null,null,null,null,null,null,null,null,null,null,null,null,null,null,null,null,null,"西暦",null,null,null,null,null,"年",null,null,null,"月",null,null,null,"日",null,"令和",null,null,null,null,"年",null,null,null,"月",null,null,null,null,null,null,{"$f":"DATE(AI37,AO37,AS37)","v":{"$error":"#NUM!"}}]
[null,null,null,null,"⑤　従前の標準報酬月額　(厚生年金は自動入力）",null,null,null,null,null,null,null,null,null,null,null,null,null,null,null,null,null,null,null,"⑥　従前改定月",null,null,null,null,null,null,null,null,null,null,"⑦　昇(降)給月",null,null,null,null,null,null,null,null,null,null,null,"⑧　遡及支払額\n（該当する場合のみ）"]
[]
[null,null,null,null,"健康保険",null,null,null,null,null,null,null,"千円",null,"厚生年金",null,null,null,{"$f":"IF(I40=\"\",\"\",IF(I40>=650,650,IF(I40<=88,88,IF(I40=\"\",\"\",I40))))","v":""},null,null,null,"千円",null,"令和",null,null,null,null,"年",null,null,null,"月",null,null,null,null,"月",null,"選択してください",null,null,null,null,null,null,null,null,"月",null,null,null,null,null,null,null,"円"]
[null,null,null,null,"⑨","給与\n支給月",null,null,null,null,"⑩",null,null,null,null,null,"報酬月額",null,null,null,null,null,null,null,null,null,null,null,null,null,null,null,null,null,null,null,null,null,null,null,null,null,null,null,null,null,null,"⑭　総計"]
[null,null,null,null,null,null,null,null,null,null,"給与計算の\n基礎日数",null,null,null,null,null,"⑪　\n   通貨によるものの額",null,null,null,null,null,null,null,null,null,"⑫　\n   現物によるものの額",null,null,null,null,null,null,null,null,null,"⑬　合計（⑪+⑫）",null,null,null,null,null,null,null,null,null,null,"⑮　平均額"]
[null,null,null,null,"(改定年月で自動入力)",null,null,null,null,null,null,null,null,null,null,null,null,null,null,null,null,null,null,null,null,null,null,null,null,null,null,null,null,null,null,null,null,null,null,null,null,null,null,null,null,null,null,"⑯　修正平均額"]
[null,null,null,null,{"$f":"IF(BD37-3=-3,\"\",IF(BD37-3=-2,10,IF(BD37-3=-1,11,IF(BD37-3=0,12,BD37-3))))","v":""},null,null,null,"月",null,null,null,null,null,"日",null,null,null,null,null,null,null,null,null,"円",null,null,null,null,null,null,null,null,null,"円",null,{"$f":"IF(Q44+AA44=0,\"\",Q44+AA44)","v":""},null,null,null,null,null,null,null,null,"円",null,{"$f":"IF(AK44=\"\",\"\",AK44+AK45+AK46)","v":""},null,null,null,null,null,null,null,null,null,"円"]
[null,null,null,null,{"$f":"IF(BD37-2=-2,\"\",IF(BD37-2=-1,11,IF(BD37-2=-1,11,IF(BD37-2=0,12,BD37-2))))","v":""},null,null,null,"月",null,null,null,null,null,"日",null,null,null,null,null,null,null,null,null,"円",null,null,null,null,null,null,null,null,null,"円",null,{"$f":"IF(Q45+AA45=0,\"\",Q45+AA45)","v":""},null,null,null,null,null,null,null,null,"円",null,{"$f":"IF(AV44=\"\",\"\",ROUNDDOWN(AV44/3,0))","v":""},null,null,null,null,null,null,null,null,null,"円"]
[null,null,null,null,{"$f":"IF(BD37-1=-1,\"\",IF(BD37-1=0,12,BD37-1))","v":""},null,null,null,"月",null,null,null,null,null,"日",null,null,null,null,null,null,null,null,null,"円",null,null,null,null,null,null,null,null,null,"円",null,"",null,null,null,null,null,null,null,null,"円",null,null,null,null,null,null,null,null,null,null,null,"円"]
[null,null,null,null,"⑰　個人番号［基礎年金番号］\n※70歳以上被用者の場合のみ"]
[null,null,null,null,null,null,null,null,null,null,null,null,null,null,null,null,null,null,null,null,null,null,null,null,null,null,null,null,null,"生年月日","年齢"]
[null,null,null,null,null,null,null,null,null,null,null,null,null,null,null,null,null,null,null,null,null,null,null,null,null,null,null,null,null,{"$f":"IF(AI37=\"\",\"\",DATE(AI37,AO37,AS37))","v":""},{"$f":"DATEDIF(AD49,TODAY(),\"Y\")","v":{"$error":"#VALUE!"}}]
[null,null,null,null,"　　　　　　　　　　　　　⑱　備考記入欄\n↓選択してください"]
[]
[null,null,null,null,"4. 昇給・降給の理由",null,null,null,null,null,null,null,null,null,null,null,null,null,null,null,null,null,null,null,null,null,null,null,{"$f":"VLOOKUP(E52,選択項目!B:C,2,0)&\"\"","v":"←（例）基本給の増（減）、職務手当の変更　等"}]
[]
[null,"被保険者➌",null,null,"①　被保険者整理番号",null,null,null,null,null,null,null,null,null,"②　被保険者氏名",null,null,null,null,null,null,null,null,null,null,null,null,null,null,null,null,null,"③　生年月日　※西暦でご入力ください。",null,null,null,null,null,null,null,null,null,null,null,null,null,null,null,"④　改定年月"]
[]
[null,null,null,null,null,null,null,null,null,null,null,null,null,null,null,null,null,null,null,null,null,null,null,null,null,null,null,null,null,null,null,null,"西暦",null,null,null,null,null,"年",null,null,null,"月",null,null,null,"日",null,"令和",null,null,null,null,"年",null,null,null,"月",null,null,null,null,null,null,{"$f":"DATE(AI56,AO56,AS56)","v":{"$error":"#NUM!"}}]
[null,null,null,null,"⑤　従前の標準報酬月額　(厚生年金は自動入力）",null,null,null,null,null,null,null,null,null,null,null,null,null,null,null,null,null,null,null,"⑥　従前改定月",null,null,null,null,null,null,null,null,null,null,"⑦　昇(降)給月",null,null,null,null,null,null,null,null,null,null,null,"⑧　遡及支払額\n（該当する場合のみ）"]
[]
[null,null,null,null,"健康保険",null,null,null,null,null,null,null,"千円",null,"厚生年金",null,null,null,{"$f":"IF(I59=\"\",\"\",IF(I59>=650,650,IF(I59<=88,88,IF(I59=\"\",\"\",I59))))","v":""},null,null,null,"千円",null,"令和",null,null,null,null,"年",null,null,null,"月",null,null,null,null,"月",null,"選択してください",null,null,null,null,null,null,null,null,"月",null,null,null,null,null,null,null,"円"]
[null,null,null,null,"⑨","給与\n支給月",null,null,null,null,"⑩",null,null,null,null,null,"報酬月額",null,null,null,null,null,null,null,null,null,null,null,null,null,null,null,null,null,null,null,null,null,null,null,null,null,null,null,null,null,null,"⑭　総計"]
[null,null,null,null,null,null,null,null,null,null,"給与計算の\n基礎日数",null,null,null,null,null,"⑪　\n   通貨によるものの額",null,null,null,null,null,null,null,null,null,"⑫　\n   現物によるものの額",null,null,null,null,null,null,null,null,null,"⑬　合計（⑪+⑫）",null,null,null,null,null,null,null,null,null,null,"⑮　平均額"]
[null,null,null,null,"(改定年月で自動入力)",null,null,null,null,null,null,null,null,null,null,null,null,null,null,null,null,null,null,null,null,null,null,null,null,null,null,null,null,null,null,null,null,null,null,null,null,null,null,null,null,null,null,"⑯　修正平均額"]
[null,null,null,null,{"$f":"IF(BD56-3=-3,\"\",IF(BD56-3=-2,10,IF(BD56-3=-1,11,IF(BD56-3=0,12,BD56-3))))","v":""},null,null,null,"月",null,null,null,null,null,"日",null,null,null,null,null,null,null,null,null,"円",null,null,null,null,null,null,null,null,null,"円",null,{"$f":"IF(Q63+AA63=0,\"\",Q63+AA63)","v":""},null,null,null,null,null,null,null,null,"円",null,{"$f":"IF(AK63=\"\",\"\",AK63+AK64+AK65)","v":""},null,null,null,null,null,null,null,null,null,"円"]
[null,null,null,null,{"$f":"IF(BD56-2=-2,\"\",IF(BD56-2=-1,11,IF(BD56-2=-1,11,IF(BD56-2=0,12,BD56-2))))","v":""},null,null,null,"月",null,null,null,null,null,"日",null,null,null,null,null,null,null,null,null,"円",null,null,null,null,null,null,null,null,null,"円",null,{"$f":"IF(Q64+AA64=0,\"\",Q64+AA64)","v":""},null,null,null,null,null,null,null,null,"円",null,{"$f":"IF(AV63=\"\",\"\",ROUNDDOWN(AV63/3,0))","v":""},null,null,null,null,null,null,null,null,null,"円"]
[null,null,null,null,{"$f":"IF(BD56-1=-1,\"\",IF(BD56-1=0,12,BD56-1))","v":""},null,null,null,"月",null,null,null,null,null,"日",null,null,null,null,null,null,null,null,null,"円",null,null,null,null,null,null,null,null,null,"円",null,"",null,null,null,null,null,null,null,null,"円",null,null,null,null,null,null,null,null,null,null,null,"円"]
[null,null,null,null,"⑰　個人番号［基礎年金番号］\n※70歳以上被用者の場合のみ"]
[null,null,null,null,null,null,null,null,null,null,null,null,null,null,null,null,null,null,null,null,null,null,null,null,null,null,null,null,null,"生年月日","年齢"]
[null,null,null,null,null,null,null,null,null,null,null,null,null,null,null,null,null,null,null,null,null,null,null,null,null,null,null,null,null,{"$f":"IF(AI56=\"\",\"\",DATE(AI56,AO56,AS56))","v":""},{"$f":"DATEDIF(AD68,TODAY(),\"Y\")","v":{"$error":"#VALUE!"}}]
[null,null,null,null,"　　　　　　　　　　　　　⑱　備考記入欄\n↓選択してください"]
[]
[null,null,null,null,"4. 昇給・降給の理由",null,null,null,null,null,null,null,null,null,null,null,null,null,null,null,null,null,null,null,null,null,null,null,{"$f":"VLOOKUP(E71,選択項目!B:C,2,0)&\"\"","v":"←（例）基本給の増（減）、職務手当の変更　等"}]
[]
[null,"被保険者➍",null,null,"①　被保険者整理番号",null,null,null,null,null,null,null,null,null,"②　被保険者氏名",null,null,null,null,null,null,null,null,null,null,null,null,null,null,null,null,null,"③　生年月日　※西暦でご入力ください。",null,null,null,null,null,null,null,null,null,null,null,null,null,null,null,"④　改定年月"]
[]
[null,null,null,null,null,null,null,null,null,null,null,null,null,null,null,null,null,null,null,null,null,null,null,null,null,null,null,null,null,null,null,null,"西暦",null,null,null,null,null,"年",null,null,null,"月",null,null,null,"日",null,"令和",null,null,null,null,"年",null,null,null,"月",null,null,null,null,null,null,{"$f":"DATE(AI75,AO75,AS75)","v":{"$error":"#NUM!"}}]
[null,null,null,null,"⑤　従前の標準報酬月額　(厚生年金は自動入力）",null,null,null,null,null,null,null,null,null,null,null,null,null,null,null,null,null,null,null,"⑥　従前改定月",null,null,null,null,null,null,null,null,null,null,"⑦　昇(降)給月",null,null,null,null,null,null,null,null,null,null,null,"⑧　遡及支払額\n（該当する場合のみ）"]
[]
[null,null,null,null,"健康保険",null,null,null,null,null,null,null,"千円",null,"厚生年金",null,null,null,{"$f":"IF(I78=\"\",\"\",IF(I78>=650,650,IF(I78<=88,88,IF(I78=\"\",\"\",I78))))","v":""},null,null,null,"千円",null,"令和",null,null,null,null,"年",null,null,null,"月",null,null,null,null,"月",null,"選択してください",null,null,null,null,null,null,null,null,"月",null,null,null,null,null,null,null,"円"]
[null,null,null,null,"⑨","給与\n支給月",null,null,null,null,"⑩",null,null,null,null,null,"報酬月額",null,null,null,null,null,null,null,null,null,null,null,null,null,null,null,null,null,null,null,null,null,null,null,null,null,null,null,null,null,null,"⑭　総計"]
[null,null,null,null,null,null,null,null,null,null,"給与計算の\n基礎日数",null,null,null,null,null,"⑪　\n   通貨によるものの額",null,null,null,null,null,null,null,null,null,"⑫　\n   現物によるものの額",null,null,null,null,null,null,null,null,null,"⑬　合計（⑪+⑫）",null,null,null,null,null,null,null,null,null,null,"⑮　平均額"]
[null,null,null,null,"(改定年月で自動入力)",null,null,null,null,null,null,null,null,null,null,null,null,null,null,null,null,null,null,null,null,null,null,null,null,null,null,null,null,null,null,null,null,null,null,null,null,null,null,null,null,null,null,"⑯　修正平均額"]
[null,null,null,null,{"$f":"IF(BD75-3=-3,\"\",IF(BD75-3=-2,10,IF(BD75-3=-1,11,IF(BD75-3=0,12,BD75-3))))","v":""},null,null,null,"月",null,null,null,null,null,"日",null,null,null,null,null,null,null,null,null,"円",null,null,null,null,null,null,null,null,null,"円",null,{"$f":"IF(Q82+AA82=0,\"\",Q82+AA82)","v":""},null,null,null,null,null,null,null,null,"円",null,{"$f":"IF(AK82=\"\",\"\",AK82+AK83+AK84)","v":""},null,null,null,null,null,null,null,null,null,"円"]
[null,null,null,null,{"$f":"IF(BD75-2=-2,\"\",IF(BD75-2=-1,11,IF(BD75-2=-1,11,IF(BD75-2=0,12,BD75-2))))","v":""},null,null,null,"月",null,null,null,null,null,"日",null,null,null,null,null,null,null,null,null,"円",null,null,null,null,null,null,null,null,null,"円",null,{"$f":"IF(Q83+AA83=0,\"\",Q83+AA83)","v":""},null,null,null,null,null,null,null,null,"円",null,{"$f":"IF(AV82=\"\",\"\",ROUNDDOWN(AV82/3,0))","v":""},null,null,null,null,null,null,null,null,null,"円"]
[null,null,null,null,{"$f":"IF(BD75-1=-1,\"\",IF(BD75-1=0,12,BD75-1))","v":""},null,null,null,"月",null,null,null,null,null,"日",null,null,null,null,null,null,null,null,null,"円",null,null,null,null,null,null,null,null,null,"円",null,"",null,null,null,null,null,null,null,null,"円",null,null,null,null,null,null,null,null,null,null,null,"円"]
[null,null,null,null,"⑰　個人番号［基礎年金番号］\n※70歳以上被用者の場合のみ"]
[null,null,null,null,null,null,null,null,null,null,null,null,null,null,null,null,null,null,null,null,null,null,null,null,null,null,null,null,null,"生年月日","年齢"]
[null,null,null,null,null,null,null,null,null,null,null,null,null,null,null,null,null,null,null,null,null,null,null,null,null,null,null,null,null,{"$f":"IF(AI75=\"\",\"\",DATE(AI75,AO75,AS75))","v":""},{"$f":"DATEDIF(AD87,TODAY(),\"Y\")","v":{"$error":"#VALUE!"}}]
[null,null,null,null,"　　　　　　　　　　　　　⑱　備考記入欄\n↓選択してください"]
[]
[null,null,null,null,"4. 昇給・降給の理由",null,null,null,null,null,null,null,null,null,null,null,null,null,null,null,null,null,null,null,null,null,null,null,{"$f":"VLOOKUP(E90,選択項目!B:C,2,0)&\"\"","v":"←（例）基本給の増（減）、職務手当の変更　等"}]
[]
[null,"被保険者➎",null,null,"①　被保険者整理番号",null,null,null,null,null,null,null,null,null,"②　被保険者氏名",null,null,null,null,null,null,null,null,null,null,null,null,null,null,null,null,null,"③　生年月日　※西暦でご入力ください。",null,null,null,null,null,null,null,null,null,null,null,null,null,null,null,"④　改定年月"]
[]
[null,null,null,null,null,null,null,null,null,null,null,null,null,null,null,null,null,null,null,null,null,null,null,null,null,null,null,null,null,null,null,null,"西暦",null,null,null,null,null,"年",null,null,null,"月",null,null,null,"日",null,"令和",null,null,null,null,"年",null,null,null,"月",null,null,null,null,null,null,{"$f":"DATE(AI94,AO94,AS94)","v":{"$error":"#NUM!"}}]
[null,null,null,null,"⑤　従前の標準報酬月額　(厚生年金は自動入力）",null,null,null,null,null,null,null,null,null,null,null,null,null,null,null,null,null,null,null,"⑥　従前改定月",null,null,null,null,null,null,null,null,null,null,"⑦　昇(降)給月",null,null,null,null,null,null,null,null,null,null,null,"⑧　遡及支払額\n（該当する場合のみ）"]
[]
[null,null,null,null,"健康保険",null,null,null,null,null,null,null,"千円",null,"厚生年金",null,null,null,{"$f":"IF(I97=\"\",\"\",IF(I97>=650,650,IF(I97<=88,88,IF(I97=\"\",\"\",I97))))","v":""},null,null,null,"千円",null,"令和",null,null,null,null,"年",null,null,null,"月",null,null,null,null,"月",null,"選択してください",null,null,null,null,null,null,null,null,"月",null,null,null,null,null,null,null,"円"]
[null,null,null,null,"⑨","給与\n支給月",null,null,null,null,"⑩",null,null,null,null,null,"報酬月額",null,null,null,null,null,null,null,null,null,null,null,null,null,null,null,null,null,null,null,null,null,null,null,null,null,null,null,null,null,null,"⑭　総計"]
[null,null,null,null,null,null,null,null,null,null,"給与計算の\n基礎日数",null,null,null,null,null,"⑪　\n   通貨によるものの額",null,null,null,null,null,null,null,null,null,"⑫　\n   現物によるものの額",null,null,null,null,null,null,null,null,null,"⑬　合計（⑪+⑫）",null,null,null,null,null,null,null,null,null,null,"⑮　平均額"]
[null,null,null,null,"(改定年月で自動入力)",null,null,null,null,null,null,null,null,null,null,null,null,null,null,null,null,null,null,null,null,null,null,null,null,null,null,null,null,null,null,null,null,null,null,null,null,null,null,null,null,null,null,"⑯　修正平均額"]
[null,null,null,null,{"$f":"IF(BD94-3=-3,\"\",IF(BD94-3=-2,10,IF(BD94-3=-1,11,IF(BD94-3=0,12,BD94-3))))","v":""},null,null,null,"月",null,null,null,null,null,"日",null,null,null,null,null,null,null,null,null,"円",null,null,null,null,null,null,null,null,null,"円",null,{"$f":"IF(Q101+AA101=0,\"\",Q101+AA101)","v":""},null,null,null,null,null,null,null,null,"円",null,{"$f":"IF(AK101=\"\",\"\",AK101+AK102+AK103)","v":""},null,null,null,null,null,null,null,null,null,"円"]
[null,null,null,null,{"$f":"IF(BD94-2=-2,\"\",IF(BD94-2=-1,11,IF(BD94-2=-1,11,IF(BD94-2=0,12,BD94-2))))","v":""},null,null,null,"月",null,null,null,null,null,"日",null,null,null,null,null,null,null,null,null,"円",null,null,null,null,null,null,null,null,null,"円",null,{"$f":"IF(Q102+AA102=0,\"\",Q102+AA102)","v":""},null,null,null,null,null,null,null,null,"円",null,{"$f":"IF(AV101=\"\",\"\",ROUNDDOWN(AV101/3,0))","v":""},null,null,null,null,null,null,null,null,null,"円"]
[null,null,null,null,{"$f":"IF(BD94-1=-1,\"\",IF(BD94-1=0,12,BD94-1))","v":""},null,null,null,"月",null,null,null,null,null,"日",null,null,null,null,null,null,null,null,null,"円",null,null,null,null,null,null,null,null,null,"円",null,"",null,null,null,null,null,null,null,null,"円",null,null,null,null,null,null,null,null,null,null,null,"円"]
[null,null,null,null,"⑰　個人番号［基礎年金番号］\n※70歳以上被用者の場合のみ"]
[null,null,null,null,null,null,null,null,null,null,null,null,null,null,null,null,null,null,null,null,null,null,null,null,null,null,null,null,null,"生年月日","年齢"]
[null,null,null,null,null,null,null,null,null,null,null,null,null,null,null,null,null,null,null,null,null,null,null,null,null,null,null,null,null,{"$f":"IF(AI94=\"\",\"\",DATE(AI94,AO94,AS94))","v":""},{"$f":"DATEDIF(AD106,TODAY(),\"Y\")","v":{"$error":"#VALUE!"}}]
[null,null,null,null,"　　　　　　　　　　　　　⑱　備考記入欄\n↓選択してください"]
[]
[null,null,null,null,"4. 昇給・降給の理由",null,null,null,null,null,null,null,null,null,null,null,null,null,null,null,null,null,null,null,null,null,null,null,{"$f":"VLOOKUP(E109,選択項目!B:C,2,0)&\"\"","v":"←（例）基本給の増（減）、職務手当の変更　等"}]
[]
[null,"社会保険労務士記載欄"]
[]
[null,"氏　名　等"]

{"sheet":"月変","index":1,"n_rows":220,"n_cols":217,"rows_kept":220,"cut":false,"hidden":false,"merged":[[0,20,1,59],[0,5,1,19],[103,154,105,155],[103,180,105,181],[146,116,148,117],[149,118,154,123],[149,173,150,182],[152,116,154,117],[139,126,142,138],[108,118,111,123],[109,116,111,117],[112,111,117,115],[112,118,117,123],[112,173,113,180],[115,116,117,117],[108,141,111,153],[108,156,111,170],[108,173,111,191],[109,124,111,125],[109,139,111,140],[108,126,111,138],[183,116,185,117],[193,156,194,163],[193,173,194,181],[199,111,200,117],[199,118,200,125],[199,156,200,167],[201,111,204,115],[205,173,206,180],[145,173,148,191],[146,154,148,155],[146,171,148,172],[193,168,195,172],[196,168,198,172],[165,123,167,125],[165,138,167,140],[165,147,167,148],[165,154,167,155],[165,180,167,181],[143,118,148,123],[143,173,144,180],[205,126,210,138],[205,141,210,153],[205,156,210,170],[207,173,210,191],[208,124,210,125],[208,139,210,140],[208,154,210,155],[208,171,210,172],[149,126,154,138],[149,141,154,153],[168,2,169,8],[139,118,142,123],[140,116,142,117],[143,111,148,115],[170,141,173,153],[170,156,173,170],[170,173,173,191],[171,124,173,125],[171,139,173,140],[171,154,173,155],[171,171,173,172],[162,111,167,113],[162,114,167,122],[168,173,169,178],[146,124,148,125],[146,139,148,140],[162,156,163,163],[162,173,163,181],[168,111,169,117],[168,118,169,125],[149,111,154,115],[162,182,167,191],[164,156,167,162],[164,163,167,164],[180,118,185,123],[183,105,185,108],[112,2,117,6],[112,9,117,14],[112,64,113,71],[115,7,117,8],[118,2,123,6],[118,9,123,14],[118,64,119,73],[121,7,123,8],[131,47,132,54],[170,17,173,29],[170,32,173,44],[170,47,173,61],[170,64,173,82],[171,15,173,16],[171,30,173,31],[171,45,173,46],[171,62,173,63],[146,15,148,16],[146,30,148,31],[143,32,148,44],[143,47,148,61],[143,2,148,6],[143,9,148,14],[143,64,144,71],[146,7,148,8],[149,2,154,6],[149,9,154,14],[149,64,150,73],[152,7,154,8],[162,47,163,54],[201,2,204,6],[201,9,204,14],[202,7,204,8],[205,2,210,6],[205,9,210,14],[205,64,206,71],[208,7,210,8],[211,2,216,6],[211,9,216,14],[211,64,212,73],[214,7,216,8],[211,17,216,29],[199,2,200,8],[199,9,200,16],[199,47,200,58],[201,118,204,123],[202,116,204,117],[205,111,210,115],[205,118,210,123],[208,116,210,117],[211,111,216,115],[201,17,204,29],[201,32,204,44],[200,86,201,87],[200,88,201,108],[202,86,204,87],[202,88,204,106],[202,107,204,108],[205,86,207,87],[205,88,207,108],[208,86,210,87],[208,88,210,91],[214,192,216,193],[125,126,130,155],[125,156,130,180],[187,72,192,76],[196,71,198,72],[196,83,198,84],[187,79,192,82],[156,2,161,16],[168,32,169,37],[168,64,169,69],[171,83,173,84],[180,17,185,29],[180,32,185,44],[207,64,210,82],[211,194,216,217],[180,194,185,217],[75,111,76,117],[75,118,76,125],[75,156,76,167],[77,111,80,115],[77,118,80,123],[78,116,80,117],[195,156,198,162],[195,163,198,164],[195,173,198,179],[196,123,198,125],[196,138,198,140],[196,147,198,148],[196,154,198,155],[196,180,198,181],[196,192,198,193],[193,111,198,113],[211,85,216,91],[137,111,138,117],[137,118,138,125],[137,156,138,167],[139,111,142,115],[211,92,216,94],[131,64,132,72],[202,30,204,31],[202,45,204,46],[202,62,204,63],[202,83,204,84],[199,64,200,69],[174,32,179,44],[174,47,179,61],[109,30,111,31],[196,165,198,167],[190,83,192,84],[170,111,173,115],[170,118,173,123],[171,116,173,117],[174,111,179,115],[174,118,179,123],[177,116,179,117],[180,111,185,115],[170,126,173,138],[169,86,170,87],[169,88,170,108],[171,86,173,87],[171,88,173,106],[171,107,173,108],[174,86,176,87],[174,88,176,108],[208,192,210,193],[199,126,200,131],[199,141,200,146],[199,173,200,178],[201,126,204,138],[201,141,204,153],[201,156,204,170],[195,64,198,70],[193,114,198,122],[194,86,196,87],[194,88,196,99],[194,100,196,101],[194,102,196,108],[197,86,199,87],[197,88,199,108],[202,171,204,172],[202,192,204,193],[193,129,198,137],[193,142,198,146],[193,149,198,153],[193,165,195,167],[211,118,216,123],[211,173,212,182],[214,116,216,117],[211,126,216,138],[211,141,216,153],[211,156,216,170],[213,173,216,191],[214,124,216,125],[214,139,216,140],[214,154,216,155],[214,171,216,172],[201,173,204,191],[202,124,204,125],[202,139,204,140],[202,154,204,155],[187,216,192,217],[190,186,192,187],[190,192,192,193],[187,111,192,125],[187,126,192,155],[187,156,192,180],[187,181,192,185],[187,188,192,191],[187,194,192,195],[187,196,192,197],[187,198,192,199],[187,200,192,201],[193,182,198,191],[187,202,192,203],[187,204,192,205],[187,206,192,207],[187,208,192,209],[187,210,192,211],[187,212,192,213],[187,214,192,215],[180,173,181,182],[193,126,198,128],[171,192,173,193],[180,126,185,138],[180,141,185,153],[180,156,185,170],[182,173,185,191],[183,124,185,125],[183,139,185,140],[183,154,185,155],[183,171,185,172],[183,192,185,193],[174,126,179,138],[171,197,173,215],[194,195,196,196],[194,197,196,208],[194,209,196,210],[194,211,196,217],[197,195,199,196],[197,197,199,217],[177,124,179,125],[177,139,179,140],[177,154,179,155],[177,171,179,172],[177,192,179,193],[174,173,175,180],[176,173,179,191],[171,216,173,217],[174,195,176,196],[174,197,176,217],[177,195,179,196],[177,216,179,217],[177,197,179,200],[177,201,179,202],[177,203,179,215],[165,192,167,193],[162,126,167,128],[162,129,167,137],[162,142,167,146],[162,149,167,153],[168,126,169,131],[168,141,169,146],[168,156,169,167],[162,165,164,167],[162,168,164,172],[165,165,167,167],[165,168,167,172],[164,173,167,179],[174,141,179,153],[174,156,179,170],[156,202,161,203],[156,204,161,205],[156,206,161,207],[156,208,161,209],[156,210,161,211],[156,212,161,213],[156,214,161,215],[156,216,161,217],[159,186,161,187],[159,192,161,193],[156,111,161,125],[156,126,161,155],[156,156,161,180],[156,181,161,185],[156,188,161,191],[156,194,161,195],[156,196,161,197],[156,198,161,199],[156,200,161,201],[149,156,154,170],[151,173,154,191],[152,124,154,125],[152,139,154,140],[152,154,154,155],[152,171,154,172],[152,192,154,193],[143,126,148,138],[143,141,148,153],[143,156,148,170],[146,192,148,193],[149,194,154,217],[131,173,132,181],[131,182,136,191],[133,156,136,162],[133,163,136,164],[133,173,136,179],[134,123,136,125],[134,138,136,140],[134,147,136,148],[134,180,136,181],[134,192,136,193],[137,126,138,131],[137,141,138,146],[139,141,142,153],[139,156,142,170],[139,173,142,191],[140,124,142,125],[140,139,142,140],[140,154,142,155],[140,171,142,172],[134,165,136,167],[131,149,136,153],[124,197,124,214],[125,111,130,125],[125,181,130,185],[125,188,130,191],[125,194,130,195],[125,196,130,197],[125,198,130,199],[125,200,130,201],[125,202,130,203],[125,204,130,205],[125,206,130,207],[125,208,130,209],[125,210,130,211],[125,212,130,213],[125,214,130,215],[128,186,130,187],[128,192,130,193],[132,197,134,208],[131,111,136,113],[131,114,136,122],[131,126,136,128],[131,129,136,137],[131,142,136,146],[132,209,134,210],[131,168,133,172],[131,156,132,163],[94,194,99,195],[94,196,99,197],[94,210,99,211],[94,212,99,213],[94,214,99,215],[100,165,102,167],[118,111,123,115],[118,118,123,123],[118,194,123,217],[121,116,123,117],[106,126,107,131],[106,141,107,146],[114,173,117,191],[115,124,117,125],[115,139,117,140],[115,154,117,155],[115,171,117,172],[115,192,117,193],[100,156,101,163],[100,173,101,181],[106,111,107,117],[106,118,107,125],[106,156,107,167],[108,111,111,115],[109,192,111,193],[118,126,123,138],[118,141,123,153],[118,156,123,170],[120,173,123,191],[121,124,123,125],[121,139,123,140],[121,154,123,155],[121,171,123,172],[121,192,123,193],[112,126,117,138],[112,141,117,153],[112,156,117,170],[118,173,119,182],[97,186,99,187],[97,192,99,193],[94,156,99,180],[81,111,86,115],[81,118,86,123],[81,173,82,180],[84,116,86,117],[100,111,105,113],[100,114,105,122],[100,126,105,128],[100,129,105,137],[100,142,105,146],[100,149,105,153],[100,182,105,191],[102,156,105,162],[102,163,105,164],[102,173,105,179],[103,123,105,125],[103,138,105,140],[103,147,105,148],[90,171,92,172],[81,126,86,138],[94,111,99,125],[94,126,99,155],[87,111,92,115],[87,118,92,123],[87,173,88,182],[90,116,92,117],[81,141,86,153],[81,156,86,170],[83,173,86,191],[84,124,86,125],[84,139,86,140],[84,154,86,155],[84,171,86,172],[84,192,86,193],[63,214,68,215],[63,216,68,217],[66,186,68,187],[66,192,68,193],[70,211,72,217],[94,181,99,185],[94,188,99,191],[87,126,92,138],[87,141,92,153],[87,156,92,170],[89,173,92,191],[90,124,92,125],[90,139,92,140],[90,154,92,155],[78,192,80,193],[77,173,80,191],[78,124,80,125],[78,139,80,140],[78,154,80,155],[77,126,80,138],[94,198,99,199],[94,200,99,201],[94,202,99,203],[94,204,99,205],[69,111,74,113],[69,114,74,122],[69,126,74,128],[69,129,74,137],[69,142,74,146],[69,149,74,153],[69,182,74,191],[71,156,74,162],[71,163,74,164],[71,173,74,179],[72,123,74,125],[72,138,74,140],[72,147,74,148],[72,154,74,155],[72,180,74,181],[72,192,74,193],[70,209,72,210],[73,195,75,196],[73,197,75,217],[75,126,76,131],[75,141,76,146],[69,156,70,163],[69,173,70,181],[75,173,76,178],[70,195,72,196],[70,197,72,208],[49,111,53,125],[49,126,53,155],[49,156,53,180],[49,181,53,193],[49,194,53,217],[54,111,55,140],[54,141,55,155],[54,156,55,172],[54,173,55,193],[54,194,61,217],[56,126,57,172],[56,173,57,193],[58,126,61,140],[58,141,61,155],[58,156,61,172],[58,173,59,193],[60,173,61,193],[58,118,61,125],[0,128,0,140],[0,141,0,182],[1,128,1,140],[1,141,1,182],[3,111,3,116],[3,117,3,121],[3,122,3,123],[3,124,3,127],[3,128,3,129],[3,130,3,133],[3,134,3,138],[5,111,10,117],[12,111,24,117],[12,118,13,158],[14,118,16,120],[14,121,16,125],[14,126,16,127],[5,118,10,120],[5,121,10,123],[5,124,10,126],[5,127,10,129],[5,130,10,134],[5,135,10,137],[5,138,10,140],[5,141,10,143],[5,144,10,146],[14,128,16,134],[17,118,24,162],[25,111,33,117],[25,118,34,162],[31,166,35,191],[35,111,41,117],[35,118,42,156],[35,157,42,162],[36,166,38,194],[39,166,45,211],[63,111,68,125],[63,126,68,155],[63,156,68,180],[63,181,68,185],[63,188,68,191],[63,194,68,195],[63,196,68,197],[63,198,68,199],[63,200,68,201],[63,202,68,203],[63,204,68,205],[63,206,68,207],[63,208,68,209],[63,210,68,211],[62,197,62,214],[56,111,57,117],[56,118,57,125],[58,111,61,117],[39,212,45,217],[42,111,45,117],[43,121,45,127],[43,128,45,129],[43,130,45,139],[43,140,45,141],[49,109,62,109],[214,15,216,16],[214,30,216,31],[214,45,216,46],[214,62,216,63],[214,83,216,84],[208,83,210,84],[176,64,179,82],[177,15,179,16],[177,30,179,31],[177,45,179,46],[177,62,179,63],[183,15,185,16],[183,30,185,31],[183,45,185,46],[201,47,204,61],[201,64,204,82],[202,15,204,16],[211,32,216,44],[211,47,216,61],[213,64,216,82],[205,17,210,29],[205,32,210,44],[205,47,210,61],[165,29,167,31],[165,38,167,39],[199,32,200,37],[137,9,138,16],[137,47,138,58],[199,17,200,22],[180,95,185,104],[211,95,216,104],[193,2,198,4],[193,5,198,13],[193,17,198,19],[193,20,198,28],[193,33,198,37],[193,40,198,44],[196,29,198,31],[196,38,198,39],[196,14,198,16],[196,45,198,46],[187,2,192,16],[187,17,192,46],[187,47,192,71],[193,47,194,54],[193,64,194,72],[193,73,198,82],[195,47,198,53],[195,54,198,55],[193,56,195,58],[193,59,195,63],[196,56,198,58],[196,59,198,63],[190,77,192,78],[174,17,179,29],[162,73,167,82],[183,62,185,63],[183,83,185,84],[177,83,179,84],[162,2,167,4],[162,5,167,13],[162,17,167,19],[162,20,167,28],[162,33,167,37],[162,40,167,44],[165,14,167,16],[180,2,185,6],[183,7,185,8],[164,54,167,55],[164,64,167,70],[162,59,164,63],[165,56,167,58],[165,59,167,63],[170,2,173,6],[170,9,173,14],[171,7,173,8],[174,2,179,6],[174,9,179,14],[174,64,175,71],[177,7,179,8],[168,17,169,22],[180,9,185,14],[180,64,181,73],[168,9,169,16],[168,47,169,58],[162,64,163,72],[94,107,99,108],[94,95,99,96],[94,97,99,98],[94,99,99,100],[94,101,99,102],[94,103,99,104],[94,105,99,106],[93,88,93,105],[94,87,99,88],[156,79,161,82],[156,95,161,96],[156,97,161,98],[156,99,161,100],[156,87,161,88],[140,83,142,84],[121,105,123,108],[180,47,185,61],[182,64,185,82],[177,86,179,87],[177,88,179,91],[177,92,179,93],[177,94,179,106],[177,107,179,108],[145,64,148,82],[143,17,148,29],[152,83,154,84],[115,62,117,63],[159,77,161,78],[159,83,161,84],[156,72,161,76],[165,45,167,46],[165,71,167,72],[165,83,167,84],[156,17,161,46],[162,56,164,58],[164,47,167,53],[87,95,92,104],[118,95,123,104],[108,64,111,82],[109,62,111,63],[109,83,111,84],[102,54,105,55],[87,92,92,94],[3,2,3,7],[121,83,123,84],[125,87,130,88],[125,89,130,90],[125,91,130,92],[5,15,10,17],[5,18,10,20],[139,2,142,6],[139,9,142,14],[140,7,142,8],[131,20,136,28],[134,14,136,16],[139,47,142,61],[139,64,142,82],[137,2,138,8],[137,17,138,22],[139,17,142,29],[131,2,136,4],[128,83,130,84],[109,45,111,46],[108,47,111,61],[5,29,10,31],[5,32,10,34],[58,47,61,63],[97,77,99,78],[78,30,80,31],[102,64,105,70],[94,72,99,76],[94,79,99,82],[87,64,88,73],[81,64,82,71],[100,47,101,54],[156,47,161,71],[83,64,86,82],[90,83,92,84],[89,64,92,82],[77,47,80,61],[77,17,80,29],[106,17,107,22],[106,32,107,37],[106,64,107,69],[112,17,117,29],[146,83,148,84],[139,32,142,44],[125,72,130,76],[128,77,130,78],[118,92,123,94],[149,85,154,91],[149,92,154,94],[100,56,102,58],[100,59,102,63],[103,56,105,58],[103,59,105,63],[118,85,123,91],[84,62,86,63],[146,45,148,46],[146,62,148,63],[149,47,154,61],[151,64,154,82],[149,32,154,44],[152,30,154,31],[152,45,154,46],[152,62,154,63],[100,64,101,72],[63,99,68,100],[131,5,136,13],[131,17,136,19],[137,32,138,37],[137,64,138,69],[131,33,136,37],[131,40,136,44],[131,73,136,82],[140,15,142,16],[140,30,142,31],[140,45,142,46],[140,62,142,63],[5,26,10,28],[108,2,111,6],[108,9,111,14],[109,7,111,8],[100,40,105,44],[106,2,107,8],[106,9,107,16],[120,64,123,82],[125,2,130,16],[103,14,105,16],[5,21,10,25],[106,47,107,58],[134,83,136,84],[131,56,133,58],[131,59,133,63],[125,79,130,82],[109,15,111,16],[134,29,136,31],[39,57,45,102],[63,2,68,16],[63,17,68,46],[63,47,68,71],[66,83,68,84],[63,79,68,82],[66,77,68,78],[43,19,45,20],[43,21,45,30],[43,31,45,32],[43,12,45,18],[54,2,55,31],[54,32,55,46],[3,8,3,12],[3,13,3,14],[54,85,61,108],[56,17,57,63],[3,15,3,18],[3,19,3,20],[3,21,3,24],[3,25,3,29],[5,2,10,8],[5,9,10,11],[5,12,10,14],[39,103,45,108],[42,2,45,8],[63,105,68,106],[63,107,68,108],[63,93,68,94],[63,95,68,96],[63,97,68,98],[118,17,123,29],[112,32,117,44],[112,47,117,61],[114,64,117,82],[115,83,117,84],[108,17,111,29],[108,32,111,44],[25,2,33,8],[31,57,35,82],[72,71,74,72],[208,45,210,46],[208,62,210,63],[125,85,130,86],[90,45,92,46],[78,62,80,63],[134,56,136,58],[134,59,136,63],[115,15,117,16],[115,30,117,31],[115,45,117,46],[102,47,105,53],[118,32,123,44],[118,47,123,61],[103,71,105,72],[72,56,74,58],[69,59,71,63],[125,17,130,46],[125,47,130,71],[152,15,154,16],[133,47,136,53],[133,54,136,55],[133,64,136,70],[100,20,105,28],[214,105,216,108],[69,2,74,4],[69,5,74,13],[69,17,74,19],[69,20,74,28],[72,29,74,31],[72,14,74,16],[72,83,74,84],[69,73,74,82],[78,7,80,8],[75,17,76,22],[75,32,76,37],[71,54,74,55],[71,47,74,53],[125,97,130,98],[125,99,130,100],[125,101,130,102],[125,103,130,104],[208,15,210,16],[208,30,210,31],[100,2,105,4],[121,15,123,16],[121,30,123,31],[121,45,123,46],[121,62,123,63],[149,17,154,29],[81,47,86,61],[87,32,92,44],[81,32,86,44],[87,47,92,61],[71,64,74,70],[103,29,105,31],[63,101,68,102],[63,103,68,104],[90,62,92,63],[84,83,86,84],[69,47,70,54],[75,47,76,58],[49,0,62,0],[49,2,53,16],[49,17,53,46],[49,47,53,71],[49,72,53,84],[49,85,53,108],[77,32,80,44],[77,64,80,82],[94,2,99,16],[94,47,99,71],[87,17,92,29],[94,17,99,46],[78,15,80,16],[78,83,80,84],[84,7,86,8],[90,7,92,8],[58,64,59,84],[60,64,61,84],[63,85,68,86],[63,0,217,0],[63,87,68,88],[63,89,68,90],[63,91,68,92],[58,17,61,31],[58,32,61,46],[69,56,71,58],[100,33,105,37],[134,38,136,39],[134,45,136,46],[134,71,136,72],[103,83,105,84],[100,73,105,82],[72,59,74,63],[90,105,92,108],[100,5,105,13],[100,17,105,19],[94,85,99,86],[97,83,99,84],[14,12,16,16],[14,17,16,18],[14,19,16,25],[14,9,16,11],[17,9,24,53],[25,9,34,53],[63,72,68,76],[84,30,86,31],[90,30,92,31],[78,45,80,46],[84,45,86,46],[81,17,86,29],[78,86,80,87],[78,107,80,108],[103,38,105,39],[103,45,105,46],[78,88,80,106],[84,107,86,108],[43,33,45,42],[101,88,103,99],[101,100,103,101],[101,102,103,108],[87,85,92,91],[5,55,10,66],[77,2,80,6],[75,2,76,8],[75,9,76,16],[56,9,57,16],[58,9,61,16],[56,2,57,8],[58,2,61,8],[77,9,80,14],[81,2,86,6],[87,2,92,6],[81,9,86,14],[87,9,92,14],[56,64,57,84],[84,15,86,16],[90,15,92,16],[69,64,70,72],[72,45,74,46],[72,38,74,39],[69,40,74,44],[69,33,74,37],[75,64,76,69],[12,2,24,8],[12,9,13,49]],"merged_total":1193,"flags":["merged_cut"]}
[null,null,null,null,null,"健　康　保　険",null,null,null,null,null,null,null,null,null,null,null,null,null,null,"被保険者報酬月額変更届",null,null,null,null,null,null,null,null,null,null,null,null,null,null,null,null,null,null,null,null,null,null,null,null,null,null,null,null,null,null,null,null,null,null,null,null,null,null,null,null,null,null,null,null,null,null,null,null,null,null,null,null,null,null,null,null,null,null,null,null,null,null,null,null,null,null,null,null,null,null,null,null,null,null,null,null,null,null,null,null,null,null,null,null,null,null,null,null,null,null,null,null,null,null,null,null,null,null,null,null,null,null,null,null,null,null,null,"厚生年金保険",null,null,null,null,null,null,null,null,null,null,null,null,"被保険者報酬月額変更届"]
[null,null,null,null,null,null,null,null,null,null,null,null,null,null,null,null,null,null,null,null,null,null,null,null,null,null,null,null,null,null,null,null,null,null,null,null,null,null,null,null,null,null,null,null,null,null,null,null,null,null,null,null,null,null,null,null,null,null,null,null,null,null,null,null,null,null,null,null,null,null,null,null,null,null,null,null,null,null,null,null,null,null,null,null,null,null,null,null,null,null,null,null,null,null,null,null,null,null,null,null,null,null,null,null,null,null,null,null,null,null,null,null,null,null,null,null,null,null,null,null,null,null,null,null,null,null,null,null,"厚生年金保険",null,null,null,null,null,null,null,null,null,null,null,null,"70歳以上被用者月額変更届"]
[]
[null,null,"令和",null,null,null,null,null,{"$f":"入力フォーム!H15&\"\"","v":""},null,null,null,null,"年",null,{"$f":"入力フォーム!L15&\"\"","v":""},null,null,null,"月",null,{"$f":"入力フォーム!P15&\"\"","v":""},null,null,null,"日提出",null,null,null,null,null,null,null,null,null,null,null,null,null,null,null,null,null,null,null,null,null,null,null,null,null,null,null,null,null,null,null,null,null,null,null,null,null,null,null,null,null,null,null,null,null,null,null,null,null,null,null,null,null,null,null,null,null,null,null,null,null,null,null,null,null,null,null,null,null,null,null,null,null,null,null,null,null,null,null,null,null,null,null,null,null,{"$f":"C4","v":"令和"},null,null,null,null,null,{"$f":"I4","v":""},null,null,null,null,"年",null,{"$f":"P4","v":""},null,null,null,"月",null,{"$f":"V4","v":""},null,null,null,"日提出"]
[]
[null,null,"厚生年金\n保険事業所\n整理記号",null,null,null,null,null,null,null,null,null,null,null,null,{"$f":"入力フォーム!W5&\"\"","v":""},null,null,{"$f":"入力フォーム!Y5&\"\"","v":""},null,null,"-",null,null,null,null,{"$f":"入力フォーム!AC5&\"\"","v":""},null,null,{"$f":"入力フォーム!AE5&\"\"","v":""},null,null,{"$f":"入力フォーム!AG5&\"\"","v":""},null,null,{"$f":"入力フォーム!AI5&\"\"","v":""},null,null,null,null,null,null,null,null,null,null,null,null,null,null,null,null,null,null,null,"健 康 保 険\n事業所記号",null,null,null,null,null,null,null,null,null,null,null,{"$f":"入力フォーム!S6&\"\"","v":""},null,null,null,null,null,null,null,null,null,null,null,null,null,null,null,null,null,null,null,null,null,null,null,null,null,null,null,null,null,null,null,null,null,null,null,null,null,null,null,null,null,null,null,"事 業 所\n整理記号",null,null,null,null,null,null,{"$f":"J6&\"\"","v":""},null,null,{"$f":"M6&\"\"","v":""},null,null,{"$f":"P6&\"\"","v":""},null,null,{"$f":"S6&\"\"","v":""},null,null,"-",null,null,null,null,{"$f":"AA6&\"\"","v":""},null,null,{"$f":"AD6&\"\"","v":""},null,null,{"$f":"AG6&\"\"","v":""},null,null,{"$f":"AJ6&\"\"","v":""}]
[]
[]
[]
[]
[]
[]
[null,null,"事業所\n所在地",null,null,null,null,null,null,null,null,null,null,null,null,null,null,null,null,null,null,null,null,null,null,null,null,null,null,null,null,null,null,null,null,null,null,null,null,null,null,null,null,null,null,null,null,null,null,null,null,null,null,null,null,null,null,null,null,null,null,null,null,null,null,null,null,null,null,null,null,null,null,null,null,null,null,null,null,null,null,null,null,null,null,null,null,null,null,null,null,null,null,null,null,null,null,null,null,null,null,null,null,null,null,null,null,null,null,null,null,"事業所\n所在地",null,null,null,null,null,null,"届書記入の個人番号に誤りがないことを確認しました。"]
[]
[null,null,null,null,null,null,null,null,null,"〒",null,null,{"$f":"入力フォーム!U7&\"\"","v":""},null,null,null,null,"-",null,{"$f":"入力フォーム!AB7&\"\"","v":""},null,null,null,null,null,null,null,null,null,null,null,null,null,null,null,null,null,null,null,null,null,null,null,null,null,null,null,null,null,null,null,null,null,null,null,null,null,null,null,null,null,null,null,null,null,null,null,null,null,null,null,null,null,null,null,null,null,null,null,null,null,null,null,null,null,null,null,null,null,null,null,null,null,null,null,null,null,null,null,null,null,null,null,null,null,null,null,null,null,null,null,null,null,null,null,null,null,null,"〒",null,null,{"$f":"M15&\"\"","v":""},null,null,null,null,"-",null,{"$f":"T15&\"\"","v":""}]
[]
[]
[null,null,null,null,null,null,null,null,null,{"$f":"入力フォーム!S8&\"\"","v":""},null,null,null,null,null,null,null,null,null,null,null,null,null,null,null,null,null,null,null,null,null,null,null,null,null,null,null,null,null,null,null,null,null,null,null,null,null,null,null,null,null,null,null,null,null,null,null,null,null,null,null,null,null,null,null,null,null,null,null,null,null,null,null,null,null,null,null,null,null,null,null,null,null,null,null,null,null,null,null,null,null,null,null,null,null,null,null,null,null,null,null,null,null,null,null,null,null,null,null,null,null,null,null,null,null,null,null,null,{"$f":"J18&\"\"","v":""}]
[]
[]
[]
[]
[]
[]
[]
[null,null,"事業所\n名　称",null,null,null,null,null,null,{"$f":"入力フォーム!S9&\"\"","v":""},null,null,null,null,null,null,null,null,null,null,null,null,null,null,null,null,null,null,null,null,null,null,null,null,null,null,null,null,null,null,null,null,null,null,null,null,null,null,null,null,null,null,null,null,null,null,null,null,null,null,null,null,null,null,null,null,null,null,null,null,null,null,null,null,null,null,null,null,null,null,null,null,null,null,null,null,null,null,null,null,null,null,null,null,null,null,null,null,null,null,null,null,null,null,null,null,null,null,null,null,null,"事業所\n名　称",null,null,null,null,null,null,{"$f":"J26&\"\"","v":""}]
[]
[]
[]
[]
[]
[null,null,null,null,null,null,null,null,null,null,null,null,null,null,null,null,null,null,null,null,null,null,null,null,null,null,null,null,null,null,null,null,null,null,null,null,null,null,null,null,null,null,null,null,null,null,null,null,null,null,null,null,null,null,null,null,null,"社会保険労務士記載欄",null,null,null,null,null,null,null,null,null,null,null,null,null,null,null,null,null,null,null,null,null,null,null,null,null,null,null,null,null,null,null,null,null,null,null,null,null,null,null,null,null,null,null,null,null,null,null,null,null,null,null,null,null,null,null,null,null,null,null,null,null,null,null,null,null,null,null,null,null,null,null,null,null,null,null,null,null,null,null,null,null,null,null,null,null,null,null,null,null,null,null,null,null,null,null,null,null,null,null,null,null,null,null,null,null,null,null,null,"社会保険労務士記載欄"]
[]
[]
[]
[null,null,"事業主\n氏　名",null,null,null,null,null,null,{"$f":"入力フォーム!S10&\"\"","v":""},null,null,null,null,null,null,null,null,null,null,null,null,null,null,null,null,null,null,null,null,null,null,null,null,null,null,null,null,null,null,null,null,null,null,null,null,null,null,null,null,null,null,null,null,null,null,null,null,null,null,null,null,null,null,null,null,null,null,null,null,null,null,null,null,null,null,null,null,null,null,null,null,null,null,null,null,null,null,null,null,null,null,null,null,null,null,null,null,null,null,null,null,null,null,null,null,null,null,null,null,null,"事業主\n氏　名",null,null,null,null,null,null,{"$f":"J36&\"\"","v":""}]
[null,null,null,null,null,null,null,null,null,null,null,null,null,null,null,null,null,null,null,null,null,null,null,null,null,null,null,null,null,null,null,null,null,null,null,null,null,null,null,null,null,null,null,null,null,null,null,null,null,null,null,null,null,null,null,null,null,"　　氏　　　名　　　等",null,null,null,null,null,null,null,null,null,null,null,null,null,null,null,null,null,null,null,null,null,null,null,null,null,null,null,null,null,null,null,null,null,null,null,null,null,null,null,null,null,null,null,null,null,null,null,null,null,null,null,null,null,null,null,null,null,null,null,null,null,null,null,null,null,null,null,null,null,null,null,null,null,null,null,null,null,null,null,null,null,null,null,null,null,null,null,null,null,null,null,null,null,null,null,null,null,null,null,null,null,null,null,null,null,null,null,null,"　　氏　　　名　　　等"]
[]
[]
[null,null,null,null,null,null,null,null,null,null,null,null,null,null,null,null,null,null,null,null,null,null,null,null,null,null,null,null,null,null,null,null,null,null,null,null,null,null,null,null,null,null,null,null,null,null,null,null,null,null,null,null,null,null,null,null,null,{"$f":"入力フォーム!K113&\"\"","v":""},null,null,null,null,null,null,null,null,null,null,null,null,null,null,null,null,null,null,null,null,null,null,null,null,null,null,null,null,null,null,null,null,null,null,null,null,null,null,null,null,null,null,null,null,null,null,null,null,null,null,null,null,null,null,null,null,null,null,null,null,null,null,null,null,null,null,null,null,null,null,null,null,null,null,null,null,null,null,null,null,null,null,null,null,null,null,null,null,null,null,null,null,null,null,null,null,null,null,null,null,null,null,null,null,null,null,null,null,{"$f":"BF40","v":""}]
[]
[]
[null,null,"電話番号",null,null,null,null,null,null,null,null,null,null,null,null,null,null,null,null,null,null,null,null,null,null,null,null,null,null,null,null,null,null,null,null,null,null,null,null,null,null,null,null,null,null,null,null,null,null,null,null,null,null,null,null,null,null,null,null,null,null,null,null,null,null,null,null,null,null,null,null,null,null,null,null,null,null,null,null,null,null,null,null,null,null,null,null,null,null,null,null,null,null,null,null,null,null,null,null,null,null,null,null,null,null,null,null,null,null,null,null,"電話番号"]
[null,null,null,null,null,null,null,null,null,null,null,null,{"$f":"入力フォーム!S11&\"\"","v":""},null,null,null,null,null,null,"(",null,{"$f":"入力フォーム!Z11&\"\"","v":""},null,null,null,null,null,null,null,null,null,")",null,{"$f":"入力フォーム!AH11&\"\"","v":""},null,null,null,null,null,null,null,null,null,null,null,null,null,null,null,null,null,null,null,null,null,null,null,null,null,null,null,null,null,null,null,null,null,null,null,null,null,null,null,null,null,null,null,null,null,null,null,null,null,null,null,null,null,null,null,null,null,null,null,null,null,null,null,null,null,null,null,null,null,null,null,null,null,null,null,null,null,null,null,null,null,null,null,null,null,null,null,{"$f":"M44&\"\"","v":""},null,null,null,null,null,null,"(",null,{"$f":"V44&\"\"","v":""},null,null,null,null,null,null,null,null,null,")",null,{"$f":"AH44&\"\"","v":""}]
[]
[]
[]
[]
[]
[null,null,"①　被保険者整理番号",null,null,null,null,null,null,null,null,null,null,null,null,null,null,"②　被保険者氏名",null,null,null,null,null,null,null,null,null,null,null,null,null,null,null,null,null,null,null,null,null,null,null,null,null,null,null,null,null,"③　生年月日",null,null,null,null,null,null,null,null,null,null,null,null,null,null,null,null,null,null,null,null,null,null,null,null,"④　改定年月",null,null,null,null,null,null,null,null,null,null,null,null,"⑰　個人番号［基礎年金番号］\n※70歳以上被用者の場合のみ",null,null,null,null,null,null,null,null,null,null,null,null,null,null,null,null,null,null,null,null,null,null,null,null,null,"①　被保険者整理番号",null,null,null,null,null,null,null,null,null,null,null,null,null,null,"②　被保険者氏名",null,null,null,null,null,null,null,null,null,null,null,null,null,null,null,null,null,null,null,null,null,null,null,null,null,null,null,null,null,"③　生年月日",null,null,null,null,null,null,null,null,null,null,null,null,null,null,null,null,null,null,null,null,null,null,null,null,"④　改定年月",null,null,null,null,null,null,null,null,null,null,null,null,"⑰　個人番号［基礎年金番号］\n※70歳以上被用者の場合のみ"]
[]
[]
[]
[]
[null,null,"⑤　従前の標準報酬月額",null,null,null,null,null,null,null,null,null,null,null,null,null,null,null,null,null,null,null,null,null,null,null,null,null,null,null,null,null,"⑥　従前改定月",null,null,null,null,null,null,null,null,null,null,null,null,null,null,"⑦　昇(降)給",null,null,null,null,null,null,null,null,null,null,null,null,null,null,null,null,"⑧　遡及支払額",null,null,null,null,null,null,null,null,null,null,null,null,null,null,null,null,null,null,null,null,"⑱　備考",null,null,null,null,null,null,null,null,null,null,null,null,null,null,null,null,null,null,null,null,null,null,null,null,null,"⑤　従前の標準報酬月額",null,null,null,null,null,null,null,null,null,null,null,null,null,null,null,null,null,null,null,null,null,null,null,null,null,null,null,null,null,"⑥　従前改定月",null,null,null,null,null,null,null,null,null,null,null,null,null,null,"⑦　昇(降)給",null,null,null,null,null,null,null,null,null,null,null,null,null,null,null,null,"⑧　遡及支払額",null,null,null,null,null,null,null,null,null,null,null,null,null,null,null,null,null,null,null,null,"⑱　備考"]
[]
[null,null,"⑨",null,null,null,null,null,null,"⑩",null,null,null,null,null,null,null,"報酬月額",null,null,null,null,null,null,null,null,null,null,null,null,null,null,null,null,null,null,null,null,null,null,null,null,null,null,null,null,null,null,null,null,null,null,null,null,null,null,null,null,null,null,null,null,null,null,"⑭　総計",null,null,null,null,null,null,null,null,null,null,null,null,null,null,null,null,null,null,null,null,null,null,null,null,null,null,null,null,null,null,null,null,null,null,null,null,null,null,null,null,null,null,null,null,null,null,"⑨",null,null,null,null,null,null,"⑩",null,null,null,null,null,null,null,"報酬月額",null,null,null,null,null,null,null,null,null,null,null,null,null,null,null,null,null,null,null,null,null,null,null,null,null,null,null,null,null,null,null,null,null,null,null,null,null,null,null,null,null,null,null,null,null,null,"⑭　総計"]
[]
[null,null,"給与\n支給月",null,null,null,null,null,null,"給与計算の\n基礎日数",null,null,null,null,null,null,null,"⑪　\n   通貨によるものの額",null,null,null,null,null,null,null,null,null,null,null,null,null,null,"⑫　\n   現物によるものの額",null,null,null,null,null,null,null,null,null,null,null,null,null,null,"⑬　合計（⑪+⑫）",null,null,null,null,null,null,null,null,null,null,null,null,null,null,null,null,"⑮　平均額",null,null,null,null,null,null,null,null,null,null,null,null,null,null,null,null,null,null,null,null,null,null,null,null,null,null,null,null,null,null,null,null,null,null,null,null,null,null,null,null,null,null,null,null,null,null,"給与\n支給月",null,null,null,null,null,null,"給与計算の\n基礎日数",null,null,null,null,null,null,null,"⑪　\n   通貨によるものの額",null,null,null,null,null,null,null,null,null,null,null,null,null,null,"⑫　\n   現物によるものの額",null,null,null,null,null,null,null,null,null,null,null,null,null,null,"⑬　合計（⑪+⑫）",null,null,null,null,null,null,null,null,null,null,null,null,null,null,null,null,"⑮　平均額"]
[]
[null,null,null,null,null,null,null,null,null,null,null,null,null,null,null,null,null,null,null,null,null,null,null,null,null,null,null,null,null,null,null,null,null,null,null,null,null,null,null,null,null,null,null,null,null,null,null,null,null,null,null,null,null,null,null,null,null,null,null,null,null,null,null,null,"⑯　修正平均額",null,null,null,null,null,null,null,null,null,null,null,null,null,null,null,null,null,null,null,null,null,null,null,null,null,null,null,null,null,null,null,null,null,null,null,null,null,null,null,null,null,null,null,null,null,null,null,null,null,null,null,null,null,null,null,null,null,null,null,null,null,null,null,null,null,null,null,null,null,null,null,null,null,null,null,null,null,null,null,null,null,null,null,null,null,null,null,null,null,null,null,null,null,null,null,null,null,null,null,null,null,null,null,null,null,null,null,null,"⑯　修正平均額"]
[]
[]
[null,null,{"$f":"入力フォーム!E18&\"\"","v":""},null,null,null,null,null,null,null,null,null,null,null,null,null,null,{"$f":"入力フォーム!O18&\"\"","v":""},null,null,null,null,null,null,null,null,null,null,null,null,null,null,null,null,null,null,null,null,null,null,null,null,null,null,null,null,null,{"$f":"入力フォーム!AD30","v":""},null,null,null,null,null,null,null,null,null,null,null,null,null,null,null,null,null,null,null,null,null,null,null,null,{"$f":"入力フォーム!AZ18&\"\"","v":""},null,null,null,null,null,null,{"$f":"入力フォーム!BD18&\"\"","v":""},null,null,null,null,null,{"$f":"入力フォーム!E30&\"\"","v":""},null,{"$f":"入力フォーム!G30&\"\"","v":""},null,{"$f":"入力フォーム!I30&\"\"","v":""},null,{"$f":"入力フォーム!K30&\"\"","v":""},null,{"$f":"入力フォーム!M30&\"\"","v":""},null,{"$f":"入力フォーム!O30&\"\"","v":""},null,{"$f":"入力フォーム!Q30&\"\"","v":""},null,{"$f":"入力フォーム!S30&\"\"","v":""},null,{"$f":"入力フォーム!U30&\"\"","v":""},null,{"$f":"入力フォーム!W30&\"\"","v":""},null,{"$f":"入力フォーム!Y30&\"\"","v":""},null,{"$f":"入力フォーム!AA30&\"\"","v":""},null,null,null,{"$f":"C64","v":""},null,null,null,null,null,null,null,null,null,null,null,null,null,null,{"$f":"R64","v":""},null,null,null,null,null,null,null,null,null,null,null,null,null,null,null,null,null,null,null,null,null,null,null,null,null,null,null,null,null,{"$f":"AV64","v":""},null,null,null,null,null,null,null,null,null,null,null,null,null,null,null,null,null,null,null,null,null,null,null,null,{"$f":"BU64","v":""},null,null,null,null,null,null,{"$f":"CB64","v":""},null,null,null,null,null,{"$f":"CH64","v":""},null,{"$f":"CJ64","v":""},null,{"$f":"CL64","v":""},null,{"$f":"CN64","v":""},null,{"$f":"CP64","v":""},null,{"$f":"CR64","v":""},null,{"$f":"CT64","v":""},null,{"$f":"CV64","v":""},null,{"$f":"CX64","v":""},null,{"$f":"CZ64","v":""},null,{"$f":"DB64","v":""},null,{"$f":"DD64","v":""}]
[]
[]
[null,null,null,null,null,null,null,null,null,null,null,null,null,null,null,null,null,null,null,null,null,null,null,null,null,null,null,null,null,null,null,null,null,null,null,null,null,null,null,null,null,null,null,null,null,null,null,null,null,null,null,null,null,null,null,null,null,null,null,null,null,null,null,null,null,null,null,null,null,null,null,null,null,null,null,null,null,"年",null,null,null,null,null,"月",null,null,null,null,null,null,null,null,null,null,null,null,null,null,null,null,null,null,null,null,null,null,null,null,null,null,null,null,null,null,null,null,null,null,null,null,null,null,null,null,null,null,null,null,null,null,null,null,null,null,null,null,null,null,null,null,null,null,null,null,null,null,null,null,null,null,null,null,null,null,null,null,null,null,null,null,null,null,null,null,null,null,null,null,null,null,null,null,null,null,null,null,null,null,null,null,null,null,null,null,null,null,"年",null,null,null,null,null,"月"]
[]
[]
[null,null,"健",null,null,{"$f":"入力フォーム!I21&\"\"","v":""},null,null,null,null,null,null,null,null,null,null,null,"厚",null,null,{"$f":"入力フォーム!S21&\"\"","v":""},null,null,null,null,null,null,null,null,null,null,null,null,{"$f":"入力フォーム!AB21&\"\"","v":""},null,null,null,null,null,null,{"$f":"入力フォーム!AF21&\"\"","v":""},null,null,null,null,null,null,"⑦昇(降)給",null,null,null,null,null,null,null,null,{"$f":"IF(入力フォーム!AO21=\"1.　昇給\",\"○\",\"\")","v":""},null,null,null,null,null,null,null,"⑧遡及支払額",null,null,null,null,null,null,null,null,{"$f":"IF(入力フォーム!AZ21=\"\",\"\",入力フォーム!AZ21)","v":""},null,null,null,null,null,null,null,null,null,null,null,null,null,null,null,null,null,null,null,null,null,null,null,null,null,null,null,null,null,null,null,null,null,null,null,null,null,"健",null,null,{"$f":"F70","v":""},null,null,null,null,null,null,null,null,null,null,null,"厚",null,null,{"$f":"U70","v":""},null,null,null,null,null,null,null,null,null,null,null,null,{"$f":"AH70","v":""},null,null,null,null,null,null,{"$f":"AO70","v":""},null,null,null,null,null,null,"⑦昇(降)給",null,null,null,null,null,null,null,null,{"$f":"BE70","v":""},null,null,null,null,null,null,null,"⑧遡及支払額",null,null,null,null,null,null,null,null,{"$f":"BV70","v":""}]
[null,null,null,null,null,null,null,null,null,null,null,null,null,null,null,null,null,null,null,null,null,null,null,null,null,null,null,null,null,null,null,null,null,null,null,null,null,null,null,null,null,null,null,null,null,null,null,null,null,null,null,null,null,null,null,null,null,null,null,null,null,null,null,null,null,null,null,null,null,null,null,null,null,null,null,null,null,null,null,null,null,null,null,null,null,null,{"$f":"IF(入力フォーム!E33=\"1．70歳以上被用者月額変更\",\"○\",\"\")","v":""},null,null,null,null,null,null,null,null,null,null,null,null,null,{"$f":"IF(入力フォーム!E33=\"2. 二以上勤務\",\"○\",\"\")","v":""},null,null,null,null,null,null,null,null,null,null,null,null,null,null,null,null,null,null,null,null,null,null,null,null,null,null,null,null,null,null,null,null,null,null,null,null,null,null,null,null,null,null,null,null,null,null,null,null,null,null,null,null,null,null,null,null,null,null,null,null,null,null,null,null,null,null,null,null,null,null,null,null,null,null,null,null,null,null,null,null,null,null,null,null,null,null,null,null,null,null,null,null,null,null,{"$f":"CI71","v":""},null,null,null,null,null,null,null,null,null,null,null,null,null,{"$f":"CW71","v":""}]
[null,null,null,null,null,null,null,null,null,null,null,null,null,null,null,null,null,null,null,null,null,null,null,null,null,null,null,null,null,null,null,null,null,null,null,null,null,null,null,null,null,null,null,null,null,null,null,{"$f":"入力フォーム!AJ21&\"\"","v":""},null,null,null,null,null,null,"月",null,null,null,null,null,null,null,null,null,{"$f":"入力フォーム!AV21&\"\"","v":""},null,null,null,null,null,null,null,null,null,null,null,null,null,null,null,null,null,null,null,null,null,null,null,null,null,null,null,null,null,null,null,null,null,null,null,null,null,null,null,null,null,null,null,null,null,null,null,null,null,null,null,null,null,null,null,null,null,null,null,null,null,null,null,null,null,null,null,null,null,null,null,null,null,null,null,null,null,null,null,null,null,null,null,null,null,null,null,null,null,null,null,{"$f":"AV72","v":""},null,null,null,null,null,null,"月",null,null,null,null,null,null,null,null,null,{"$f":"BM72","v":""}]
[null,null,null,null,null,null,null,null,null,null,null,null,null,null,"千円",null,null,null,null,null,null,null,null,null,null,null,null,null,null,"千円",null,null,null,null,null,null,null,null,"年",null,null,null,null,null,null,"月",null,null,null,null,null,null,null,null,null,null,{"$f":"IF(入力フォーム!AO21=\"2.　降給\",\"○\",\"\")","v":""},null,null,null,null,null,null,null,null,null,null,null,null,null,null,"月",null,null,null,null,null,null,null,null,null,null,null,"円",null,null,null,null,null,null,null,null,null,null,null,null,null,null,null,null,null,null,null,null,null,null,null,null,null,null,null,null,null,null,null,null,null,null,null,null,null,null,null,"千円",null,null,null,null,null,null,null,null,null,null,null,null,null,null,"千円",null,null,null,null,null,null,null,null,"年",null,null,null,null,null,null,"月",null,null,null,null,null,null,null,null,null,null,{"$f":"BE73","v":""},null,null,null,null,null,null,null,null,null,null,null,null,null,null,"月",null,null,null,null,null,null,null,null,null,null,null,"円"]
[null,null,null,null,null,null,null,null,null,null,null,null,null,null,null,null,null,null,null,null,null,null,null,null,null,null,null,null,null,null,null,null,null,null,null,null,null,null,null,null,null,null,null,null,null,null,null,null,null,null,null,null,null,null,null,null,null,null,null,null,null,null,null,null,null,null,null,null,null,null,null,null,null,null,null,null,null,null,null,null,null,null,null,null,null,null,{"$f":"IF(入力フォーム!E33=\"3. 短時間労働者（特定適用事業所等）\",\"○\",\"\")","v":""},null,null,null,null,null,null,null,null,null,null,null,null,null,null,null,null,null,null,null,null,null,null,null,null,null,null,null,null,null,null,null,null,null,null,null,null,null,null,null,null,null,null,null,null,null,null,null,null,null,null,null,null,null,null,null,null,null,null,null,null,null,null,null,null,null,null,null,null,null,null,null,null,null,null,null,null,null,null,null,null,null,null,null,null,null,null,null,null,null,null,null,null,null,null,null,null,null,null,null,null,null,null,null,null,null,null,null,null,{"$f":"CI74","v":""}]
[]
[null,null,"⑨支給月",null,null,null,null,null,null,"⑩日数",null,null,null,null,null,null,null,"⑪通貨",null,null,null,null,null,null,null,null,null,null,null,null,null,null,"⑫現物",null,null,null,null,null,null,null,null,null,null,null,null,null,null,"⑬合計(⑪＋⑫)",null,null,null,null,null,null,null,null,null,null,null,null,null,null,null,null,"⑭総計",null,null,null,null,null,null,null,null,null,null,null,null,null,null,null,null,null,null,null,null,null,null,null,null,null,null,null,null,null,null,null,null,null,null,null,null,null,null,null,null,null,null,null,null,null,null,"⑨支給月",null,null,null,null,null,null,"⑩日数",null,null,null,null,null,null,null,"⑪通貨",null,null,null,null,null,null,null,null,null,null,null,null,null,null,"⑫現物",null,null,null,null,null,null,null,null,null,null,null,null,null,null,"⑬合計(⑪＋⑫)",null,null,null,null,null,null,null,null,null,null,null,null,null,null,null,null,"⑭総計"]
[null,null,null,null,null,null,null,null,null,null,null,null,null,null,null,null,null,null,null,null,null,null,null,null,null,null,null,null,null,null,null,null,null,null,null,null,null,null,null,null,null,null,null,null,null,null,null,null,null,null,null,null,null,null,null,null,null,null,null,null,null,null,null,null,null,null,null,null,null,null,null,null,null,null,null,null,null,null,null,null,null,null,null,null,null,null,{"$f":"IF(入力フォーム!E33=\"4. 昇給・降給の理由\",\"○\",\"\")","v":"○"},null,null,null,null,null,null,null,null,null,null,null,null,null,null,null,null,null,null,null,null,null,null,null,null,null,null,null,null,null,null,null,null,null,null,null,null,null,null,null,null,null,null,null,null,null,null,null,null,null,null,null,null,null,null,null,null,null,null,null,null,null,null,null,null,null,null,null,null,null,null,null,null,null,null,null,null,null,null,null,null,null,null,null,null,null,null,null,null,null,null,null,null,null,null,null,null,null,null,null,null,null,null,null,null,null,null,null,null,{"$f":"CI77","v":"○"}]
[null,null,{"$f":"入力フォーム!E25&\"\"","v":""},null,null,null,null,null,null,{"$f":"入力フォーム!K25&\"\"","v":""},null,null,null,null,null,null,null,{"$f":"IF(入力フォーム!Q25=\"\",\"\",入力フォーム!Q25)","v":""},null,null,null,null,null,null,null,null,null,null,null,null,null,null,{"$f":"IF(入力フォーム!AA25=\"\",\"\",入力フォーム!AA25)","v":""},null,null,null,null,null,null,null,null,null,null,null,null,null,null,{"$f":"入力フォーム!AK25","v":""},null,null,null,null,null,null,null,null,null,null,null,null,null,null,null,null,{"$f":"入力フォーム!AV25","v":""},null,null,null,null,null,null,null,null,null,null,null,null,null,null,null,null,null,null,null,null,null,null,null,null,null,null,null,null,null,null,null,null,null,null,null,null,null,null,null,null,null,null,null,null,null,null,{"$f":"C78","v":""},null,null,null,null,null,null,{"$f":"J78","v":""},null,null,null,null,null,null,null,{"$f":"R78","v":""},null,null,null,null,null,null,null,null,null,null,null,null,null,null,{"$f":"AG78","v":""},null,null,null,null,null,null,null,null,null,null,null,null,null,null,{"$f":"AV78","v":""},null,null,null,null,null,null,null,null,null,null,null,null,null,null,null,null,{"$f":"BM78","v":""}]
[null,null,null,null,null,null,null,"月",null,null,null,null,null,null,null,"日",null,null,null,null,null,null,null,null,null,null,null,null,null,null,"円",null,null,null,null,null,null,null,null,null,null,null,null,null,null,"円",null,null,null,null,null,null,null,null,null,null,null,null,null,null,null,null,"円",null,null,null,null,null,null,null,null,null,null,null,null,null,null,null,null,null,null,null,null,"円",null,null,"（",null,{"$f":"IF(入力フォーム!E33=\"4. 昇給・降給の理由\",入力フォーム!P33,\"\")&\"\"","v":""},null,null,null,null,null,null,null,null,null,null,null,null,null,null,null,null,null,null,"）",null,null,null,null,null,null,null,null,"月",null,null,null,null,null,null,null,"日",null,null,null,null,null,null,null,null,null,null,null,null,null,null,"円",null,null,null,null,null,null,null,null,null,null,null,null,null,null,"円",null,null,null,null,null,null,null,null,null,null,null,null,null,null,null,null,"円",null,null,null,null,null,null,null,null,null,null,null,null,null,null,null,null,null,null,null,null,"円",null,null,"（",null,{"$f":"CK79","v":""},null,null,null,null,null,null,null,null,null,null,null,null,null,null,null,null,null,null,"）"]
[]
[]
[null,null,{"$f":"入力フォーム!E26&\"\"","v":""},null,null,null,null,null,null,{"$f":"入力フォーム!K26&\"\"","v":""},null,null,null,null,null,null,null,{"$f":"IF(入力フォーム!Q26=\"\",\"\",入力フォーム!Q26)","v":""},null,null,null,null,null,null,null,null,null,null,null,null,null,null,{"$f":"IF(入力フォーム!AA26=\"\",\"\",入力フォーム!AA26)","v":""},null,null,null,null,null,null,null,null,null,null,null,null,null,null,{"$f":"入力フォーム!AK26","v":""},null,null,null,null,null,null,null,null,null,null,null,null,null,null,null,null,"⑮平均額",null,null,null,null,null,null,null,null,null,null,null,null,null,null,null,null,null,null,null,null,null,{"$f":"IF(入力フォーム!E33=\"5. 健康保険のみ月額変更　　（70歳到達時の契約変更等）\",\"○\",\"\")","v":""},null,null,null,null,null,null,null,null,null,null,null,null,null,null,null,null,null,null,null,null,null,null,null,null,{"$f":"C82","v":""},null,null,null,null,null,null,{"$f":"J82","v":""},null,null,null,null,null,null,null,{"$f":"R82","v":""},null,null,null,null,null,null,null,null,null,null,null,null,null,null,{"$f":"AG82","v":""},null,null,null,null,null,null,null,null,null,null,null,null,null,null,{"$f":"AV82","v":""},null,null,null,null,null,null,null,null,null,null,null,null,null,null,null,null,"⑮平均額",null,null,null,null,null,null,null,null,null,null,null,null,null,null,null,null,null,null,null,null,null,{"$f":"CI82","v":""}]
[]
[null,null,null,null,null,null,null,null,null,null,null,null,null,null,null,null,null,null,null,null,null,null,null,null,null,null,null,null,null,null,null,null,null,null,null,null,null,null,null,null,null,null,null,null,null,null,null,null,null,null,null,null,null,null,null,null,null,null,null,null,null,null,null,null,{"$f":"入力フォーム!AV26","v":""},null,null,null,null,null,null,null,null,null,null,null,null,null,null,null,null,null,null,null,null,null,null,null,null,null,null,null,null,null,null,null,null,null,null,null,null,null,null,null,null,null,null,null,null,null,null,null,null,null,null,null,null,null,null,null,null,null,null,null,null,null,null,null,null,null,null,null,null,null,null,null,null,null,null,null,null,null,null,null,null,null,null,null,null,null,null,null,null,null,null,null,null,null,null,null,null,null,null,null,null,null,null,null,null,null,null,null,null,{"$f":"BM84","v":""}]
[null,null,null,null,null,null,null,"月",null,null,null,null,null,null,null,"日",null,null,null,null,null,null,null,null,null,null,null,null,null,null,"円",null,null,null,null,null,null,null,null,null,null,null,null,null,null,"円",null,null,null,null,null,null,null,null,null,null,null,null,null,null,null,null,"円",null,null,null,null,null,null,null,null,null,null,null,null,null,null,null,null,null,null,null,null,"円",null,null,{"$f":"IF(入力フォーム!E33=\"6. その他\",\"○\",\"\")","v":""},null,null,null,null,null,"（",null,{"$f":"IF(入力フォーム!E33=\"6. その他\",入力フォーム!P33,\"\")","v":""},null,null,null,null,null,null,null,null,null,null,null,null,"）",null,null,null,null,null,null,null,null,"月",null,null,null,null,null,null,null,"日",null,null,null,null,null,null,null,null,null,null,null,null,null,null,"円",null,null,null,null,null,null,null,null,null,null,null,null,null,null,"円",null,null,null,null,null,null,null,null,null,null,null,null,null,null,null,null,"円",null,null,null,null,null,null,null,null,null,null,null,null,null,null,null,null,null,null,null,null,"円",null,null,{"$f":"CI85","v":""},null,null,null,null,null,"（",null,{"$f":"CQ85","v":""},null,null,null,null,null,null,null,null,null,null,null,null,"）"]
[]
[]
[null,null,{"$f":"入力フォーム!E27&\"\"","v":""},null,null,null,null,null,null,{"$f":"入力フォーム!K27&\"\"","v":""},null,null,null,null,null,null,null,{"$f":"IF(入力フォーム!Q27=\"\",\"\",入力フォーム!Q27)","v":""},null,null,null,null,null,null,null,null,null,null,null,null,null,null,{"$f":"IF(入力フォーム!AA27=\"\",\"\",入力フォーム!AA27)","v":""},null,null,null,null,null,null,null,null,null,null,null,null,null,null,{"$f":"入力フォーム!AK27","v":""},null,null,null,null,null,null,null,null,null,null,null,null,null,null,null,null,"⑯修正平均額",null,null,null,null,null,null,null,null,null,null,null,null,null,null,null,null,null,null,null,null,"※　標準\n報酬\n月額",null,null,null,null,null,null,"健",null,null,{"$f":"IF(BM90=\"\",IF(BM84=\"\",\"\",VLOOKUP(BM84,標準報酬!$B$13:$F$62,5,1)),VLOOKUP(BM90,標準報酬!$B$13:$F$62,5,1))","v":""},null,null,null,null,null,null,null,null,null,null,null,null,null,null,null,{"$f":"C88","v":""},null,null,null,null,null,null,{"$f":"J88","v":""},null,null,null,null,null,null,null,{"$f":"R88","v":""},null,null,null,null,null,null,null,null,null,null,null,null,null,null,{"$f":"AG88","v":""},null,null,null,null,null,null,null,null,null,null,null,null,null,null,{"$f":"AV88","v":""},null,null,null,null,null,null,null,null,null,null,null,null,null,null,null,null,"⑯修正平均額"]
[]
[null,null,null,null,null,null,null,null,null,null,null,null,null,null,null,null,null,null,null,null,null,null,null,null,null,null,null,null,null,null,null,null,null,null,null,null,null,null,null,null,null,null,null,null,null,null,null,null,null,null,null,null,null,null,null,null,null,null,null,null,null,null,null,null,{"$f":"IF(入力フォーム!AV27=\"\",\"\",入力フォーム!AV27)","v":""},null,null,null,null,null,null,null,null,null,null,null,null,null,null,null,null,null,null,null,null,null,null,null,null,null,null,null,null,null,null,null,null,null,null,null,null,null,null,null,null,null,null,null,null,null,null,null,null,null,null,null,null,null,null,null,null,null,null,null,null,null,null,null,null,null,null,null,null,null,null,null,null,null,null,null,null,null,null,null,null,null,null,null,null,null,null,null,null,null,null,null,null,null,null,null,null,null,null,null,null,null,null,null,null,null,null,null,null,{"$f":"BM90&\"\"","v":""}]
[null,null,null,null,null,null,null,"月",null,null,null,null,null,null,null,"日",null,null,null,null,null,null,null,null,null,null,null,null,null,null,"円",null,null,null,null,null,null,null,null,null,null,null,null,null,null,"円",null,null,null,null,null,null,null,null,null,null,null,null,null,null,null,null,"円",null,null,null,null,null,null,null,null,null,null,null,null,null,null,null,null,null,null,null,null,"円",null,null,null,null,null,null,null,null,null,null,null,null,null,null,null,null,null,null,null,null,null,"千円",null,null,null,null,null,null,null,null,null,null,"月",null,null,null,null,null,null,null,"日",null,null,null,null,null,null,null,null,null,null,null,null,null,null,"円",null,null,null,null,null,null,null,null,null,null,null,null,null,null,"円",null,null,null,null,null,null,null,null,null,null,null,null,null,null,null,null,"円",null,null,null,null,null,null,null,null,null,null,null,null,null,null,null,null,null,null,null,null,"円"]
[]
[]
[]
[null,null,{"$f":"入力フォーム!E37&\"\"","v":""},null,null,null,null,null,null,null,null,null,null,null,null,null,null,{"$f":"入力フォーム!O37&\"\"","v":""},null,null,null,null,null,null,null,null,null,null,null,null,null,null,null,null,null,null,null,null,null,null,null,null,null,null,null,null,null,{"$f":"入力フォーム!AD49","v":""},null,null,null,null,null,null,null,null,null,null,null,null,null,null,null,null,null,null,null,null,null,null,null,null,{"$f":"入力フォーム!AZ37&\"\"","v":""},null,null,null,null,null,null,{"$f":"入力フォーム!BD37&\"\"","v":""},null,null,null,null,null,{"$f":"入力フォーム!E49&\"\"","v":""},null,{"$f":"入力フォーム!G49&\"\"","v":""},null,{"$f":"入力フォーム!I49&\"\"","v":""},null,{"$f":"入力フォーム!K49&\"\"","v":""},null,{"$f":"入力フォーム!M49&\"\"","v":""},null,{"$f":"入力フォーム!O49&\"\"","v":""},null,{"$f":"入力フォーム!Q49&\"\"","v":""},null,{"$f":"入力フォーム!S49&\"\"","v":""},null,{"$f":"入力フォーム!U49&\"\"","v":""},null,{"$f":"入力フォーム!W49&\"\"","v":""},null,{"$f":"入力フォーム!Y49&\"\"","v":""},null,{"$f":"入力フォーム!AA49&\"\"","v":""},null,null,null,{"$f":"C95","v":""},null,null,null,null,null,null,null,null,null,null,null,null,null,null,{"$f":"R95","v":""},null,null,null,null,null,null,null,null,null,null,null,null,null,null,null,null,null,null,null,null,null,null,null,null,null,null,null,null,null,{"$f":"AV95","v":""},null,null,null,null,null,null,null,null,null,null,null,null,null,null,null,null,null,null,null,null,null,null,null,null,{"$f":"BU95","v":""},null,null,null,null,null,null,{"$f":"CB95","v":""},null,null,null,null,null,{"$f":"CH95","v":""},null,{"$f":"CJ95","v":""},null,{"$f":"CL95","v":""},null,{"$f":"CN95","v":""},null,{"$f":"CP95","v":""},null,{"$f":"CR95","v":""},null,{"$f":"CT95","v":""},null,{"$f":"CV95","v":""},null,{"$f":"CX95","v":""},null,{"$f":"CZ95","v":""},null,{"$f":"DB95","v":""},null,{"$f":"DD95","v":""}]
[]
[]
[null,null,null,null,null,null,null,null,null,null,null,null,null,null,null,null,null,null,null,null,null,null,null,null,null,null,null,null,null,null,null,null,null,null,null,null,null,null,null,null,null,null,null,null,null,null,null,null,null,null,null,null,null,null,null,null,null,null,null,null,null,null,null,null,null,null,null,null,null,null,null,null,null,null,null,null,null,"年",null,null,null,null,null,"月",null,null,null,null,null,null,null,null,null,null,null,null,null,null,null,null,null,null,null,null,null,null,null,null,null,null,null,null,null,null,null,null,null,null,null,null,null,null,null,null,null,null,null,null,null,null,null,null,null,null,null,null,null,null,null,null,null,null,null,null,null,null,null,null,null,null,null,null,null,null,null,null,null,null,null,null,null,null,null,null,null,null,null,null,null,null,null,null,null,null,null,null,null,null,null,null,null,null,null,null,null,null,"年",null,null,null,null,null,"月"]
[]
[]
[null,null,"健",null,null,{"$f":"入力フォーム!I40&\"\"","v":""},null,null,null,null,null,null,null,null,null,null,null,"厚",null,null,{"$f":"入力フォーム!S40&\"\"","v":""},null,null,null,null,null,null,null,null,null,null,null,null,{"$f":"入力フォーム!AB40&\"\"","v":""},null,null,null,null,null,null,{"$f":"入力フォーム!AF40&\"\"","v":""},null,null,null,null,null,null,"⑦昇(降)給",null,null,null,null,null,null,null,null,{"$f":"IF(入力フォーム!AO40=\"1.　昇給\",\"○\",\"\")","v":""},null,null,null,null,null,null,null,"⑧遡及支払額",null,null,null,null,null,null,null,null,{"$f":"IF(入力フォーム!AZ40=\"\",\"\",入力フォーム!AZ40)","v":""},null,null,null,null,null,null,null,null,null,null,null,null,null,null,null,null,null,null,null,null,null,null,null,null,null,null,null,null,null,null,null,null,null,null,null,null,null,"健",null,null,{"$f":"F101","v":""},null,null,null,null,null,null,null,null,null,null,null,"厚",null,null,{"$f":"U101","v":""},null,null,null,null,null,null,null,null,null,null,null,null,{"$f":"AH101","v":""},null,null,null,null,null,null,{"$f":"AO101","v":""},null,null,null,null,null,null,"⑦昇(降)給",null,null,null,null,null,null,null,null,{"$f":"BE101","v":""},null,null,null,null,null,null,null,"⑧遡及支払額",null,null,null,null,null,null,null,null,{"$f":"BV101","v":""}]
[null,null,null,null,null,null,null,null,null,null,null,null,null,null,null,null,null,null,null,null,null,null,null,null,null,null,null,null,null,null,null,null,null,null,null,null,null,null,null,null,null,null,null,null,null,null,null,null,null,null,null,null,null,null,null,null,null,null,null,null,null,null,null,null,null,null,null,null,null,null,null,null,null,null,null,null,null,null,null,null,null,null,null,null,null,null,{"$f":"IF(入力フォーム!E52=\"1．70歳以上被用者月額変更\",\"○\",\"\")","v":""},null,null,null,null,null,null,null,null,null,null,null,null,null,{"$f":"IF(入力フォーム!E52=\"2. 二以上勤務\",\"○\",\"\")","v":""},null,null,null,null,null,null,null,null,null,null,null,null,null,null,null,null,null,null,null,null,null,null,null,null,null,null,null,null,null,null,null,null,null,null,null,null,null,null,null,null,null,null,null,null,null,null,null,null,null,null,null,null,null,null,null,null,null,null,null,null,null,null,null,null,null,null,null,null,null,null,null,null,null,null,null,null,null,null,null,null,null,null,null,null,null,null,null,null,null,null,null,null,null,null,{"$f":"CI102","v":""},null,null,null,null,null,null,null,null,null,null,null,null,null,{"$f":"CW102","v":""}]
[null,null,null,null,null,null,null,null,null,null,null,null,null,null,null,null,null,null,null,null,null,null,null,null,null,null,null,null,null,null,null,null,null,null,null,null,null,null,null,null,null,null,null,null,null,null,null,{"$f":"入力フォーム!AJ40&\"\"","v":""},null,null,null,null,null,null,"月",null,null,null,null,null,null,null,null,null,{"$f":"入力フォーム!AV40&\"\"","v":""},null,null,null,null,null,null,null,null,null,null,null,null,null,null,null,null,null,null,null,null,null,null,null,null,null,null,null,null,null,null,null,null,null,null,null,null,null,null,null,null,null,null,null,null,null,null,null,null,null,null,null,null,null,null,null,null,null,null,null,null,null,null,null,null,null,null,null,null,null,null,null,null,null,null,null,null,null,null,null,null,null,null,null,null,null,null,null,null,null,null,null,{"$f":"AV103","v":""},null,null,null,null,null,null,"月",null,null,null,null,null,null,null,null,null,{"$f":"BM103","v":""}]
[null,null,null,null,null,null,null,null,null,null,null,null,null,null,"千円",null,null,null,null,null,null,null,null,null,null,null,null,null,null,"千円",null,null,null,null,null,null,null,null,"年",null,null,null,null,null,null,"月",null,null,null,null,null,null,null,null,null,null,{"$f":"IF(入力フォーム!AO40=\"2.　降給\",\"○\",\"\")","v":""},null,null,null,null,null,null,null,null,null,null,null,null,null,null,"月",null,null,null,null,null,null,null,null,null,null,null,"円",null,null,null,null,null,null,null,null,null,null,null,null,null,null,null,null,null,null,null,null,null,null,null,null,null,null,null,null,null,null,null,null,null,null,null,null,null,null,null,"千円",null,null,null,null,null,null,null,null,null,null,null,null,null,null,"千円",null,null,null,null,null,null,null,null,"年",null,null,null,null,null,null,"月",null,null,null,null,null,null,null,null,null,null,{"$f":"BE104","v":""},null,null,null,null,null,null,null,null,null,null,null,null,null,null,"月",null,null,null,null,null,null,null,null,null,null,null,"円"]
[null,null,null,null,null,null,null,null,null,null,null,null,null,null,null,null,null,null,null,null,null,null,null,null,null,null,null,null,null,null,null,null,null,null,null,null,null,null,null,null,null,null,null,null,null,null,null,null,null,null,null,null,null,null,null,null,null,null,null,null,null,null,null,null,null,null,null,null,null,null,null,null,null,null,null,null,null,null,null,null,null,null,null,null,null,null,{"$f":"IF(入力フォーム!E52=\"3. 短時間労働者（特定適用事業所等）\",\"○\",\"\")","v":""},null,null,null,null,null,null,null,null,null,null,null,null,null,null,null,null,null,null,null,null,null,null,null,null,null,null,null,null,null,null,null,null,null,null,null,null,null,null,null,null,null,null,null,null,null,null,null,null,null,null,null,null,null,null,null,null,null,null,null,null,null,null,null,null,null,null,null,null,null,null,null,null,null,null,null,null,null,null,null,null,null,null,null,null,null,null,null,null,null,null,null,null,null,null,null,null,null,null,null,null,null,null,null,null,null,null,null,null,{"$f":"CI105","v":""}]
[]
[null,null,"⑨支給月",null,null,null,null,null,null,"⑩日数",null,null,null,null,null,null,null,"⑪通貨",null,null,null,null,null,null,null,null,null,null,null,null,null,null,"⑫現物",null,null,null,null,null,null,null,null,null,null,null,null,null,null,"⑬合計(⑪＋⑫)",null,null,null,null,null,null,null,null,null,null,null,null,null,null,null,null,"⑭総計",null,null,null,null,null,null,null,null,null,null,null,null,null,null,null,null,null,null,null,null,null,null,null,null,null,null,null,null,null,null,null,null,null,null,null,null,null,null,null,null,null,null,null,null,null,null,"⑨支給月",null,null,null,null,null,null,"⑩日数",null,null,null,null,null,null,null,"⑪通貨",null,null,null,null,null,null,null,null,null,null,null,null,null,null,"⑫現物",null,null,null,null,null,null,null,null,null,null,null,null,null,null,"⑬合計(⑪＋⑫)",null,null,null,null,null,null,null,null,null,null,null,null,null,null,null,null,"⑭総計"]
[null,null,null,null,null,null,null,null,null,null,null,null,null,null,null,null,null,null,null,null,null,null,null,null,null,null,null,null,null,null,null,null,null,null,null,null,null,null,null,null,null,null,null,null,null,null,null,null,null,null,null,null,null,null,null,null,null,null,null,null,null,null,null,null,null,null,null,null,null,null,null,null,null,null,null,null,null,null,null,null,null,null,null,null,null,null,{"$f":"IF(入力フォーム!E52=\"4. 昇給・降給の理由\",\"○\",\"\")","v":"○"},null,null,null,null,null,null,null,null,null,null,null,null,null,null,null,null,null,null,null,null,null,null,null,null,null,null,null,null,null,null,null,null,null,null,null,null,null,null,null,null,null,null,null,null,null,null,null,null,null,null,null,null,null,null,null,null,null,null,null,null,null,null,null,null,null,null,null,null,null,null,null,null,null,null,null,null,null,null,null,null,null,null,null,null,null,null,null,null,null,null,null,null,null,null,null,null,null,null,null,null,null,null,null,null,null,null,null,null,{"$f":"CI108","v":"○"}]
[null,null,{"$f":"入力フォーム!E44&\"\"","v":""},null,null,null,null,null,null,{"$f":"入力フォーム!K44&\"\"","v":""},null,null,null,null,null,null,null,{"$f":"IF(入力フォーム!Q44=\"\",\"\",入力フォーム!Q44)","v":""},null,null,null,null,null,null,null,null,null,null,null,null,null,null,{"$f":"IF(入力フォーム!AA44=\"\",\"\",入力フォーム!AA44)","v":""},null,null,null,null,null,null,null,null,null,null,null,null,null,null,{"$f":"入力フォーム!AK44","v":""},null,null,null,null,null,null,null,null,null,null,null,null,null,null,null,null,{"$f":"入力フォーム!AV44","v":""},null,null,null,null,null,null,null,null,null,null,null,null,null,null,null,null,null,null,null,null,null,null,null,null,null,null,null,null,null,null,null,null,null,null,null,null,null,null,null,null,null,null,null,null,null,null,{"$f":"C109","v":""},null,null,null,null,null,null,{"$f":"J109","v":""},null,null,null,null,null,null,null,{"$f":"R109","v":""},null,null,null,null,null,null,null,null,null,null,null,null,null,null,{"$f":"AG109","v":""},null,null,null,null,null,null,null,null,null,null,null,null,null,null,{"$f":"AV109","v":""},null,null,null,null,null,null,null,null,null,null,null,null,null,null,null,null,{"$f":"BM109","v":""}]
[null,null,null,null,null,null,null,"月",null,null,null,null,null,null,null,"日",null,null,null,null,null,null,null,null,null,null,null,null,null,null,"円",null,null,null,null,null,null,null,null,null,null,null,null,null,null,"円",null,null,null,null,null,null,null,null,null,null,null,null,null,null,null,null,"円",null,null,null,null,null,null,null,null,null,null,null,null,null,null,null,null,null,null,null,null,"円",null,null,"（",null,{"$f":"IF(入力フォーム!E52=\"4. 昇給・降給の理由\",入力フォーム!P52,\"\")&\"\"","v":""},null,null,null,null,null,null,null,null,null,null,null,null,null,null,null,null,null,null,"）",null,null,null,null,null,null,null,null,"月",null,null,null,null,null,null,null,"日",null,null,null,null,null,null,null,null,null,null,null,null,null,null,"円",null,null,null,null,null,null,null,null,null,null,null,null,null,null,"円",null,null,null,null,null,null,null,null,null,null,null,null,null,null,null,null,"円",null,null,null,null,null,null,null,null,null,null,null,null,null,null,null,null,null,null,null,null,"円",null,null,"（",null,{"$f":"CK110","v":""},null,null,null,null,null,null,null,null,null,null,null,null,null,null,null,null,null,null,"）"]
[]
[]
[null,null,{"$f":"入力フォーム!E45&\"\"","v":""},null,null,null,null,null,null,{"$f":"入力フォーム!K45&\"\"","v":""},null,null,null,null,null,null,null,{"$f":"IF(入力フォーム!Q45=\"\",\"\",入力フォーム!Q45)","v":""},null,null,null,null,null,null,null,null,null,null,null,null,null,null,{"$f":"IF(入力フォーム!AA45=\"\",\"\",入力フォーム!AA45)","v":""},null,null,null,null,null,null,null,null,null,null,null,null,null,null,{"$f":"入力フォーム!AK45","v":""},null,null,null,null,null,null,null,null,null,null,null,null,null,null,null,null,"⑮平均額",null,null,null,null,null,null,null,null,null,null,null,null,null,null,null,null,null,null,null,null,null,{"$f":"IF(入力フォーム!E52=\"5. 健康保険のみ月額変更　　（70歳到達時の契約変更等）\",\"○\",\"\")","v":""},null,null,null,null,null,null,null,null,null,null,null,null,null,null,null,null,null,null,null,null,null,null,null,null,{"$f":"C113","v":""},null,null,null,null,null,null,{"$f":"J113","v":""},null,null,null,null,null,null,null,{"$f":"R113","v":""},null,null,null,null,null,null,null,null,null,null,null,null,null,null,{"$f":"AG113","v":""},null,null,null,null,null,null,null,null,null,null,null,null,null,null,{"$f":"AV113","v":""},null,null,null,null,null,null,null,null,null,null,null,null,null,null,null,null,"⑮平均額",null,null,null,null,null,null,null,null,null,null,null,null,null,null,null,null,null,null,null,null,null,{"$f":"CI113","v":""}]
[]
[null,null,null,null,null,null,null,null,null,null,null,null,null,null,null,null,null,null,null,null,null,null,null,null,null,null,null,null,null,null,null,null,null,null,null,null,null,null,null,null,null,null,null,null,null,null,null,null,null,null,null,null,null,null,null,null,null,null,null,null,null,null,null,null,{"$f":"入力フォーム!AV45","v":""},null,null,null,null,null,null,null,null,null,null,null,null,null,null,null,null,null,null,null,null,null,null,null,null,null,null,null,null,null,null,null,null,null,null,null,null,null,null,null,null,null,null,null,null,null,null,null,null,null,null,null,null,null,null,null,null,null,null,null,null,null,null,null,null,null,null,null,null,null,null,null,null,null,null,null,null,null,null,null,null,null,null,null,null,null,null,null,null,null,null,null,null,null,null,null,null,null,null,null,null,null,null,null,null,null,null,null,null,{"$f":"BM115","v":""}]
[null,null,null,null,null,null,null,"月",null,null,null,null,null,null,null,"日",null,null,null,null,null,null,null,null,null,null,null,null,null,null,"円",null,null,null,null,null,null,null,null,null,null,null,null,null,null,"円",null,null,null,null,null,null,null,null,null,null,null,null,null,null,null,null,"円",null,null,null,null,null,null,null,null,null,null,null,null,null,null,null,null,null,null,null,null,"円",null,null,{"$f":"IF(入力フォーム!E52=\"6. その他\",\"○\",\"\")","v":""},null,null,null,null,null,"（",null,{"$f":"IF(入力フォーム!E52=\"6. その他\",入力フォーム!P52,\"\")","v":""},null,null,null,null,null,null,null,null,null,null,null,null,"）",null,null,null,null,null,null,null,null,"月",null,null,null,null,null,null,null,"日",null,null,null,null,null,null,null,null,null,null,null,null,null,null,"円",null,null,null,null,null,null,null,null,null,null,null,null,null,null,"円",null,null,null,null,null,null,null,null,null,null,null,null,null,null,null,null,"円",null,null,null,null,null,null,null,null,null,null,null,null,null,null,null,null,null,null,null,null,"円",null,null,{"$f":"CI116","v":""},null,null,null,null,null,"（",null,{"$f":"CQ116","v":""},null,null,null,null,null,null,null,null,null,null,null,null,"）"]
[]
[]
[null,null,{"$f":"入力フォーム!E46&\"\"","v":""},null,null,null,null,null,null,{"$f":"入力フォーム!K46&\"\"","v":""},null,null,null,null,null,null,null,{"$f":"IF(入力フォーム!Q46=\"\",\"\",入力フォーム!Q46)","v":""},null,null,null,null,null,null,null,null,null,null,null,null,null,null,{"$f":"IF(入力フォーム!AA46=\"\",\"\",入力フォーム!AA46)","v":""},null,null,null,null,null,null,null,null,null,null,null,null,null,null,{"$f":"入力フォーム!AK46","v":""},null,null,null,null,null,null,null,null,null,null,null,null,null,null,null,null,"⑯修正平均額",null,null,null,null,null,null,null,null,null,null,null,null,null,null,null,null,null,null,null,null,"※　標準\n報酬\n月額",null,null,null,null,null,null,"健",null,null,{"$f":"IF(BM121=\"\",IF(BM115=\"\",\"\",VLOOKUP(BM115,標準報酬!$B$13:$F$62,5,1)),VLOOKUP(BM121,標準報酬!$B$13:$F$62,5,1))","v":""},null,null,null,null,null,null,null,null,null,null,null,null,null,null,null,{"$f":"C119","v":""},null,null,null,null,null,null,{"$f":"J119","v":""},null,null,null,null,null,null,null,{"$f":"R119","v":""},null,null,null,null,null,null,null,null,null,null,null,null,null,null,{"$f":"AG119","v":""},null,null,null,null,null,null,null,null,null,null,null,null,null,null,{"$f":"AV119","v":""},null,null,null,null,null,null,null,null,null,null,null,null,null,null,null,null,"⑯修正平均額"]
[]
[null,null,null,null,null,null,null,null,null,null,null,null,null,null,null,null,null,null,null,null,null,null,null,null,null,null,null,null,null,null,null,null,null,null,null,null,null,null,null,null,null,null,null,null,null,null,null,null,null,null,null,null,null,null,null,null,null,null,null,null,null,null,null,null,{"$f":"IF(入力フォーム!AV46=\"\",\"\",入力フォーム!AV46)","v":""},null,null,null,null,null,null,null,null,null,null,null,null,null,null,null,null,null,null,null,null,null,null,null,null,null,null,null,null,null,null,null,null,null,null,null,null,null,null,null,null,null,null,null,null,null,null,null,null,null,null,null,null,null,null,null,null,null,null,null,null,null,null,null,null,null,null,null,null,null,null,null,null,null,null,null,null,null,null,null,null,null,null,null,null,null,null,null,null,null,null,null,null,null,null,null,null,null,null,null,null,null,null,null,null,null,null,null,null,{"$f":"BM121&\"\"","v":""}]
[null,null,null,null,null,null,null,"月",null,null,null,null,null,null,null,"日",null,null,null,null,null,null,null,null,null,null,null,null,null,null,"円",null,null,null,null,null,null,null,null,null,null,null,null,null,null,"円",null,null,null,null,null,null,null,null,null,null,null,null,null,null,null,null,"円",null,null,null,null,null,null,null,null,null,null,null,null,null,null,null,null,null,null,null,null,"円",null,null,null,null,null,null,null,null,null,null,null,null,null,null,null,null,null,null,null,null,null,"千円",null,null,null,null,null,null,null,null,null,null,"月",null,null,null,null,null,null,null,"日",null,null,null,null,null,null,null,null,null,null,null,null,null,null,"円",null,null,null,null,null,null,null,null,null,null,null,null,null,null,"円",null,null,null,null,null,null,null,null,null,null,null,null,null,null,null,null,"円",null,null,null,null,null,null,null,null,null,null,null,null,null,null,null,null,null,null,null,null,"円"]
[]
[]
[]
[null,null,{"$f":"入力フォーム!E56&\"\"","v":""},null,null,null,null,null,null,null,null,null,null,null,null,null,null,{"$f":"入力フォーム!O56&\"\"","v":""},null,null,null,null,null,null,null,null,null,null,null,null,null,null,null,null,null,null,null,null,null,null,null,null,null,null,null,null,null,{"$f":"入力フォーム!AD68","v":""},null,null,null,null,null,null,null,null,null,null,null,null,null,null,null,null,null,null,null,null,null,null,null,null,{"$f":"入力フォーム!AZ56&\"\"","v":""},null,null,null,null,null,null,{"$f":"入力フォーム!BD56&\"\"","v":""},null,null,null,null,null,{"$f":"入力フォーム!E68&\"\"","v":""},null,{"$f":"入力フォーム!G68&\"\"","v":""},null,{"$f":"入力フォーム!I68&\"\"","v":""},null,{"$f":"入力フォーム!K68&\"\"","v":""},null,{"$f":"入力フォーム!M68&\"\"","v":""},null,{"$f":"入力フォーム!O68&\"\"","v":""},null,{"$f":"入力フォーム!Q68&\"\"","v":""},null,{"$f":"入力フォーム!S68&\"\"","v":""},null,{"$f":"入力フォーム!U68&\"\"","v":""},null,{"$f":"入力フォーム!W68&\"\"","v":""},null,{"$f":"入力フォーム!Y68&\"\"","v":""},null,{"$f":"入力フォーム!AA68&\"\"","v":""},null,null,null,{"$f":"C126","v":""},null,null,null,null,null,null,null,null,null,null,null,null,null,null,{"$f":"R126","v":""},null,null,null,null,null,null,null,null,null,null,null,null,null,null,null,null,null,null,null,null,null,null,null,null,null,null,null,null,null,{"$f":"AV126","v":""},null,null,null,null,null,null,null,null,null,null,null,null,null,null,null,null,null,null,null,null,null,null,null,null,{"$f":"BU126","v":""},null,null,null,null,null,null,{"$f":"CB126","v":""},null,null,null,null,null,{"$f":"CH126","v":""},null,{"$f":"CJ126","v":""},null,{"$f":"CL126","v":""},null,{"$f":"CN126","v":""},null,{"$f":"CP126","v":""},null,{"$f":"CR126","v":""},null,{"$f":"CT126","v":""},null,{"$f":"CV126","v":""},null,{"$f":"CX126","v":""},null,{"$f":"CZ126","v":""},null,{"$f":"DB126","v":""},null,{"$f":"DD126","v":""}]
[]
[]
[null,null,null,null,null,null,null,null,null,null,null,null,null,null,null,null,null,null,null,null,null,null,null,null,null,null,null,null,null,null,null,null,null,null,null,null,null,null,null,null,null,null,null,null,null,null,null,null,null,null,null,null,null,null,null,null,null,null,null,null,null,null,null,null,null,null,null,null,null,null,null,null,null,null,null,null,null,"年",null,null,null,null,null,"月",null,null,null,null,null,null,null,null,null,null,null,null,null,null,null,null,null,null,null,null,null,null,null,null,null,null,null,null,null,null,null,null,null,null,null,null,null,null,null,null,null,null,null,null,null,null,null,null,null,null,null,null,null,null,null,null,null,null,null,null,null,null,null,null,null,null,null,null,null,null,null,null,null,null,null,null,null,null,null,null,null,null,null,null,null,null,null,null,null,null,null,null,null,null,null,null,null,null,null,null,null,null,"年",null,null,null,null,null,"月"]
[]
[]
[null,null,"健",null,null,{"$f":"入力フォーム!I59&\"\"","v":""},null,null,null,null,null,null,null,null,null,null,null,"厚",null,null,{"$f":"入力フォーム!S59&\"\"","v":""},null,null,null,null,null,null,null,null,null,null,null,null,{"$f":"入力フォーム!AB59&\"\"","v":""},null,null,null,null,null,null,{"$f":"入力フォーム!AF59&\"\"","v":""},null,null,null,null,null,null,"⑦昇(降)給",null,null,null,null,null,null,null,null,{"$f":"IF(入力フォーム!AO59=\"1.　昇給\",\"○\",\"\")","v":""},null,null,null,null,null,null,null,"⑧遡及支払額",null,null,null,null,null,null,null,null,{"$f":"IF(入力フォーム!AZ59=\"\",\"\",入力フォーム!AZ59)","v":""},null,null,null,null,null,null,null,null,null,null,null,null,null,null,null,null,null,null,null,null,null,null,null,null,null,null,null,null,null,null,null,null,null,null,null,null,null,"健",null,null,{"$f":"F132","v":""},null,null,null,null,null,null,null,null,null,null,null,"厚",null,null,{"$f":"U132","v":""},null,null,null,null,null,null,null,null,null,null,null,null,{"$f":"AH132","v":""},null,null,null,null,null,null,{"$f":"AO132","v":""},null,null,null,null,null,null,"⑦昇(降)給",null,null,null,null,null,null,null,null,{"$f":"BE132","v":""},null,null,null,null,null,null,null,"⑧遡及支払額",null,null,null,null,null,null,null,null,{"$f":"BV132","v":""}]
[null,null,null,null,null,null,null,null,null,null,null,null,null,null,null,null,null,null,null,null,null,null,null,null,null,null,null,null,null,null,null,null,null,null,null,null,null,null,null,null,null,null,null,null,null,null,null,null,null,null,null,null,null,null,null,null,null,null,null,null,null,null,null,null,null,null,null,null,null,null,null,null,null,null,null,null,null,null,null,null,null,null,null,null,null,null,{"$f":"IF(入力フォーム!E71=\"1．70歳以上被用者月額変更\",\"○\",\"\")","v":""},null,null,null,null,null,null,null,null,null,null,null,null,null,{"$f":"IF(入力フォーム!E71=\"2. 二以上勤務\",\"○\",\"\")","v":""},null,null,null,null,null,null,null,null,null,null,null,null,null,null,null,null,null,null,null,null,null,null,null,null,null,null,null,null,null,null,null,null,null,null,null,null,null,null,null,null,null,null,null,null,null,null,null,null,null,null,null,null,null,null,null,null,null,null,null,null,null,null,null,null,null,null,null,null,null,null,null,null,null,null,null,null,null,null,null,null,null,null,null,null,null,null,null,null,null,null,null,null,null,null,{"$f":"CI133","v":""},null,null,null,null,null,null,null,null,null,null,null,null,null,{"$f":"CW133","v":""}]
[null,null,null,null,null,null,null,null,null,null,null,null,null,null,null,null,null,null,null,null,null,null,null,null,null,null,null,null,null,null,null,null,null,null,null,null,null,null,null,null,null,null,null,null,null,null,null,{"$f":"入力フォーム!AJ59&\"\"","v":""},null,null,null,null,null,null,"月",null,null,null,null,null,null,null,null,null,{"$f":"入力フォーム!AV59&\"\"","v":""},null,null,null,null,null,null,null,null,null,null,null,null,null,null,null,null,null,null,null,null,null,null,null,null,null,null,null,null,null,null,null,null,null,null,null,null,null,null,null,null,null,null,null,null,null,null,null,null,null,null,null,null,null,null,null,null,null,null,null,null,null,null,null,null,null,null,null,null,null,null,null,null,null,null,null,null,null,null,null,null,null,null,null,null,null,null,null,null,null,null,null,{"$f":"AV134","v":""},null,null,null,null,null,null,"月",null,null,null,null,null,null,null,null,null,{"$f":"BM134","v":""}]
[null,null,null,null,null,null,null,null,null,null,null,null,null,null,"千円",null,null,null,null,null,null,null,null,null,null,null,null,null,null,"千円",null,null,null,null,null,null,null,null,"年",null,null,null,null,null,null,"月",null,null,null,null,null,null,null,null,null,null,{"$f":"IF(入力フォーム!AO59=\"2.　降給\",\"○\",\"\")","v":""},null,null,null,null,null,null,null,null,null,null,null,null,null,null,"月",null,null,null,null,null,null,null,null,null,null,null,"円",null,null,null,null,null,null,null,null,null,null,null,null,null,null,null,null,null,null,null,null,null,null,null,null,null,null,null,null,null,null,null,null,null,null,null,null,null,null,null,"千円",null,null,null,null,null,null,null,null,null,null,null,null,null,null,"千円",null,null,null,null,null,null,null,null,"年",null,null,null,null,null,null,"月",null,null,null,null,null,null,null,null,null,null,{"$f":"BE135","v":""},null,null,null,null,null,null,null,null,null,null,null,null,null,null,"月",null,null,null,null,null,null,null,null,null,null,null,"円"]
[null,null,null,null,null,null,null,null,null,null,null,null,null,null,null,null,null,null,null,null,null,null,null,null,null,null,null,null,null,null,null,null,null,null,null,null,null,null,null,null,null,null,null,null,null,null,null,null,null,null,null,null,null,null,null,null,null,null,null,null,null,null,null,null,null,null,null,null,null,null,null,null,null,null,null,null,null,null,null,null,null,null,null,null,null,null,{"$f":"IF(入力フォーム!E71=\"3. 短時間労働者（特定適用事業所等）\",\"○\",\"\")","v":""},null,null,null,null,null,null,null,null,null,null,null,null,null,null,null,null,null,null,null,null,null,null,null,null,null,null,null,null,null,null,null,null,null,null,null,null,null,null,null,null,null,null,null,null,null,null,null,null,null,null,null,null,null,null,null,null,null,null,null,null,null,null,null,null,null,null,null,null,null,null,null,null,null,null,null,null,null,null,null,null,null,null,null,null,null,null,null,null,null,null,null,null,null,null,null,null,null,null,null,null,null,null,null,null,null,null,null,null,{"$f":"CI136","v":""}]
[]
[null,null,"⑨支給月",null,null,null,null,null,null,"⑩日数",null,null,null,null,null,null,null,"⑪通貨",null,null,null,null,null,null,null,null,null,null,null,null,null,null,"⑫現物",null,null,null,null,null,null,null,null,null,null,null,null,null,null,"⑬合計(⑪＋⑫)",null,null,null,null,null,null,null,null,null,null,null,null,null,null,null,null,"⑭総計",null,null,null,null,null,null,null,null,null,null,null,null,null,null,null,null,null,null,null,null,null,null,null,null,null,null,null,null,null,null,null,null,null,null,null,null,null,null,null,null,null,null,null,null,null,null,"⑨支給月",null,null,null,null,null,null,"⑩日数",null,null,null,null,null,null,null,"⑪通貨",null,null,null,null,null,null,null,null,null,null,null,null,null,null,"⑫現物",null,null,null,null,null,null,null,null,null,null,null,null,null,null,"⑬合計(⑪＋⑫)",null,null,null,null,null,null,null,null,null,null,null,null,null,null,null,null,"⑭総計"]
[null,null,null,null,null,null,null,null,null,null,null,null,null,null,null,null,null,null,null,null,null,null,null,null,null,null,null,null,null,null,null,null,null,null,null,null,null,null,null,null,null,null,null,null,null,null,null,null,null,null,null,null,null,null,null,null,null,null,null,null,null,null,null,null,null,null,null,null,null,null,null,null,null,null,null,null,null,null,null,null,null,null,null,null,null,null,{"$f":"IF(入力フォーム!E71=\"4. 昇給・降給の理由\",\"○\",\"\")","v":"○"},null,null,null,null,null,null,null,null,null,null,null,null,null,null,null,null,null,null,null,null,null,null,null,null,null,null,null,null,null,null,null,null,null,null,null,null,null,null,null,null,null,null,null,null,null,null,null,null,null,null,null,null,null,null,null,null,null,null,null,null,null,null,null,null,null,null,null,null,null,null,null,null,null,null,null,null,null,null,null,null,null,null,null,null,null,null,null,null,null,null,null,null,null,null,null,null,null,null,null,null,null,null,null,null,null,null,null,null,{"$f":"CI139","v":"○"}]
[null,null,{"$f":"入力フォーム!E63&\"\"","v":""},null,null,null,null,null,null,{"$f":"入力フォーム!K63&\"\"","v":""},null,null,null,null,null,null,null,{"$f":"IF(入力フォーム!Q63=\"\",\"\",入力フォーム!Q63)","v":""},null,null,null,null,null,null,null,null,null,null,null,null,null,null,{"$f":"IF(入力フォーム!AA63=\"\",\"\",入力フォーム!AA63)","v":""},null,null,null,null,null,null,null,null,null,null,null,null,null,null,{"$f":"入力フォーム!AK63","v":""},null,null,null,null,null,null,null,null,null,null,null,null,null,null,null,null,{"$f":"入力フォーム!AV63","v":""},null,null,null,null,null,null,null,null,null,null,null,null,null,null,null,null,null,null,null,null,null,null,null,null,null,null,null,null,null,null,null,null,null,null,null,null,null,null,null,null,null,null,null,null,null,null,{"$f":"C140","v":""},null,null,null,null,null,null,{"$f":"J140","v":""},null,null,null,null,null,null,null,{"$f":"R140","v":""},null,null,null,null,null,null,null,null,null,null,null,null,null,null,{"$f":"AG140","v":""},null,null,null,null,null,null,null,null,null,null,null,null,null,null,{"$f":"AV140","v":""},null,null,null,null,null,null,null,null,null,null,null,null,null,null,null,null,{"$f":"BM140","v":""}]
[null,null,null,null,null,null,null,"月",null,null,null,null,null,null,null,"日",null,null,null,null,null,null,null,null,null,null,null,null,null,null,"円",null,null,null,null,null,null,null,null,null,null,null,null,null,null,"円",null,null,null,null,null,null,null,null,null,null,null,null,null,null,null,null,"円",null,null,null,null,null,null,null,null,null,null,null,null,null,null,null,null,null,null,null,null,"円",null,null,"（",null,{"$f":"IF(入力フォーム!E71=\"4. 昇給・降給の理由\",入力フォーム!P71,\"\")&\"\"","v":""},null,null,null,null,null,null,null,null,null,null,null,null,null,null,null,null,null,null,"）",null,null,null,null,null,null,null,null,"月",null,null,null,null,null,null,null,"日",null,null,null,null,null,null,null,null,null,null,null,null,null,null,"円",null,null,null,null,null,null,null,null,null,null,null,null,null,null,"円",null,null,null,null,null,null,null,null,null,null,null,null,null,null,null,null,"円",null,null,null,null,null,null,null,null,null,null,null,null,null,null,null,null,null,null,null,null,"円",null,null,"（",null,{"$f":"CK141","v":""},null,null,null,null,null,null,null,null,null,null,null,null,null,null,null,null,null,null,"）"]
[]
[]
[null,null,{"$f":"入力フォーム!E64&\"\"","v":""},null,null,null,null,null,null,{"$f":"入力フォーム!K64&\"\"","v":""},null,null,null,null,null,null,null,{"$f":"IF(入力フォーム!Q64=\"\",\"\",入力フォーム!Q64)","v":""},null,null,null,null,null,null,null,null,null,null,null,null,null,null,{"$f":"IF(入力フォーム!AA64=\"\",\"\",入力フォーム!AA64)","v":""},null,null,null,null,null,null,null,null,null,null,null,null,null,null,{"$f":"入力フォーム!AK64","v":""},null,null,null,null,null,null,null,null,null,null,null,null,null,null,null,null,"⑮平均額",null,null,null,null,null,null,null,null,null,null,null,null,null,null,null,null,null,null,null,null,null,{"$f":"IF(入力フォーム!E71=\"5. 健康保険のみ月額変更　　（70歳到達時の契約変更等）\",\"○\",\"\")","v":""},null,null,null,null,null,null,null,null,null,null,null,null,null,null,null,null,null,null,null,null,null,null,null,null,{"$f":"C144","v":""},null,null,null,null,null,null,{"$f":"J144","v":""},null,null,null,null,null,null,null,{"$f":"R144","v":""},null,null,null,null,null,null,null,null,null,null,null,null,null,null,{"$f":"AG144","v":""},null,null,null,null,null,null,null,null,null,null,null,null,null,null,{"$f":"AV144","v":""},null,null,null,null,null,null,null,null,null,null,null,null,null,null,null,null,"⑮平均額",null,null,null,null,null,null,null,null,null,null,null,null,null,null,null,null,null,null,null,null,null,{"$f":"CI144","v":""}]
[]
[null,null,null,null,null,null,null,null,null,null,null,null,null,null,null,null,null,null,null,null,null,null,null,null,null,null,null,null,null,null,null,null,null,null,null,null,null,null,null,null,null,null,null,null,null,null,null,null,null,null,null,null,null,null,null,null,null,null,null,null,null,null,null,null,{"$f":"入力フォーム!AV64","v":""},null,null,null,null,null,null,null,null,null,null,null,null,null,null,null,null,null,null,null,null,null,null,null,null,null,null,null,null,null,null,null,null,null,null,null,null,null,null,null,null,null,null,null,null,null,null,null,null,null,null,null,null,null,null,null,null,null,null,null,null,null,null,null,null,null,null,null,null,null,null,null,null,null,null,null,null,null,null,null,null,null,null,null,null,null,null,null,null,null,null,null,null,null,null,null,null,null,null,null,null,null,null,null,null,null,null,null,null,{"$f":"BM146","v":""}]
[null,null,null,null,null,null,null,"月",null,null,null,null,null,null,null,"日",null,null,null,null,null,null,null,null,null,null,null,null,null,null,"円",null,null,null,null,null,null,null,null,null,null,null,null,null,null,"円",null,null,null,null,null,null,null,null,null,null,null,null,null,null,null,null,"円",null,null,null,null,null,null,null,null,null,null,null,null,null,null,null,null,null,null,null,null,"円",null,null,{"$f":"IF(入力フォーム!E71=\"6. その他\",\"○\",\"\")","v":""},null,null,null,null,null,"（",null,{"$f":"IF(入力フォーム!E71=\"6. その他\",入力フォーム!P71,\"\")","v":""},null,null,null,null,null,null,null,null,null,null,null,null,"）",null,null,null,null,null,null,null,null,"月",null,null,null,null,null,null,null,"日",null,null,null,null,null,null,null,null,null,null,null,null,null,null,"円",null,null,null,null,null,null,null,null,null,null,null,null,null,null,"円",null,null,null,null,null,null,null,null,null,null,null,null,null,null,null,null,"円",null,null,null,null,null,null,null,null,null,null,null,null,null,null,null,null,null,null,null,null,"円",null,null,{"$f":"CI147","v":""},null,null,null,null,null,"（",null,{"$f":"CQ147","v":""},null,null,null,null,null,null,null,null,null,null,null,null,"）"]
[]
[]
[null,null,{"$f":"入力フォーム!E65&\"\"","v":""},null,null,null,null,null,null,{"$f":"入力フォーム!K65&\"\"","v":""},null,null,null,null,null,null,null,{"$f":"IF(入力フォーム!Q65=\"\",\"\",入力フォーム!Q65)","v":""},null,null,null,null,null,null,null,null,null,null,null,null,null,null,{"$f":"IF(入力フォーム!AA65=\"\",\"\",入力フォーム!AA65)","v":""},null,null,null,null,null,null,null,null,null,null,null,null,null,null,{"$f":"入力フォーム!AK65","v":""},null,null,null,null,null,null,null,null,null,null,null,null,null,null,null,null,"⑯修正平均額",null,null,null,null,null,null,null,null,null,null,null,null,null,null,null,null,null,null,null,null,"※　標準\n報酬\n月額",null,null,null,null,null,null,"健",null,null,{"$f":"IF(BM152=\"\",IF(BM146=\"\",\"\",VLOOKUP(BM146,標準報酬!$B$13:$F$62,5,1)),VLOOKUP(BM152,標準報酬!$B$13:$F$62,5,1))","v":""},null,null,null,null,null,null,null,null,null,null,null,null,null,null,null,{"$f":"C150","v":""},null,null,null,null,null,null,{"$f":"J150","v":""},null,null,null,null,null,null,null,{"$f":"R150","v":""},null,null,null,null,null,null,null,null,null,null,null,null,null,null,{"$f":"AG150","v":""},null,null,null,null,null,null,null,null,null,null,null,null,null,null,{"$f":"AV150","v":""},null,null,null,null,null,null,null,null,null,null,null,null,null,null,null,null,"⑯修正平均額"]
[]
[null,null,null,null,null,null,null,null,null,null,null,null,null,null,null,null,null,null,null,null,null,null,null,null,null,null,null,null,null,null,null,null,null,null,null,null,null,null,null,null,null,null,null,null,null,null,null,null,null,null,null,null,null,null,null,null,null,null,null,null,null,null,null,null,{"$f":"IF(入力フォーム!AV65=\"\",\"\",入力フォーム!AV65)","v":""},null,null,null,null,null,null,null,null,null,null,null,null,null,null,null,null,null,null,null,null,null,null,null,null,null,null,null,null,null,null,null,null,null,null,null,null,null,null,null,null,null,null,null,null,null,null,null,null,null,null,null,null,null,null,null,null,null,null,null,null,null,null,null,null,null,null,null,null,null,null,null,null,null,null,null,null,null,null,null,null,null,null,null,null,null,null,null,null,null,null,null,null,null,null,null,null,null,null,null,null,null,null,null,null,null,null,null,null,{"$f":"BM152&\"\"","v":""}]
[null,null,null,null,null,null,null,"月",null,null,null,null,null,null,null,"日",null,null,null,null,null,null,null,null,null,null,null,null,null,null,"円",null,null,null,null,null,null,null,null,null,null,null,null,null,null,"円",null,null,null,null,null,null,null,null,null,null,null,null,null,null,null,null,"円",null,null,null,null,null,null,null,null,null,null,null,null,null,null,null,null,null,null,null,null,"円",null,null,null,null,null,null,null,null,null,null,null,null,null,null,null,null,null,null,null,null,null,"千円",null,null,null,null,null,null,null,null,null,null,"月",null,null,null,null,null,null,null,"日",null,null,null,null,null,null,null,null,null,null,null,null,null,null,"円",null,null,null,null,null,null,null,null,null,null,null,null,null,null,"円",null,null,null,null,null,null,null,null,null,null,null,null,null,null,null,null,"円",null,null,null,null,null,null,null,null,null,null,null,null,null,null,null,null,null,null,null,null,"円"]
[]
[]
[]
[null,null,{"$f":"入力フォーム!E75&\"\"","v":""},null,null,null,null,null,null,null,null,null,null,null,null,null,null,{"$f":"入力フォーム!O75&\"\"","v":""},null,null,null,null,null,null,null,null,null,null,null,null,null,null,null,null,null,null,null,null,null,null,null,null,null,null,null,null,null,{"$f":"入力フォーム!AD87","v":""},null,null,null,null,null,null,null,null,null,null,null,null,null,null,null,null,null,null,null,null,null,null,null,null,{"$f":"入力フォーム!AZ75&\"\"","v":""},null,null,null,null,null,null,{"$f":"入力フォーム!BD75&\"\"","v":""},null,null,null,null,null,{"$f":"入力フォーム!E87&\"\"","v":""},null,{"$f":"入力フォーム!G87&\"\"","v":""},null,{"$f":"入力フォーム!I87&\"\"","v":""},null,{"$f":"入力フォーム!K87&\"\"","v":""},null,{"$f":"入力フォーム!M87&\"\"","v":""},null,{"$f":"入力フォーム!O87&\"\"","v":""},null,{"$f":"入力フォーム!Q87&\"\"","v":""},null,{"$f":"入力フォーム!S87&\"\"","v":""},null,{"$f":"入力フォーム!U87&\"\"","v":""},null,{"$f":"入力フォーム!W87&\"\"","v":""},null,{"$f":"入力フォーム!Y87&\"\"","v":""},null,{"$f":"入力フォーム!AA87&\"\"","v":""},null,null,null,{"$f":"C157","v":""},null,null,null,null,null,null,null,null,null,null,null,null,null,null,{"$f":"R157","v":""},null,null,null,null,null,null,null,null,null,null,null,null,null,null,null,null,null,null,null,null,null,null,null,null,null,null,null,null,null,{"$f":"AV157","v":""},null,null,null,null,null,null,null,null,null,null,null,null,null,null,null,null,null,null,null,null,null,null,null,null,{"$f":"BU157","v":""},null,null,null,null,null,null,{"$f":"CB157","v":""},null,null,null,null,null,{"$f":"CH157","v":""},null,{"$f":"CJ157","v":""},null,{"$f":"CL157","v":""},null,{"$f":"CN157","v":""},null,{"$f":"CP157","v":""},null,{"$f":"CR157","v":""},null,{"$f":"CT157","v":""},null,{"$f":"CV157","v":""},null,{"$f":"CX157","v":""},null,{"$f":"CZ157","v":""},null,{"$f":"DB157","v":""},null,{"$f":"DD157","v":""}]
[]
[]
[null,null,null,null,null,null,null,null,null,null,null,null,null,null,null,null,null,null,null,null,null,null,null,null,null,null,null,null,null,null,null,null,null,null,null,null,null,null,null,null,null,null,null,null,null,null,null,null,null,null,null,null,null,null,null,null,null,null,null,null,null,null,null,null,null,null,null,null,null,null,null,null,null,null,null,null,null,"年",null,null,null,null,null,"月",null,null,null,null,null,null,null,null,null,null,null,null,null,null,null,null,null,null,null,null,null,null,null,null,null,null,null,null,null,null,null,null,null,null,null,null,null,null,null,null,null,null,null,null,null,null,null,null,null,null,null,null,null,null,null,null,null,null,null,null,null,null,null,null,null,null,null,null,null,null,null,null,null,null,null,null,null,null,null,null,null,null,null,null,null,null,null,null,null,null,null,null,null,null,null,null,null,null,null,null,null,null,"年",null,null,null,null,null,"月"]
[]
[]
[null,null,"健",null,null,{"$f":"入力フォーム!I78&\"\"","v":""},null,null,null,null,null,null,null,null,"賜",null,null,"厚",null,null,{"$f":"入力フォーム!S78&\"\"","v":""},null,null,null,null,null,null,null,null,null,null,null,null,{"$f":"入力フォーム!AB78&\"\"","v":""},null,null,null,null,null,null,{"$f":"入力フォーム!AF78&\"\"","v":""},null,null,null,null,null,null,"⑦昇(降)給",null,null,null,null,null,null,null,null,{"$f":"IF(入力フォーム!AO78=\"1.　昇給\",\"○\",\"\")","v":""},null,null,null,null,null,null,null,"⑧遡及支払額",null,null,null,null,null,null,null,null,{"$f":"IF(入力フォーム!AZ78=\"\",\"\",入力フォーム!AZ78)","v":""},null,null,null,null,null,null,null,null,null,null,null,null,null,null,null,null,null,null,null,null,null,null,null,null,null,null,null,null,null,null,null,null,null,null,null,null,null,"健",null,null,{"$f":"F163","v":""},null,null,null,null,null,null,null,null,null,null,null,"厚",null,null,{"$f":"U163","v":""},null,null,null,null,null,null,null,null,null,null,null,null,{"$f":"AH163","v":""},null,null,null,null,null,null,{"$f":"AO163","v":""},null,null,null,null,null,null,"⑦昇(降)給",null,null,null,null,null,null,null,null,{"$f":"BE163","v":""},null,null,null,null,null,null,null,"⑧遡及支払額",null,null,null,null,null,null,null,null,{"$f":"BV163","v":""}]
[null,null,null,null,null,null,null,null,null,null,null,null,null,null,null,null,null,null,null,null,null,null,null,null,null,null,null,null,null,null,null,null,null,null,null,null,null,null,null,null,null,null,null,null,null,null,null,null,null,null,null,null,null,null,null,null,null,null,null,null,null,null,null,null,null,null,null,null,null,null,null,null,null,null,null,null,null,null,null,null,null,null,null,null,null,null,{"$f":"IF(入力フォーム!E90=\"1．70歳以上被用者月額変更\",\"○\",\"\")","v":""},null,null,null,null,null,null,null,null,null,null,null,null,null,{"$f":"IF(入力フォーム!E90=\"2. 二以上勤務\",\"○\",\"\")","v":""},null,null,null,null,null,null,null,null,null,null,null,null,null,null,null,null,null,null,null,null,null,null,null,null,null,null,null,null,null,null,null,null,null,null,null,null,null,null,null,null,null,null,null,null,null,null,null,null,null,null,null,null,null,null,null,null,null,null,null,null,null,null,null,null,null,null,null,null,null,null,null,null,null,null,null,null,null,null,null,null,null,null,null,null,null,null,null,null,null,null,null,null,null,null,{"$f":"CI164","v":""},null,null,null,null,null,null,null,null,null,null,null,null,null,{"$f":"CW164","v":""}]
[null,null,null,null,null,null,null,null,null,null,null,null,null,null,null,null,null,null,null,null,null,null,null,null,null,null,null,null,null,null,null,null,null,null,null,null,null,null,null,null,null,null,null,null,null,null,null,{"$f":"入力フォーム!AJ78&\"\"","v":""},null,null,null,null,null,null,"月",null,null,null,null,null,null,null,null,null,{"$f":"入力フォーム!AV78&\"\"","v":""},null,null,null,null,null,null,null,null,null,null,null,null,null,null,null,null,null,null,null,null,null,null,null,null,null,null,null,null,null,null,null,null,null,null,null,null,null,null,null,null,null,null,null,null,null,null,null,null,null,null,null,null,null,null,null,null,null,null,null,null,null,null,null,null,null,null,null,null,null,null,null,null,null,null,null,null,null,null,null,null,null,null,null,null,null,null,null,null,null,null,null,{"$f":"AV165","v":""},null,null,null,null,null,null,"月",null,null,null,null,null,null,null,null,null,{"$f":"BM165","v":""}]
[null,null,null,null,null,null,null,null,null,null,null,null,null,null,"千円",null,null,null,null,null,null,null,null,null,null,null,null,null,null,"千円",null,null,null,null,null,null,null,null,"年",null,null,null,null,null,null,"月",null,null,null,null,null,null,null,null,null,null,{"$f":"IF(入力フォーム!AO78=\"2.　降給\",\"○\",\"\")","v":""},null,null,null,null,null,null,null,null,null,null,null,null,null,null,"月",null,null,null,null,null,null,null,null,null,null,null,"円",null,null,null,null,null,null,null,null,null,null,null,null,null,null,null,null,null,null,null,null,null,null,null,null,null,null,null,null,null,null,null,null,null,null,null,null,null,null,null,"千円",null,null,null,null,null,null,null,null,null,null,null,null,null,null,"千円",null,null,null,null,null,null,null,null,"年",null,null,null,null,null,null,"月",null,null,null,null,null,null,null,null,null,null,{"$f":"BE166","v":""},null,null,null,null,null,null,null,null,null,null,null,null,null,null,"月",null,null,null,null,null,null,null,null,null,null,null,"円"]
[null,null,null,null,null,null,null,null,null,null,null,null,null,null,null,null,null,null,null,null,null,null,null,null,null,null,null,null,null,null,null,null,null,null,null,null,null,null,null,null,null,null,null,null,null,null,null,null,null,null,null,null,null,null,null,null,null,null,null,null,null,null,null,null,null,null,null,null,null,null,null,null,null,null,null,null,null,null,null,null,null,null,null,null,null,null,{"$f":"IF(入力フォーム!E90=\"3. 短時間労働者（特定適用事業所等）\",\"○\",\"\")","v":""},null,null,null,null,null,null,null,null,null,null,null,null,null,null,null,null,null,null,null,null,null,null,null,null,null,null,null,null,null,null,null,null,null,null,null,null,null,null,null,null,null,null,null,null,null,null,null,null,null,null,null,null,null,null,null,null,null,null,null,null,null,null,null,null,null,null,null,null,null,null,null,null,null,null,null,null,null,null,null,null,null,null,null,null,null,null,null,null,null,null,null,null,null,null,null,null,null,null,null,null,null,null,null,null,null,null,null,null,{"$f":"CI167","v":""}]
[]
[null,null,"⑨支給月",null,null,null,null,null,null,"⑩日数",null,null,null,null,null,null,null,"⑪通貨",null,null,null,null,null,null,null,null,null,null,null,null,null,null,"⑫現物",null,null,null,null,null,null,null,null,null,null,null,null,null,null,"⑬合計(⑪＋⑫)",null,null,null,null,null,null,null,null,null,null,null,null,null,null,null,null,"⑭総計",null,null,null,null,null,null,null,null,null,null,null,null,null,null,null,null,null,null,null,null,null,null,null,null,null,null,null,null,null,null,null,null,null,null,null,null,null,null,null,null,null,null,null,null,null,null,"⑨支給月",null,null,null,null,null,null,"⑩日数",null,null,null,null,null,null,null,"⑪通貨",null,null,null,null,null,null,null,null,null,null,null,null,null,null,"⑫現物",null,null,null,null,null,null,null,null,null,null,null,null,null,null,"⑬合計(⑪＋⑫)",null,null,null,null,null,null,null,null,null,null,null,null,null,null,null,null,"⑭総計"]
[null,null,null,null,null,null,null,null,null,null,null,null,null,null,null,null,null,null,null,null,null,null,null,null,null,null,null,null,null,null,null,null,null,null,null,null,null,null,null,null,null,null,null,null,null,null,null,null,null,null,null,null,null,null,null,null,null,null,null,null,null,null,null,null,null,null,null,null,null,null,null,null,null,null,null,null,null,null,null,null,null,null,null,null,null,null,{"$f":"IF(入力フォーム!E90=\"4. 昇給・降給の理由\",\"○\",\"\")","v":"○"},null,null,null,null,null,null,null,null,null,null,null,null,null,null,null,null,null,null,null,null,null,null,null,null,null,null,null,null,null,null,null,null,null,null,null,null,null,null,null,null,null,null,null,null,null,null,null,null,null,null,null,null,null,null,null,null,null,null,null,null,null,null,null,null,null,null,null,null,null,null,null,null,null,null,null,null,null,null,null,null,null,null,null,null,null,null,null,null,null,null,null,null,null,null,null,null,null,null,null,null,null,null,null,null,null,null,null,null,{"$f":"CI170","v":"○"}]
[null,null,{"$f":"入力フォーム!E82&\"\"","v":""},null,null,null,null,null,null,{"$f":"入力フォーム!K82&\"\"","v":""},null,null,null,null,null,null,null,{"$f":"IF(入力フォーム!Q82=\"\",\"\",入力フォーム!Q82)","v":""},null,null,null,null,null,null,null,null,null,null,null,null,null,null,{"$f":"IF(入力フォーム!AA82=\"\",\"\",入力フォーム!AA82)","v":""},null,null,null,null,null,null,null,null,null,null,null,null,null,null,{"$f":"入力フォーム!AK82","v":""},null,null,null,null,null,null,null,null,null,null,null,null,null,null,null,null,{"$f":"入力フォーム!AV82","v":""},null,null,null,null,null,null,null,null,null,null,null,null,null,null,null,null,null,null,null,null,null,null,null,null,null,null,null,null,null,null,null,null,null,null,null,null,null,null,null,null,null,null,null,null,null,null,{"$f":"C171","v":""},null,null,null,null,null,null,{"$f":"J171","v":""},null,null,null,null,null,null,null,{"$f":"R171","v":""},null,null,null,null,null,null,null,null,null,null,null,null,null,null,{"$f":"AG171","v":""},null,null,null,null,null,null,null,null,null,null,null,null,null,null,{"$f":"AV171","v":""},null,null,null,null,null,null,null,null,null,null,null,null,null,null,null,null,{"$f":"BM171","v":""}]
[null,null,null,null,null,null,null,"月",null,null,null,null,null,null,null,"日",null,null,null,null,null,null,null,null,null,null,null,null,null,null,"円",null,null,null,null,null,null,null,null,null,null,null,null,null,null,"円",null,null,null,null,null,null,null,null,null,null,null,null,null,null,null,null,"円",null,null,null,null,null,null,null,null,null,null,null,null,null,null,null,null,null,null,null,null,"円",null,null,"（",null,{"$f":"IF(入力フォーム!E90=\"4. 昇給・降給の理由\",入力フォーム!P90,\"\")&\"\"","v":""},null,null,null,null,null,null,null,null,null,null,null,null,null,null,null,null,null,null,"）",null,null,null,null,null,null,null,null,"月",null,null,null,null,null,null,null,"日",null,null,null,null,null,null,null,null,null,null,null,null,null,null,"円",null,null,null,null,null,null,null,null,null,null,null,null,null,null,"円",null,null,null,null,null,null,null,null,null,null,null,null,null,null,null,null,"円",null,null,null,null,null,null,null,null,null,null,null,null,null,null,null,null,null,null,null,null,"円",null,null,"（",null,{"$f":"CK172","v":""},null,null,null,null,null,null,null,null,null,null,null,null,null,null,null,null,null,null,"）"]
[]
[]
[null,null,{"$f":"入力フォーム!E83&\"\"","v":""},null,null,null,null,null,null,{"$f":"入力フォーム!K83&\"\"","v":""},null,null,null,null,null,null,null,{"$f":"IF(入力フォーム!Q83=\"\",\"\",入力フォーム!Q83)","v":""},null,null,null,null,null,null,null,null,null,null,null,null,null,null,{"$f":"IF(入力フォーム!AA83=\"\",\"\",入力フォーム!AA83)","v":""},null,null,null,null,null,null,null,null,null,null,null,null,null,null,{"$f":"入力フォーム!AK83","v":""},null,null,null,null,null,null,null,null,null,null,null,null,null,null,null,null,"⑮平均額",null,null,null,null,null,null,null,null,null,null,null,null,null,null,null,null,null,null,null,null,null,{"$f":"IF(入力フォーム!E90=\"5. 健康保険のみ月額変更　　（70歳到達時の契約変更等）\",\"○\",\"\")","v":""},null,null,null,null,null,null,null,null,null,null,null,null,null,null,null,null,null,null,null,null,null,null,null,null,{"$f":"C175","v":""},null,null,null,null,null,null,{"$f":"J175","v":""},null,null,null,null,null,null,null,{"$f":"R175","v":""},null,null,null,null,null,null,null,null,null,null,null,null,null,null,{"$f":"AG175","v":""},null,null,null,null,null,null,null,null,null,null,null,null,null,null,{"$f":"AV175","v":""},null,null,null,null,null,null,null,null,null,null,null,null,null,null,null,null,"⑮平均額",null,null,null,null,null,null,null,null,null,null,null,null,null,null,null,null,null,null,null,null,null,{"$f":"CI175","v":""}]
[]
[null,null,null,null,null,null,null,null,null,null,null,null,null,null,null,null,null,null,null,null,null,null,null,null,null,null,null,null,null,null,null,null,null,null,null,null,null,null,null,null,null,null,null,null,null,null,null,null,null,null,null,null,null,null,null,null,null,null,null,null,null,null,null,null,{"$f":"入力フォーム!AV83","v":""},null,null,null,null,null,null,null,null,null,null,null,null,null,null,null,null,null,null,null,null,null,null,null,null,null,null,null,null,null,null,null,null,null,null,null,null,null,null,null,null,null,null,null,null,null,null,null,null,null,null,null,null,null,null,null,null,null,null,null,null,null,null,null,null,null,null,null,null,null,null,null,null,null,null,null,null,null,null,null,null,null,null,null,null,null,null,null,null,null,null,null,null,null,null,null,null,null,null,null,null,null,null,null,null,null,null,null,null,{"$f":"BM177","v":""}]
[null,null,null,null,null,null,null,"月",null,null,null,null,null,null,null,"日",null,null,null,null,null,null,null,null,null,null,null,null,null,null,"円",null,null,null,null,null,null,null,null,null,null,null,null,null,null,"円",null,null,null,null,null,null,null,null,null,null,null,null,null,null,null,null,"円",null,null,null,null,null,null,null,null,null,null,null,null,null,null,null,null,null,null,null,null,"円",null,null,{"$f":"IF(入力フォーム!E90=\"6. その他\",\"○\",\"\")","v":""},null,null,null,null,null,"（",null,{"$f":"IF(入力フォーム!E90=\"6. その他\",入力フォーム!P90,\"\")","v":""},null,null,null,null,null,null,null,null,null,null,null,null,"）",null,null,null,null,null,null,null,null,"月",null,null,null,null,null,null,null,"日",null,null,null,null,null,null,null,null,null,null,null,null,null,null,"円",null,null,null,null,null,null,null,null,null,null,null,null,null,null,"円",null,null,null,null,null,null,null,null,null,null,null,null,null,null,null,null,"円",null,null,null,null,null,null,null,null,null,null,null,null,null,null,null,null,null,null,null,null,"円",null,null,{"$f":"CI178","v":""},null,null,null,null,null,"（",null,{"$f":"CQ178","v":""},null,null,null,null,null,null,null,null,null,null,null,null,"）"]
[]
[]
[null,null,{"$f":"入力フォーム!E84&\"\"","v":""},null,null,null,null,null,null,{"$f":"入力フォーム!K84&\"\"","v":""},null,null,null,null,null,null,null,{"$f":"IF(入力フォーム!Q84=\"\",\"\",入力フォーム!Q84)","v":""},null,null,null,null,null,null,null,null,null,null,null,null,null,null,{"$f":"IF(入力フォーム!AA84=\"\",\"\",入力フォーム!AA84)","v":""},null,null,null,null,null,null,null,null,null,null,null,null,null,null,{"$f":"入力フォーム!AK84","v":""},null,null,null,null,null,null,null,null,null,null,null,null,null,null,null,null,"⑯修正平均額",null,null,null,null,null,null,null,null,null,null,null,null,null,null,null,null,null,null,null,null,"※　標準\n報酬\n月額",null,null,null,null,null,null,"健",null,null,{"$f":"IF(BM183=\"\",IF(BM177=\"\",\"\",VLOOKUP(BM177,標準報酬!$B$13:$F$62,5,1)),VLOOKUP(BM183,標準報酬!$B$13:$F$62,5,1))","v":""},null,null,null,null,null,null,null,null,null,null,null,null,null,null,null,{"$f":"C181","v":""},null,null,null,null,null,null,{"$f":"J181","v":""},null,null,null,null,null,null,null,{"$f":"R181","v":""},null,null,null,null,null,null,null,null,null,null,null,null,null,null,{"$f":"AG181","v":""},null,null,null,null,null,null,null,null,null,null,null,null,null,null,{"$f":"AV181","v":""},null,null,null,null,null,null,null,null,null,null,null,null,null,null,null,null,"⑯修正平均額"]
[]
[null,null,null,null,null,null,null,null,null,null,null,null,null,null,null,null,null,null,null,null,null,null,null,null,null,null,null,null,null,null,null,null,null,null,null,null,null,null,null,null,null,null,null,null,null,null,null,null,null,null,null,null,null,null,null,null,null,null,null,null,null,null,null,null,{"$f":"IF(入力フォーム!AV84=\"\",\"\",入力フォーム!AV84)","v":""},null,null,null,null,null,null,null,null,null,null,null,null,null,null,null,null,null,null,null,null,null,null,null,null,null,null,null,null,null,null,null,null,null,null,null,null,null,null,null,null,null,null,null,null,null,null,null,null,null,null,null,null,null,null,null,null,null,null,null,null,null,null,null,null,null,null,null,null,null,null,null,null,null,null,null,null,null,null,null,null,null,null,null,null,null,null,null,null,null,null,null,null,null,null,null,null,null,null,null,null,null,null,null,null,null,null,null,null,{"$f":"BM183&\"\"","v":""}]
[null,null,null,null,null,null,null,"月",null,null,null,null,null,null,null,"日",null,null,null,null,null,null,null,null,null,null,null,null,null,null,"円",null,null,null,null,null,null,null,null,null,null,null,null,null,null,"円",null,null,null,null,null,null,null,null,null,null,null,null,null,null,null,null,"円",null,null,null,null,null,null,null,null,null,null,null,null,null,null,null,null,null,null,null,null,"円",null,null,null,null,null,null,null,null,null,null,null,null,null,null,null,null,null,null,null,null,null,"千円",null,null,null,null,null,null,null,null,null,null,"月",null,null,null,null,null,null,null,"日",null,null,null,null,null,null,null,null,null,null,null,null,null,null,"円",null,null,null,null,null,null,null,null,null,null,null,null,null,null,"円",null,null,null,null,null,null,null,null,null,null,null,null,null,null,null,null,"円",null,null,null,null,null,null,null,null,null,null,null,null,null,null,null,null,null,null,null,null,"円"]
[]
[]
[]
[null,null,{"$f":"入力フォーム!E94&\"\"","v":""},null,null,null,null,null,null,null,null,null,null,null,null,null,null,{"$f":"入力フォーム!O94&\"\"","v":""},null,null,null,null,null,null,null,null,null,null,null,null,null,null,null,null,null,null,null,null,null,null,null,null,null,null,null,null,null,{"$f":"入力フォーム!AD106","v":""},null,null,null,null,null,null,null,null,null,null,null,null,null,null,null,null,null,null,null,null,null,null,null,null,{"$f":"入力フォーム!AZ94&\"\"","v":""},null,null,null,null,null,null,{"$f":"入力フォーム!BD94&\"\"","v":""},null,null,null,null,null,{"$f":"入力フォーム!E106&\"\"","v":""},null,{"$f":"入力フォーム!G106&\"\"","v":""},null,{"$f":"入力フォーム!I106&\"\"","v":""},null,{"$f":"入力フォーム!K106&\"\"","v":""},null,{"$f":"入力フォーム!M106&\"\"","v":""},null,{"$f":"入力フォーム!O106&\"\"","v":""},null,{"$f":"入力フォーム!Q106&\"\"","v":""},null,{"$f":"入力フォーム!S106&\"\"","v":""},null,{"$f":"入力フォーム!U106&\"\"","v":""},null,{"$f":"入力フォーム!W106&\"\"","v":""},null,{"$f":"入力フォーム!Y106&\"\"","v":""},null,{"$f":"入力フォーム!AA106&\"\"","v":""},null,null,null,{"$f":"C188","v":""},null,null,null,null,null,null,null,null,null,null,null,null,null,null,{"$f":"R188","v":""},null,null,null,null,null,null,null,null,null,null,null,null,null,null,null,null,null,null,null,null,null,null,null,null,null,null,null,null,null,{"$f":"AV188","v":""},null,null,null,null,null,null,null,null,null,null,null,null,null,null,null,null,null,null,null,null,null,null,null,null,{"$f":"BU188","v":""},null,null,null,null,null,null,{"$f":"CB188","v":""},null,null,null,null,null,{"$f":"CH188","v":""},null,{"$f":"CJ188","v":""},null,{"$f":"CL188","v":""},null,{"$f":"CN188","v":""},null,{"$f":"CP188","v":""},null,{"$f":"CR188","v":""},null,{"$f":"CT188","v":""},null,{"$f":"CV188","v":""},null,{"$f":"CX188","v":""},null,{"$f":"CZ188","v":""},null,{"$f":"DB188","v":""},null,{"$f":"DD188","v":""}]
[]
[]
[null,null,null,null,null,null,null,null,null,null,null,null,null,null,null,null,null,null,null,null,null,null,null,null,null,null,null,null,null,null,null,null,null,null,null,null,null,null,null,null,null,null,null,null,null,null,null,null,null,null,null,null,null,null,null,null,null,null,null,null,null,null,null,null,null,null,null,null,null,null,null,null,null,null,null,null,null,"年",null,null,null,null,null,"月",null,null,null,null,null,null,null,null,null,null,null,null,null,null,null,null,null,null,null,null,null,null,null,null,null,null,null,null,null,null,null,null,null,null,null,null,null,null,null,null,null,null,null,null,null,null,null,null,null,null,null,null,null,null,null,null,null,null,null,null,null,null,null,null,null,null,null,null,null,null,null,null,null,null,null,null,null,null,null,null,null,null,null,null,null,null,null,null,null,null,null,null,null,null,null,null,null,null,null,null,null,null,"年",null,null,null,null,null,"月"]
[]
[]
[null,null,"健",null,null,{"$f":"入力フォーム!I97&\"\"","v":""},null,null,null,null,null,null,null,null,"賜",null,null,"厚",null,null,{"$f":"入力フォーム!S97&\"\"","v":""},null,null,null,null,null,null,null,null,null,null,null,null,{"$f":"入力フォーム!AB97&\"\"","v":""},null,null,null,null,null,null,{"$f":"入力フォーム!AF97&\"\"","v":""},null,null,null,null,null,null,"⑦昇(降)給",null,null,null,null,null,null,null,null,{"$f":"IF(入力フォーム!AO97=\"1.　昇給\",\"○\",\"\")","v":""},null,null,null,null,null,null,null,"⑧遡及支払額",null,null,null,null,null,null,null,null,{"$f":"IF(入力フォーム!AZ97=\"\",\"\",入力フォーム!AZ97)","v":""},null,null,null,null,null,null,null,null,null,null,null,null,null,null,null,null,null,null,null,null,null,null,null,null,null,null,null,null,null,null,null,null,null,null,null,null,null,"健",null,null,{"$f":"F194","v":""},null,null,null,null,null,null,null,null,null,null,null,"厚",null,null,{"$f":"U194","v":""},null,null,null,null,null,null,null,null,null,null,null,null,{"$f":"AH194","v":""},null,null,null,null,null,null,{"$f":"AO194","v":""},null,null,null,null,null,null,"⑦昇(降)給",null,null,null,null,null,null,null,null,{"$f":"BE194","v":""},null,null,null,null,null,null,null,"⑧遡及支払額",null,null,null,null,null,null,null,null,{"$f":"BV194","v":""}]
[null,null,null,null,null,null,null,null,null,null,null,null,null,null,null,null,null,null,null,null,null,null,null,null,null,null,null,null,null,null,null,null,null,null,null,null,null,null,null,null,null,null,null,null,null,null,null,null,null,null,null,null,null,null,null,null,null,null,null,null,null,null,null,null,null,null,null,null,null,null,null,null,null,null,null,null,null,null,null,null,null,null,null,null,null,null,{"$f":"IF(入力フォーム!E109=\"1．70歳以上被用者月額変更\",\"○\",\"\")","v":""},null,null,null,null,null,null,null,null,null,null,null,null,null,{"$f":"IF(入力フォーム!E109=\"2. 二以上勤務\",\"○\",\"\")","v":""},null,null,null,null,null,null,null,null,null,null,null,null,null,null,null,null,null,null,null,null,null,null,null,null,null,null,null,null,null,null,null,null,null,null,null,null,null,null,null,null,null,null,null,null,null,null,null,null,null,null,null,null,null,null,null,null,null,null,null,null,null,null,null,null,null,null,null,null,null,null,null,null,null,null,null,null,null,null,null,null,null,null,null,null,null,null,null,null,null,null,null,null,null,null,{"$f":"CI195","v":""},null,null,null,null,null,null,null,null,null,null,null,null,null,{"$f":"CW195","v":""}]
[null,null,null,null,null,null,null,null,null,null,null,null,null,null,null,null,null,null,null,null,null,null,null,null,null,null,null,null,null,null,null,null,null,null,null,null,null,null,null,null,null,null,null,null,null,null,null,{"$f":"入力フォーム!AJ97&\"\"","v":""},null,null,null,null,null,null,"月",null,null,null,null,null,null,null,null,null,{"$f":"入力フォーム!AV97&\"\"","v":""},null,null,null,null,null,null,null,null,null,null,null,null,null,null,null,null,null,null,null,null,null,null,null,null,null,null,null,null,null,null,null,null,null,null,null,null,null,null,null,null,null,null,null,null,null,null,null,null,null,null,null,null,null,null,null,null,null,null,null,null,null,null,null,null,null,null,null,null,null,null,null,null,null,null,null,null,null,null,null,null,null,null,null,null,null,null,null,null,null,null,null,{"$f":"AV196","v":""},null,null,null,null,null,null,"月",null,null,null,null,null,null,null,null,null,{"$f":"BM196","v":""}]
[null,null,null,null,null,null,null,null,null,null,null,null,null,null,"千円",null,null,null,null,null,null,null,null,null,null,null,null,null,null,"千円",null,null,null,null,null,null,null,null,"年",null,null,null,null,null,null,"月",null,null,null,null,null,null,null,null,null,null,{"$f":"IF(入力フォーム!AO97=\"2.　降給\",\"○\",\"\")","v":""},null,null,null,null,null,null,null,null,null,null,null,null,null,null,"月",null,null,null,null,null,null,null,null,null,null,null,"円",null,null,null,null,null,null,null,null,null,null,null,null,null,null,null,null,null,null,null,null,null,null,null,null,null,null,null,null,null,null,null,null,null,null,null,null,null,null,null,"千円",null,null,null,null,null,null,null,null,null,null,null,null,null,null,"千円",null,null,null,null,null,null,null,null,"年",null,null,null,null,null,null,"月",null,null,null,null,null,null,null,null,null,null,{"$f":"BE197","v":""},null,null,null,null,null,null,null,null,null,null,null,null,null,null,"月",null,null,null,null,null,null,null,null,null,null,null,"円"]
[null,null,null,null,null,null,null,null,null,null,null,null,null,null,null,null,null,null,null,null,null,null,null,null,null,null,null,null,null,null,null,null,null,null,null,null,null,null,null,null,null,null,null,null,null,null,null,null,null,null,null,null,null,null,null,null,null,null,null,null,null,null,null,null,null,null,null,null,null,null,null,null,null,null,null,null,null,null,null,null,null,null,null,null,null,null,{"$f":"IF(入力フォーム!E109=\"3. 短時間労働者（特定適用事業所等）\",\"○\",\"\")","v":""},null,null,null,null,null,null,null,null,null,null,null,null,null,null,null,null,null,null,null,null,null,null,null,null,null,null,null,null,null,null,null,null,null,null,null,null,null,null,null,null,null,null,null,null,null,null,null,null,null,null,null,null,null,null,null,null,null,null,null,null,null,null,null,null,null,null,null,null,null,null,null,null,null,null,null,null,null,null,null,null,null,null,null,null,null,null,null,null,null,null,null,null,null,null,null,null,null,null,null,null,null,null,null,null,null,null,null,null,{"$f":"CI198","v":""}]
[]
[null,null,"⑨支給月",null,null,null,null,null,null,"⑩日数",null,null,null,null,null,null,null,"⑪通貨",null,null,null,null,null,null,null,null,null,null,null,null,null,null,"⑫現物",null,null,null,null,null,null,null,null,null,null,null,null,null,null,"⑬合計(⑪＋⑫)",null,null,null,null,null,null,null,null,null,null,null,null,null,null,null,null,"⑭総計",null,null,null,null,null,null,null,null,null,null,null,null,null,null,null,null,null,null,null,null,null,null,null,null,null,null,null,null,null,null,null,null,null,null,null,null,null,null,null,null,null,null,null,null,null,null,"⑨支給月",null,null,null,null,null,null,"⑩日数",null,null,null,null,null,null,null,"⑪通貨",null,null,null,null,null,null,null,null,null,null,null,null,null,null,"⑫現物",null,null,null,null,null,null,null,null,null,null,null,null,null,null,"⑬合計(⑪＋⑫)",null,null,null,null,null,null,null,null,null,null,null,null,null,null,null,null,"⑭総計"]
[null,null,null,null,null,null,null,null,null,null,null,null,null,null,null,null,null,null,null,null,null,null,null,null,null,null,null,null,null,null,null,null,null,null,null,null,null,null,null,null,null,null,null,null,null,null,null,null,null,null,null,null,null,null,null,null,null,null,null,null,null,null,null,null,null,null,null,null,null,null,null,null,null,null,null,null,null,null,null,null,null,null,null,null,null,null,{"$f":"IF(入力フォーム!E109=\"4. 昇給・降給の理由\",\"○\",\"\")","v":"○"},null,null,null,null,null,null,null,null,null,null,null,null,null,null,null,null,null,null,null,null,null,null,null,null,null,null,null,null,null,null,null,null,null,null,null,null,null,null,null,null,null,null,null,null,null,null,null,null,null,null,null,null,null,null,null,null,null,null,null,null,null,null,null,null,null,null,null,null,null,null,null,null,null,null,null,null,null,null,null,null,null,null,null,null,null,null,null,null,null,null,null,null,null,null,null,null,null,null,null,null,null,null,null,null,null,null,null,null,{"$f":"CI201","v":"○"}]
[null,null,{"$f":"入力フォーム!E101&\"\"","v":""},null,null,null,null,null,null,{"$f":"入力フォーム!K101&\"\"","v":""},null,null,null,null,null,null,null,{"$f":"IF(入力フォーム!Q101=\"\",\"\",入力フォーム!Q101)","v":""},null,null,null,null,null,null,null,null,null,null,null,null,null,null,{"$f":"IF(入力フォーム!AA101=\"\",\"\",入力フォーム!AA101)","v":""},null,null,null,null,null,null,null,null,null,null,null,null,null,null,{"$f":"入力フォーム!AK101","v":""},null,null,null,null,null,null,null,null,null,null,null,null,null,null,null,null,{"$f":"入力フォーム!AV101","v":""},null,null,null,null,null,null,null,null,null,null,null,null,null,null,null,null,null,null,null,null,null,null,null,null,null,null,null,null,null,null,null,null,null,null,null,null,null,null,null,null,null,null,null,null,null,null,{"$f":"C202","v":""},null,null,null,null,null,null,{"$f":"J202","v":""},null,null,null,null,null,null,null,{"$f":"R202","v":""},null,null,null,null,null,null,null,null,null,null,null,null,null,null,{"$f":"AG202","v":""},null,null,null,null,null,null,null,null,null,null,null,null,null,null,{"$f":"AV202","v":""},null,null,null,null,null,null,null,null,null,null,null,null,null,null,null,null,{"$f":"BM202","v":""}]
[null,null,null,null,null,null,null,"月",null,null,null,null,null,null,null,"日",null,null,null,null,null,null,null,null,null,null,null,null,null,null,"円",null,null,null,null,null,null,null,null,null,null,null,null,null,null,"円",null,null,null,null,null,null,null,null,null,null,null,null,null,null,null,null,"円",null,null,null,null,null,null,null,null,null,null,null,null,null,null,null,null,null,null,null,null,"円",null,null,"（",null,{"$f":"IF(入力フォーム!E109=\"4. 昇給・降給の理由\",入力フォーム!P109,\"\")&\"\"","v":""},null,null,null,null,null,null,null,null,null,null,null,null,null,null,null,null,null,null,"）",null,null,null,null,null,null,null,null,"月",null,null,null,null,null,null,null,"日",null,null,null,null,null,null,null,null,null,null,null,null,null,null,"円",null,null,null,null,null,null,null,null,null,null,null,null,null,null,"円",null,null,null,null,null,null,null,null,null,null,null,null,null,null,null,null,"円",null,null,null,null,null,null,null,null,null,null,null,null,null,null,null,null,null,null,null,null,"円",null,null,"（",null,{"$f":"CK203","v":""},null,null,null,null,null,null,null,null,null,null,null,null,null,null,null,null,null,null,"）"]
[]
[]
[null,null,{"$f":"入力フォーム!E102&\"\"","v":""},null,null,null,null,null,null,{"$f":"入力フォーム!K102&\"\"","v":""},null,null,null,null,null,null,null,{"$f":"IF(入力フォーム!Q102=\"\",\"\",入力フォーム!Q102)","v":""},null,null,null,null,null,null,null,null,null,null,null,null,null,null,{"$f":"IF(入力フォーム!AA102=\"\",\"\",入力フォーム!AA102)","v":""},null,null,null,null,null,null,null,null,null,null,null,null,null,null,{"$f":"入力フォーム!AK102","v":""},null,null,null,null,null,null,null,null,null,null,null,null,null,null,null,null,"⑮平均額",null,null,null,null,null,null,null,null,null,null,null,null,null,null,null,null,null,null,null,null,null,{"$f":"IF(入力フォーム!E109=\"5. 健康保険のみ月額変更　　（70歳到達時の契約変更等）\",\"○\",\"\")","v":""},null,null,null,null,null,null,null,null,null,null,null,null,null,null,null,null,null,null,null,null,null,null,null,null,{"$f":"C206","v":""},null,null,null,null,null,null,{"$f":"J206","v":""},null,null,null,null,null,null,null,{"$f":"R206","v":""},null,null,null,null,null,null,null,null,null,null,null,null,null,null,{"$f":"AG206","v":""},null,null,null,null,null,null,null,null,null,null,null,null,null,null,{"$f":"AV206","v":""},null,null,null,null,null,null,null,null,null,null,null,null,null,null,null,null,"⑮平均額",null,null,null,null,null,null,null,null,null,null,null,null,null,null,null,null,null,null,null,null,null,{"$f":"CI206","v":""}]
[]
[null,null,null,null,null,null,null,null,null,null,null,null,null,null,null,null,null,null,null,null,null,null,null,null,null,null,null,null,null,null,null,null,null,null,null,null,null,null,null,null,null,null,null,null,null,null,null,null,null,null,null,null,null,null,null,null,null,null,null,null,null,null,null,null,{"$f":"入力フォーム!AV102","v":""},null,null,null,null,null,null,null,null,null,null,null,null,null,null,null,null,null,null,null,null,null,null,null,null,null,null,null,null,null,null,null,null,null,null,null,null,null,null,null,null,null,null,null,null,null,null,null,null,null,null,null,null,null,null,null,null,null,null,null,null,null,null,null,null,null,null,null,null,null,null,null,null,null,null,null,null,null,null,null,null,null,null,null,null,null,null,null,null,null,null,null,null,null,null,null,null,null,null,null,null,null,null,null,null,null,null,null,null,{"$f":"BM208","v":""}]
[null,null,null,null,null,null,null,"月",null,null,null,null,null,null,null,"日",null,null,null,null,null,null,null,null,null,null,null,null,null,null,"円",null,null,null,null,null,null,null,null,null,null,null,null,null,null,"円",null,null,null,null,null,null,null,null,null,null,null,null,null,null,null,null,"円",null,null,null,null,null,null,null,null,null,null,null,null,null,null,null,null,null,null,null,null,"円",null,null,{"$f":"IF(入力フォーム!E109=\"6. その他\",\"○\",\"\")","v":""},null,null,null,null,null,"（",null,{"$f":"IF(入力フォーム!E109=\"6. その他\",入力フォーム!P109,\"\")","v":""},null,null,null,null,null,null,null,null,null,null,null,null,"）",null,null,null,null,null,null,null,null,"月",null,null,null,null,null,null,null,"日",null,null,null,null,null,null,null,null,null,null,null,null,null,null,"円",null,null,null,null,null,null,null,null,null,null,null,null,null,null,"円",null,null,null,null,null,null,null,null,null,null,null,null,null,null,null,null,"円",null,null,null,null,null,null,null,null,null,null,null,null,null,null,null,null,null,null,null,null,"円",null,null,{"$f":"CI209","v":""},null,null,null,null,null,"（",null,{"$f":"CQ209","v":""},null,null,null,null,null,null,null,null,null,null,null,null,"）"]
[]
[]
[null,null,{"$f":"入力フォーム!E103&\"\"","v":""},null,null,null,null,null,null,{"$f":"入力フォーム!K103&\"\"","v":""},null,null,null,null,null,null,null,{"$f":"IF(入力フォーム!Q103=\"\",\"\",入力フォーム!Q103)","v":""},null,null,null,null,null,null,null,null,null,null,null,null,null,null,{"$f":"IF(入力フォーム!AA103=\"\",\"\",入力フォーム!AA103)","v":""},null,null,null,null,null,null,null,null,null,null,null,null,null,null,{"$f":"入力フォーム!AK103","v":""},null,null,null,null,null,null,null,null,null,null,null,null,null,null,null,null,"⑯修正平均額",null,null,null,null,null,null,null,null,null,null,null,null,null,null,null,null,null,null,null,null,"※　標準\n報酬\n月額",null,null,null,null,null,null,"健",null,null,{"$f":"IF(BM214=\"\",IF(BM208=\"\",\"\",VLOOKUP(BM208,標準報酬!$B$13:$F$62,5,1)),VLOOKUP(BM214,標準報酬!$B$13:$F$62,5,1))","v":""},null,null,null,null,null,null,null,null,null,null,null,null,null,null,null,{"$f":"C212","v":""},null,null,null,null,null,null,{"$f":"J212","v":""},null,null,null,null,null,null,null,{"$f":"R212","v":""},null,null,null,null,null,null,null,null,null,null,null,null,null,null,{"$f":"AG212","v":""},null,null,null,null,null,null,null,null,null,null,null,null,null,null,{"$f":"AV212","v":""},null,null,null,null,null,null,null,null,null,null,null,null,null,null,null,null,"⑯修正平均額"]
[]
[null,null,null,null,null,null,null,null,null,null,null,null,null,null,null,null,null,null,null,null,null,null,null,null,null,null,null,null,null,null,null,null,null,null,null,null,null,null,null,null,null,null,null,null,null,null,null,null,null,null,null,null,null,null,null,null,null,null,null,null,null,null,null,null,{"$f":"IF(入力フォーム!AV103=\"\",\"\",入力フォーム!AV103)","v":""},null,null,null,null,null,null,null,null,null,null,null,null,null,null,null,null,null,null,null,null,null,null,null,null,null,null,null,null,null,null,null,null,null,null,null,null,null,null,null,null,null,null,null,null,null,null,null,null,null,null,null,null,null,null,null,null,null,null,null,null,null,null,null,null,null,null,null,null,null,null,null,null,null,null,null,null,null,null,null,null,null,null,null,null,null,null,null,null,null,null,null,null,null,null,null,null,null,null,null,null,null,null,null,null,null,null,null,null,{"$f":"BM214&\"\"","v":""}]
[null,null,null,null,null,null,null,"月",null,null,null,null,null,null,null,"日",null,null,null,null,null,null,null,null,null,null,null,null,null,null,"円",null,null,null,null,null,null,null,null,null,null,null,null,null,null,"円",null,null,null,null,null,null,null,null,null,null,null,null,null,null,null,null,"円",null,null,null,null,null,null,null,null,null,null,null,null,null,null,null,null,null,null,null,null,"円",null,null,null,null,null,null,null,null,null,null,null,null,null,null,null,null,null,null,null,null,null,"千円",null,null,null,null,null,null,null,null,null,null,"月",null,null,null,null,null,null,null,"日",null,null,null,null,null,null,null,null,null,null,null,null,null,null,"円",null,null,null,null,null,null,null,null,null,null,null,null,null,null,"円",null,null,null,null,null,null,null,null,null,null,null,null,null,null,null,null,"円",null,null,null,null,null,null,null,null,null,null,null,null,null,null,null,null,null,null,null,null,"円"]
[]
[]
[]
[]
[null,"※　⑨支給月とは、給与の対象となった計算月ではなく実際に給与の支払いを行った月となります。",null,null,null,null,null,null,null,null,null,null,null,null,null,null,null,null,null,null,null,null,null,null,null,null,null,null,null,null,null,null,null,null,null,null,null,null,null,null,null,null,null,null,null,null,null,null,null,null,null,null,null,null,null,null,null,null,null,null,null,null,null,null,null,null,null,null,null,null,null,null,null,null,null,null,null,null,null,null,null,null,null,null,null,null,null,null,null,null,null,null,null,null,null,null,null,null,null,null,null,null,null,null,null,null,null,null,null,null,"※　⑨支給月とは、給与の対象となった計算月ではなく実際に給与の支払いを行った月となります。"]

{"sheet":"裏面","index":2,"n_rows":64,"n_cols":70,"rows_kept":64,"cut":false,"hidden":false,"merged":[[60,1,60,108],[61,1,61,108],[62,1,62,108],[63,1,63,108],[54,1,54,108],[55,1,55,108],[56,1,56,5],[57,1,57,108],[58,1,58,108],[59,1,59,108],[48,1,48,13],[48,15,48,108],[49,1,49,6],[51,1,51,108],[52,1,52,108],[45,1,45,13],[45,15,45,108],[46,1,46,13],[46,15,46,108],[47,1,47,13],[47,15,47,108],[42,1,42,13],[42,15,42,108],[43,1,43,13],[43,15,43,108],[44,1,44,13],[44,15,44,108],[39,1,39,13],[39,15,39,108],[40,1,40,13],[40,15,40,108],[41,1,41,13],[41,15,41,108],[36,1,36,13],[36,15,36,108],[37,1,37,13],[37,15,37,108],[38,1,38,13],[38,15,38,108],[33,1,33,13],[33,15,33,108],[34,1,34,13],[34,15,34,108],[35,1,35,13],[35,15,35,108],[29,1,29,13],[29,15,29,108],[30,15,30,108],[31,1,31,13],[31,15,31,108],[32,1,32,13],[32,15,32,108],[26,1,26,13],[26,15,26,108],[27,1,27,13],[27,15,27,108],[28,1,28,13],[28,15,28,108],[23,1,23,13],[23,15,23,108],[24,1,24,13],[24,15,24,108],[25,1,25,13],[25,15,25,108],[20,1,20,13],[20,15,20,108],[21,1,21,13],[21,15,21,108],[22,1,22,13],[22,15,22,108],[17,1,17,13],[17,67,17,68],[17,69,18,79],[18,1,18,13],[19,1,19,13],[19,15,19,108],[13,43,14,44],[13,45,14,46],[14,1,14,13],[15,1,15,13],[15,15,15,108],[16,1,16,13],[13,1,13,13],[13,35,14,36],[13,37,14,38],[13,39,14,40],[13,41,14,42],[13,55,14,65],[13,66,14,79],[13,19,14,30],[7,1,7,108],[9,1,9,108],[12,1,12,13],[12,15,12,108],[1,1,1,108],[2,1,2,108],[3,1,3,108],[4,1,4,108],[5,1,5,108],[6,1,6,108],[8,1,8,108]]}
[]
[null,"この届書は、固定的賃金の変動により、報酬に大幅な変動があった場合にご提出いただくものです。"]
[null,"・月額変更となるのは、以下のすべてに該当した場合となります。"]
[null,"　　昇給・降給等により固定的賃金に変動があった場合（日給から月給など賃金体系の変更の場合を含む)"]
[null,"　　固定的賃金に変動があった月以降3カ月すべての「⑩給与計算の基礎日数」が17日以上ある場合"]
[null,"　　（特定適用事業所等における「短時間労働者」の場合は11日以上）"]
[null,"　　改定後の標準報酬月額と改定前の標準報酬月額に2等級以上の差が生じている場合"]
[null,"・70歳以上の方について提出する場合は、「⑱備考」欄の「1.70歳以上被用者月額変更」を○で囲み、個人番号（または基礎年金番号）"]
[null,"　を「⑰個人番号」欄にご記入ください。"]
[null,"・年間平均による申し立てを行う場合は、一度健康保険組合までお問い合わせください。"]
[]
[null,"記入方法"]
[null,"提出者記入欄",null,null,null,null,null,null,null,null,null,null,null,null,":","事業所整理記号は下図を参照し、新規適用時または名称･所在地変更時に付された記号をご記入ください。"]
[null,null,null,null,null,null,null,null,null,null,null,null,null,null,null,null,null,null,null,"厚生年金保険\n事 業 所\n整理記号",null,null,null,null,null,null,null,null,null,null,null,null,null,null,null,0,null,1,null,"-",null,"イ",null,"ロ",null,"ハ",null,null,null,null,null,null,null,null,null,"健康保険\n事業所記号",null,null,null,null,null,null,null,null,null,null,"1　1　1"]
[null,"　　　　　　　　　　　　　"]
[null,"①被保険者整理番号",null,null,null,null,null,null,null,null,null,null,null,null,":","資格取得時に払い出しされた被保険者整理番号を、必ずご記入ください。"]
[null,"③生年月日",null,null,null,null,null,null,null,null,null,null,null,null,":","該当する元号の番号と、年月日を下図のようにご記入ください。"]
[null,null,null,null,null,null,null,null,null,null,null,null,null,null,null,null,"【元号】　　　１．明治　　３．大正　　５．昭和　　７．平成",null,null,null,null,null,null,null,null,null,null,null,null,null,null,null,null,null,null,null,null,null,null,null,null,null,null,null,null,null,null,null,null,null,null,null,null,null,null,null,null,null,null,null,null,null,null,null,null,null,null,"③",null,"5-630503"]
[null,"　",null,null,null,null,null,null,null,null,null,null,null,null,null,null,"【記入例】　　昭和63年5月3日の場合"]
[null,"④改定年月",null,null,null,null,null,null,null,null,null,null,null,null,":","標準報酬月額が改定される年月をご記入ください。変動後の賃金を支払った月から4カ月目となります。"]
[null,"⑤従前の標準報酬月額",null,null,null,null,null,null,null,null,null,null,null,null,":","現在の標準報酬月額を千円単位でご記入ください。"]
[null,"⑥従前改定月",null,null,null,null,null,null,null,null,null,null,null,null,":","「⑤従前の標準報酬月額」が適用された年月をご記入ください。"]
[null,"⑦昇(降)給　",null,null,null,null,null,null,null,null,null,null,null,null,":","昇給または降給のあった月の支払月を記入し、該当する昇給または降給の区分を〇で囲んでください。"]
[null,"⑧遡及支払額",null,null,null,null,null,null,null,null,null,null,null,null,":","遡及分の支払があった月と支払われた遡及差額分をご記入ください。"]
[null,"⑨給与支給月",null,null,null,null,null,null,null,null,null,null,null,null,":","変動後の賃金を支払った月から3カ月をご記入ください。"]
[null,"⑩給与計算の基礎日数",null,null,null,null,null,null,null,null,null,null,null,null,":","月給･週給者は暦日数、日給･時給者は出勤日数等、報酬(給与)支払の基礎となった日数をご記入ください。"]
[null,null,null,null,null,null,null,null,null,null,null,null,null,null,null,"月給･週給者で欠勤日数分の給与を差し引く場合は、就業規則等で定められた日数から欠勤日数を除いてご記入ください。"]
[null,"　　　　　　　　　　　　　　",null,null,null,null,null,null,null,null,null,null,null,null,null," 　 ※基礎日数は給与支払日ではありませんので、ご注意ください。　　　　　　　　　　　　　　　　　　　　　　　　　　　　　　　　　"]
[null,"⑪通貨によるものの額",null,null,null,null,null,null,null,null,null,null,null,null,":","給料･手当等、名称を問わず労働の対償として金銭(通貨)で支払われるすべての合計金額をご記入ください。"]
[null,"　　　　　　　　　　　　",null,null,null,null,null,null,null,null,null,null,null,null,null,"　　※昇給がさかのぼったためその差額が支給された場合は、その差額も含めて記入し「⑧遡及支払額」に支給月と差額をご記入"]
[null,null,null,null,null,null,null,null,null,null,null,null,null,null,null,"　　ください。"]
[null,"⑫現物によるものの額",null,null,null,null,null,null,null,null,null,null,null,null,":","報酬のうち食事・住宅・被服・定期券等、金銭(通貨)以外で支払われるものについてご記入ください。"]
[null,"　　　　　　　　　　　",null,null,null,null,null,null,null,null,null,null,null,null,null,"現物によるものの額は、厚生労働大臣によって定められた額(食事･住宅については都道府県ごとに定められた価額、その他被"]
[null,"　　　　　　　　　　　　",null,null,null,null,null,null,null,null,null,null,null,null,null,"服等は時価により算定した額)をご記入ください。(健康保険組合の場合、別途規約により定めがある場合があります。)"]
[null,"⑬合計",null,null,null,null,null,null,null,null,null,null,null,null,":","「⑪通貨」と「⑫現物」の合計額をご記入ください。"]
[null,"⑭総計　",null,null,null,null,null,null,null,null,null,null,null,null,":","3カ月間の「⑬合計」を総計してください。"]
[null,"⑮平均額",null,null,null,null,null,null,null,null,null,null,null,null,":","「⑭総計」の金額を3で除して平均額を算出し、1円未満を切り捨ててください。"]
[null,"⑯修正平均額",null,null,null,null,null,null,null,null,null,null,null,null,":","昇給がさかのぼったため対象月中に差額分が含まれている場合は、差額分を除いた平均額をご記入ください。"]
[null,"⑰個人番号",null,null,null,null,null,null,null,null,null,null,null,null,":","70歳以上被用者の方のみご記入ください。また、本人確認を行ったうえで、個人番号をご記入ください。"]
[null,"（基礎年金番号）",null,null,null,null,null,null,null,null,null,null,null,null,null,"基礎年金番号を記入する場合は、年金手帳等に記載されている10桁の番号を左詰めでご記入ください。"]
[null,"⑱備考",null,null,null,null,null,null,null,null,null,null,null,null,":","「1.70歳以上被用者月額変更」は、被用者が70歳以上の方の場合に、○で囲んでください。"]
[null,"　　　　　　　　　　　",null,null,null,null,null,null,null,null,null,null,null,null,null,"「2.二以上勤務」は、被保険者（70歳以上被用者）が2カ所以上の適用事業所で勤務している場合に○で囲んでください。"]
[null,"　",null,null,null,null,null,null,null,null,null,null,null,null,null,"「3.短時間労働者」に該当する場合は、〇で囲んでください。"]
[null,"　　　　　　　　　　　　",null,null,null,null,null,null,null,null,null,null,null,null,null,"「4.昇給・降給の理由」には、基本給の変更・家族手当の支給等、昇給・降給となった具体的な理由をご記入ください。"]
[null,"　　　　　　　　　　　",null,null,null,null,null,null,null,null,null,null,null,null,null,"「5.健康保険のみ月額変更」は今まで健康保険に加入していた被保険者が、70歳到達時の契約変更等の理由により健康保険のみ"]
[null,"　　　　　　　　　　　　",null,null,null,null,null,null,null,null,null,null,null,null,null,"月額変更となる場合（70歳以上被用者月額変更には該当しないケース）に○で囲んでください。"]
[null,"　　　　　　　　　　",null,null,null,null,null,null,null,null,null,null,null,null,null,"以下に該当する場合は、「6.その他」を〇で囲み、（　）内にその内容をご記入ください。"]
[null,"　　",null,null,null,null,null,null,null,null,null,null,null,null,null,"　・月額変更の対象となる給与支給月に被保険者区分の変更があった場合　⇒（例：10月に短時間労働者へ区分変更の場合、　"]
[null,"　　　　　　　　　　　",null,null,null,null,null,null,null,null,null,null,null,null,null,"　「10/1→短時間労働者」と記入）"]
[null,"添付書類"]
[null,"・該当の場合、健康保険、厚生年金それぞれの届出に添付をお願いします。"]
[null,"・「④改定年月」の初日が、届書の受付年月日から60日以上さかのぼる場合、または改定後の標準報酬月額が改定前と比較し、5等級以上下がる場合　　"]
[null,"　　賃金台帳のコピー（昇降給のあった支払月の前月以降の４カ月分）  　　出勤簿のコピー　（昇降給のあった支払月以降の３カ月分）"]
[null,"　　※被保険者が役員の場合、次のいずれかの添付書類も必要となります。"]
[null,"　　　株主総会・取締役会等の議事録/報酬決定通知書/役員間の報酬協議書/債権放棄を証明する書類　等のコピー"]
[]
[null,"お知らせ　"]
[null,"・固定的賃金とは、支給額や支給率が決まっているもの（基本給・家族手当・住宅手当等）のことです。"]
[null,"　残業手当等は非固定的賃金のため、時間の増減に伴う残業手当の変動のみでは月額変更の対象とはなりません。　　　　　　　　　　　　　　　"]
[null,"・改定前の標準報酬月額と比較して2等級以上の差が生じる場合でも、固定的賃金が上がったが残業手当等の非固定的賃金の減少により2等級以上下がった"]
[null,"　場合、固定的賃金は下がったが非固定的賃金の増加により2等級以上上がった場合等は、月額変更の対象とはなりません。"]
[null,"・「短時間労働者」とは、1週間の所定労働時間または１カ月の所定労働日数が正社員の4分の3未満の者のうち、週20時間以上勤務する者であって、国　"]
[null,"　又は地方公共団体等に属する事業所及び被保険者数が常時501人以上の規模である企業や申出により適用対象となった事業所(特定適用事業所)に使用　"]
[null,"　されていること等、一定の条件を満たした者をいいます。"]

{"sheet":"選択項目","index":3,"n_rows":9,"n_cols":3,"rows_kept":9,"cut":false,"hidden":true,"merged":[[1,1,2,1],[1,0,2,0]]}
[]
["⑦　昇(降)給月","⑱　備考"]
[]
["選択してください","1．70歳以上被用者月額変更"]
["1.　昇給","2. 二以上勤務"]
["2.　降給","3. 短時間労働者（特定適用事業所等）"]
[null,"4. 昇給・降給の理由","←（例）基本給の増（減）、職務手当の変更　等"]
[null,"5. 健康保険のみ月額変更　　（70歳到達時の契約変更等）"]
[null,"6. その他"]

{"sheet":"標準報酬","index":4,"n_rows":232,"n_cols":13,"rows_kept":232,"cut":false,"hidden":true,"merged":[[0,0,3,4],[9,1,9,4]]}
["標準報酬月額及び保険料額表"]
[]
[]
[]
[]
[]
[null,null,null,null,null,"川口工業健康保険組合"]
["等級",null,null,null,null,"標  準  報  酬","等級"]
["健",null,null,null,null,null,"健"]
["康","報    酬    月    額",null,null,null,"月  額","康"]
["保",null,null,null,null,null,"保"]
["険",null,null,null,null,"(円)","険"]
[1,0,"～",63000,"円未満",58,1,null,58,"-",1,{"$f":"I13&J13&K13","v":"58-1"},"□健保　月変チェック\n□年金　算定"]
[2,63000,"～",73000,"〃",68,2,null,68,"-",{"$f":"0-1","v":-1},{"$f":"I14&J14&K14","v":"68--1"},"□健保　月変チェック\n□年金　算定"]
[3,73000,"～",83000,"〃",78,3,null,1330,"-",1,{"$f":"I15&J15&K15","v":"1330-1"},"□健保　月変チェック\n□年金　算定"]
[4,83000,"～",93000,"〃",88,4,null,1390,"-",-1,"1390--1","□健保　月変チェック\n□年金　算定"]
[5,93000,"～",101000,"〃",98,5,null,58,"-",2,"58-2","□健保　月変チェック\n□年金　算定"]
[6,101000,"～",107000,"〃",104,6,null,58,"-",3,"58-3","□健保　月変チェック\n□年金　算定"]
[7,107000,"～",114000,"〃",110,7,null,68,"-",2,"68-2","□健保　月変チェック\n□年金　算定"]
[8,114000,"～",122000,"〃",118,8,null,78,"-",-2,"78--2","□健保　月変チェック\n□年金　算定"]
[9,122000,"～",130000,"〃",126,9,null,88,"-",-2,"88--2","□健保　月変チェック\n□年金　算定"]
[10,130000,"～",138000,"円未満",134,10,null,88,"-",-3,"88--3","□健保　月変チェック\n□年金　算定"]
[11,138000,"～",146000,"〃",142,11,null,650,"-",2,"650-2","□健保　月変チェック\n□年金　算定"]
[12,146000,"～",155000,"〃",150,12,null,680,"-",2,"680-2","□健保　月変チェック\n□年金　算定"]
[13,155000,"～",165000,"〃",160,13,null,710,"-",2,"710-2","□健保　月変チェック\n□年金　算定"]
[14,165000,"～",175000,"〃",170,14,null,750,"-",2,"750-2","□健保　月変チェック\n□年金　算定"]
[15,175000,"～",185000,"〃",180,15,null,790,"-",2,"790-2","□健保　月変チェック\n□年金　算定"]
[16,185000,"～",195000,"〃",190,16,null,830,"-",2,"830-2","□健保　月変チェック\n□年金　算定"]
[17,195000,"～",210000,"〃",200,17,null,880,"-",2,"880-2","□健保　月変チェック\n□年金　算定"]
[18,210000,"～",230000,"〃",220,18,null,930,"-",2,"930-2","□健保　月変チェック\n□年金　算定"]
[19,230000,"～",250000,"〃",240,19,null,980,"-",2,"980-2","□健保　月変チェック\n□年金　算定"]
[20,250000,"～",270000,"円未満",260,20,null,1030,"-",2,"1030-2","□健保　月変チェック\n□年金　算定"]
[21,270000,"～",290000,"〃",280,21,null,1090,"-",2,"1090-2","□健保　月変チェック\n□年金　算定"]
[22,290000,"～",310000,"〃",300,22,null,1150,"-",2,"1150-2","□健保　月変チェック\n□年金　算定"]
[23,310000,"～",330000,"〃",320,23,null,1210,"-",2,"1210-2","□健保　月変チェック\n□年金　算定"]
[24,330000,"～",350000,"〃",340,24,null,1270,"-",2,"1270-2","□健保　月変チェック\n□年金　算定"]
[25,350000,"～",370000,"〃",360,25,null,650,"-",3,"650-3","□健保　月変チェック\n□年金　算定"]
[26,370000,"～",395000,"〃",380,26,null,680,"-",3,"680-3","□健保　月変チェック\n□年金　算定"]
[27,395000,"～",425000,"〃",410,27,null,710,"-",3,"710-3","□健保　月変チェック\n□年金　算定"]
[28,425000,"～",455000,"〃",440,28,null,750,"-",3,"750-3","□健保　月変チェック\n□年金　算定"]
[29,455000,"～",485000,"〃",470,29,null,790,"-",3,"790-3","□健保　月変チェック\n□年金　算定"]
[30,485000,"～",515000,"円未満",500,30,null,830,"-",3,"830-3","□健保　月変チェック\n□年金　算定"]
[31,515000,"～",545000,"〃",530,31,null,880,"-",3,"880-3","□健保　月変チェック\n□年金　算定"]
[32,545000,"～",575000,"〃",560,32,null,930,"-",3,"930-3","□健保　月変チェック\n□年金　算定"]
[33,575000,"～",605000,"〃",590,33,null,980,"-",3,"980-3","□健保　月変チェック\n□年金　算定"]
[34,605000,"～",635000,"〃",620,34,null,1030,"-",3,"1030-3","□健保　月変チェック\n□年金　算定"]
[35,635000,"～",665000,"〃",650,35,null,1090,"-",3,"1090-3","□健保　月変チェック\n□年金　算定"]
[36,665000,"～",695000,"〃",680,36,null,1150,"-",3,"1150-3","□健保　月変チェック\n□年金　算定"]
[37,695000,"～",730000,"〃",710,37,null,1210,"-",3,"1210-3","□健保　月変チェック\n□年金　算定"]
[38,730000,"～",770000,"〃",750,38,null,650,"-",4,"650-4","□健保　月変チェック\n□年金　算定"]
[39,770000,"～",810000,"〃",790,39,null,680,"-",4,"680-4","□健保　月変チェック\n□年金　算定"]
[40,810000,"～",855000,"円未満",830,40,null,710,"-",4,"710-4","□健保　月変チェック\n□年金　算定"]
[41,855000,"～",905000,"〃",880,41,null,750,"-",4,"750-4","□健保　月変チェック\n□年金　算定"]
[42,905000,"～",955000,"〃",930,42,null,790,"-",4,"790-4","□健保　月変チェック\n□年金　算定"]
[43,955000,"～",1005000,"〃",980,43,null,830,"-",4,"830-4","□健保　月変チェック\n□年金　算定"]
[44,1005000,"～",1055000,"〃",1030,44,null,880,"-",4,"880-4","□健保　月変チェック\n□年金　算定"]
[45,1055000,"～",1115000,"〃",1090,45,null,930,"-",4,"930-4","□健保　月変チェック\n□年金　算定"]
[46,1115000,"～",1175000,"〃",1150,46,null,980,"-",4,"980-4","□健保　月変チェック\n□年金　算定"]
[47,1175000,"～",1235000,"〃",1210,47,null,1030,"-",4,"1030-4","□健保　月変チェック\n□年金　算定"]
[48,1235000,"～",1295000,"〃",1270,48,null,1090,"-",4,"1090-4","□健保　月変チェック\n□年金　算定"]
[49,1295000,"～",1355000,"〃",1330,49,null,1150,"-",4,"1150-4","□健保　月変チェック\n□年金　算定"]
[50,1355000,"～","以        上",null,1390,50,null,650,"-",5,"650-5","□健保　月変チェック\n□年金　算定"]
[null,null,null,null,null,null,null,null,680,"-",5,"680-5","□健保　月変チェック\n□年金　算定"]
[null,null,null,null,null,null,null,null,710,"-",5,"710-5","□健保　月変チェック\n□年金　算定"]
[null,null,null,null,null,null,null,null,750,"-",5,"750-5","□健保　月変チェック\n□年金　算定"]
[null,null,null,null,null,null,null,null,790,"-",5,"790-5","□健保　月変チェック\n□年金　算定"]
[null,null,null,null,null,null,null,null,830,"-",5,"830-5","□健保　月変チェック\n□年金　算定"]
[null,null,null,null,null,null,null,null,880,"-",5,"880-5","□健保　月変チェック\n□年金　算定"]
[null,null,null,null,null,null,null,null,930,"-",5,"930-5","□健保　月変チェック\n□年金　算定"]
[null,null,null,null,null,null,null,null,980,"-",5,"980-5","□健保　月変チェック\n□年金　算定"]
[null,null,null,null,null,null,null,null,1030,"-",5,"1030-5","□健保　月変チェック\n□年金　算定"]
[null,null,null,null,null,null,null,null,1090,"-",5,"1090-5","□健保　月変チェック\n□年金　算定"]
[null,null,null,null,null,null,null,null,650,"-",6,"650-6","□健保　月変チェック\n□年金　算定"]
[null,null,null,null,null,null,null,null,680,"-",6,"680-6","□健保　月変チェック\n□年金　算定"]
[null,null,null,null,null,null,null,null,710,"-",6,"710-6","□健保　月変チェック\n□年金　算定"]
[null,null,null,null,null,null,null,null,750,"-",6,"750-6","□健保　月変チェック\n□年金　算定"]
[null,null,null,null,null,null,null,null,790,"-",6,"790-6","□健保　月変チェック\n□年金　算定"]
[null,null,null,null,null,null,null,null,830,"-",6,"830-6","□健保　月変チェック\n□年金　算定"]
[null,null,null,null,null,null,null,null,880,"-",6,{"$f":"I79&J79&K79","v":"880-6"},"□健保　月変チェック\n□年金　算定"]
[null,null,null,null,null,null,null,null,930,"-",6,"930-6","□健保　月変チェック\n□年金　算定"]
[null,null,null,null,null,null,null,null,980,"-",6,"980-6","□健保　月変チェック\n□年金　算定"]
[null,null,null,null,null,null,null,null,1030,"-",6,"1030-6","□健保　月変チェック\n□年金　算定"]
[null,null,null,null,null,null,null,null,650,"-",7,"650-7","□健保　月変チェック\n□年金　算定"]
[null,null,null,null,null,null,null,null,680,"-",7,"680-7","□健保　月変チェック\n□年金　算定"]
[null,null,null,null,null,null,null,null,710,"-",7,"710-7","□健保　月変チェック\n□年金　算定"]
[null,null,null,null,null,null,null,null,750,"-",7,"750-7","□健保　月変チェック\n□年金　算定"]
[null,null,null,null,null,null,null,null,790,"-",7,"790-7","□健保　月変チェック\n□年金　算定"]
[null,null,null,null,null,null,null,null,830,"-",7,"830-7","□健保　月変チェック\n□年金　算定"]
[null,null,null,null,null,null,null,null,880,"-",7,"880-7","□健保　月変チェック\n□年金　算定"]
[null,null,null,null,null,null,null,null,930,"-",7,"930-7","□健保　月変チェック\n□年金　算定"]
[null,null,null,null,null,null,null,null,980,"-",7,"980-7","□健保　月変チェック\n□年金　算定"]
[null,null,null,null,null,null,null,null,650,"-",8,"650-8","□健保　月変チェック\n□年金　算定"]
[null,null,null,null,null,null,null,null,680,"-",8,"680-8","□健保　月変チェック\n□年金　算定"]
[null,null,null,null,null,null,null,null,710,"-",8,"710-8","□健保　月変チェック\n□年金　算定"]
[null,null,null,null,null,null,null,null,750,"-",8,"750-8","□健保　月変チェック\n□年金　算定"]
[null,null,null,null,null,null,null,null,790,"-",8,"790-8","□健保　月変チェック\n□年金　算定"]
[null,null,null,null,null,null,null,null,830,"-",8,"830-8","□健保　月変チェック\n□年金　算定"]
[null,null,null,null,null,null,null,null,880,"-",8,"880-8","□健保　月変チェック\n□年金　算定"]
[null,null,null,null,null,null,null,null,930,"-",8,"930-8","□健保　月変チェック\n□年金　算定"]
[null,null,null,null,null,null,null,null,650,"-",9,"650-9","□健保　月変チェック\n□年金　算定"]
[null,null,null,null,null,null,null,null,680,"-",9,"680-9","□健保　月変チェック\n□年金　算定"]
[null,null,null,null,null,null,null,null,710,"-",9,"710-9","□健保　月変チェック\n□年金　算定"]
[null,null,null,null,null,null,null,null,750,"-",9,"750-9","□健保　月変チェック\n□年金　算定"]
[null,null,null,null,null,null,null,null,790,"-",9,"790-9","□健保　月変チェック\n□年金　算定"]
[null,null,null,null,null,null,null,null,830,"-",9,"830-9","□健保　月変チェック\n□年金　算定"]
[null,null,null,null,null,null,null,null,880,"-",9,"880-9","□健保　月変チェック\n□年金　算定"]
[null,null,null,null,null,null,null,null,650,"-",10,"650-10","□健保　月変チェック\n□年金　算定"]
[null,null,null,null,null,null,null,null,680,"-",10,"680-10","□健保　月変チェック\n□年金　算定"]
[null,null,null,null,null,null,null,null,710,"-",10,"710-10","□健保　月変チェック\n□年金　算定"]
[null,null,null,null,null,null,null,null,750,"-",10,"750-10","□健保　月変チェック\n□年金　算定"]
[null,null,null,null,null,null,null,null,790,"-",10,"790-10","□健保　月変チェック\n□年金　算定"]
[null,null,null,null,null,null,null,null,830,"-",10,"830-10","□健保　月変チェック\n□年金　算定"]
[null,null,null,null,null,null,null,null,650,"-",11,"650-11","□健保　月変チェック\n□年金　算定"]
[null,null,null,null,null,null,null,null,680,"-",11,"680-11","□健保　月変チェック\n□年金　算定"]
[null,null,null,null,null,null,null,null,710,"-",11,"710-11","□健保　月変チェック\n□年金　算定"]
[null,null,null,null,null,null,null,null,750,"-",11,"750-11","□健保　月変チェック\n□年金　算定"]
[null,null,null,null,null,null,null,null,790,"-",11,"790-11","□健保　月変チェック\n□年金　算定"]
[null,null,null,null,null,null,null,null,650,"-",12,"650-12","□健保　月変チェック\n□年金　算定"]
[null,null,null,null,null,null,null,null,680,"-",12,"680-12","□健保　月変チェック\n□年金　算定"]
[null,null,null,null,null,null,null,null,710,"-",12,"710-12","□健保　月変チェック\n□年金　算定"]
[null,null,null,null,null,null,null,null,750,"-",12,"750-12","□健保　月変チェック\n□年金　算定"]
[null,null,null,null,null,null,null,null,650,"-",13,"650-13","□健保　月変チェック\n□年金　算定"]
[null,null,null,null,null,null,null,null,680,"-",13,"680-13","□健保　月変チェック\n□年金　算定"]
[null,null,null,null,null,null,null,null,710,"-",13,"710-13","□健保　月変チェック\n□年金　算定"]
[null,null,null,null,null,null,null,null,650,"-",14,"650-14","□健保　月変チェック\n□年金　算定"]
[null,null,null,null,null,null,null,null,680,"-",14,"680-14","□健保　月変チェック\n□年金　算定"]
[null,null,null,null,null,null,null,null,650,"-",15,"650-15","□健保　月変チェック\n□年金　算定"]
[null,null,null,null,null,null,null,null,710,"-",-2,"710--2","□健保　月変チェック\n□年金　算定"]
[null,null,null,null,null,null,null,null,750,"-",-2,"750--2","□健保　月変チェック\n□年金　算定"]
[null,null,null,null,null,null,null,null,790,"-",-2,"790--2","□健保　月変チェック\n□年金　算定"]
[null,null,null,null,null,null,null,null,830,"-",-2,"830--2","□健保　月変チェック\n□年金　算定"]
[null,null,null,null,null,null,null,null,880,"-",-2,"880--2","□健保　月変チェック\n□年金　算定"]
[null,null,null,null,null,null,null,null,930,"-",-2,"930--2","□健保　月変チェック\n□年金　算定"]
[null,null,null,null,null,null,null,null,980,"-",-2,"980--2","□健保　月変チェック\n□年金　算定"]
[null,null,null,null,null,null,null,null,1030,"-",-2,"1030--2","□健保　月変チェック\n□年金　算定"]
[null,null,null,null,null,null,null,null,1090,"-",-2,"1090--2","□健保　月変チェック\n□年金　算定"]
[null,null,null,null,null,null,null,null,1150,"-",-2,"1150--2","□健保　月変チェック\n□年金　算定"]
[null,null,null,null,null,null,null,null,1210,"-",-2,"1210--2","□健保　月変チェック\n□年金　算定"]
[null,null,null,null,null,null,null,null,1270,"-",-2,"1270--2","□健保　月変チェック\n□年金　算定"]
[null,null,null,null,null,null,null,null,1330,"-",-2,"1330--2","□健保　月変チェック\n□年金　算定"]
[null,null,null,null,null,null,null,null,1390,"-",-2,"1390--2","□健保　月変チェック\n□年金　算定"]
[null,null,null,null,null,null,null,null,750,"-",-3,"750--3","□健保　月変チェック\n□年金　算定"]
[null,null,null,null,null,null,null,null,790,"-",-3,{"$f":"I143&J143&K143","v":"790--3"},"□健保　月変チェック\n□年金　算定"]
[null,null,null,null,null,null,null,null,830,"-",-3,"830--3","□健保　月変チェック\n□年金　算定"]
[null,null,null,null,null,null,null,null,880,"-",-3,"880--3","□健保　月変チェック\n□年金　算定"]
[null,null,null,null,null,null,null,null,930,"-",-3,"930--3","□健保　月変チェック\n□年金　算定"]
[null,null,null,null,null,null,null,null,980,"-",-3,"980--3","□健保　月変チェック\n□年金　算定"]
[null,null,null,null,null,null,null,null,1030,"-",-3,"1030--3","□健保　月変チェック\n□年金　算定"]
[null,null,null,null,null,null,null,null,1090,"-",-3,"1090--3","□健保　月変チェック\n□年金　算定"]
[null,null,null,null,null,null,null,null,1150,"-",-3,"1150--3","□健保　月変チェック\n□年金　算定"]
[null,null,null,null,null,null,null,null,1210,"-",-3,"1210--3","□健保　月変チェック\n□年金　算定"]
[null,null,null,null,null,null,null,null,1270,"-",-3,"1270--3","□健保　月変チェック\n□年金　算定"]
[null,null,null,null,null,null,null,null,1330,"-",-3,"1330--3","□健保　月変チェック\n□年金　算定"]
[null,null,null,null,null,null,null,null,1390,"-",-3,"1390--3","□健保　月変チェック\n□年金　算定"]
[null,null,null,null,null,null,null,null,790,"-",-4,"790--4","□健保　月変チェック\n□年金　算定"]
[null,null,null,null,null,null,null,null,830,"-",-4,"830--4","□健保　月変チェック\n□年金　算定"]
[null,null,null,null,null,null,null,null,880,"-",-4,"880--4","□健保　月変チェック\n□年金　算定"]
[null,null,null,null,null,null,null,null,930,"-",-4,"930--4","□健保　月変チェック\n□年金　算定"]
[null,null,null,null,null,null,null,null,980,"-",-4,"980--4","□健保　月変チェック\n□年金　算定"]
[null,null,null,null,null,null,null,null,1030,"-",-4,"1030--4","□健保　月変チェック\n□年金　算定"]
[null,null,null,null,null,null,null,null,1090,"-",-4,"1090--4","□健保　月変チェック\n□年金　算定"]
[null,null,null,null,null,null,null,null,1150,"-",-4,"1150--4","□健保　月変チェック\n□年金　算定"]
[null,null,null,null,null,null,null,null,1210,"-",-4,"1210--4","□健保　月変チェック\n□年金　算定"]
[null,null,null,null,null,null,null,null,1270,"-",-4,"1270--4","□健保　月変チェック\n□年金　算定"]
[null,null,null,null,null,null,null,null,1330,"-",-4,"1330--4","□健保　月変チェック\n□年金　算定"]
[null,null,null,null,null,null,null,null,1390,"-",-4,"1390--4","□健保　月変チェック\n□年金　算定"]
[null,null,null,null,null,null,null,null,830,"-",-5,"830--5","□健保　月変チェック\n□年金　算定"]
[null,null,null,null,null,null,null,null,880,"-",-5,"880--5","□健保　月変チェック\n□年金　算定"]
[null,null,null,null,null,null,null,null,930,"-",-5,"930--5","□健保　月変チェック\n□年金　算定"]
[null,null,null,null,null,null,null,null,980,"-",-5,"980--5","□健保　月変チェック\n□年金　算定"]
[null,null,null,null,null,null,null,null,1030,"-",-5,"1030--5","□健保　月変チェック\n□年金　算定"]
[null,null,null,null,null,null,null,null,1090,"-",-5,"1090--5","□健保　月変チェック\n□年金　算定"]
[null,null,null,null,null,null,null,null,1150,"-",-5,"1150--5","□健保　月変チェック\n□年金　算定"]
[null,null,null,null,null,null,null,null,1210,"-",-5,"1210--5","□健保　月変チェック\n□年金　算定"]
[null,null,null,null,null,null,null,null,1270,"-",-5,"1270--5","□健保　月変チェック\n□年金　算定"]
[null,null,null,null,null,null,null,null,1330,"-",-5,"1330--5","□健保　月変チェック\n□年金　算定"]
[null,null,null,null,null,null,null,null,1390,"-",-5,"1390--5","□健保　月変チェック\n□年金　算定"]
[null,null,null,null,null,null,null,null,880,"-",-6,"880--6","□健保　月変チェック\n□年金　算定"]
[null,null,null,null,null,null,null,null,930,"-",-6,"930--6","□健保　月変チェック\n□年金　算定"]
[null,null,null,null,null,null,null,null,980,"-",-6,"980--6","□健保　月変チェック\n□年金　算定"]
[null,null,null,null,null,null,null,null,1030,"-",-6,"1030--6","□健保　月変チェック\n□年金　算定"]
[null,null,null,null,null,null,null,null,1090,"-",-6,"1090--6","□健保　月変チェック\n□年金　算定"]
[null,null,null,null,null,null,null,null,1150,"-",-6,"1150--6","□健保　月変チェック\n□年金　算定"]
[null,null,null,null,null,null,null,null,1210,"-",-6,"1210--6","□健保　月変チェック\n□年金　算定"]
[null,null,null,null,null,null,null,null,1270,"-",-6,"1270--6","□健保　月変チェック\n□年金　算定"]
[null,null,null,null,null,null,null,null,1330,"-",-6,"1330--6","□健保　月変チェック\n□年金　算定"]
[null,null,null,null,null,null,null,null,1390,"-",-6,"1390--6","□健保　月変チェック\n□年金　算定"]
[null,null,null,null,null,null,null,null,930,"-",-7,"930--7","□健保　月変チェック\n□年金　算定"]
[null,null,null,null,null,null,null,null,980,"-",-7,"980--7","□健保　月変チェック\n□年金　算定"]
[null,null,null,null,null,null,null,null,1030,"-",-7,"1030--7","□健保　月変チェック\n□年金　算定"]
[null,null,null,null,null,null,null,null,1090,"-",-7,"1090--7","□健保　月変チェック\n□年金　算定"]
[null,null,null,null,null,null,null,null,1150,"-",-7,"1150--7","□健保　月変チェック\n□年金　算定"]
[null,null,null,null,null,null,null,null,1210,"-",-7,"1210--7","□健保　月変チェック\n□年金　算定"]
[null,null,null,null,null,null,null,null,1270,"-",-7,"1270--7","□健保　月変チェック\n□年金　算定"]
[null,null,null,null,null,null,null,null,1330,"-",-7,"1330--7","□健保　月変チェック\n□年金　算定"]
[null,null,null,null,null,null,null,null,1390,"-",-7,"1390--7","□健保　月変チェック\n□年金　算定"]
[null,null,null,null,null,null,null,null,980,"-",-8,"980--8","□健保　月変チェック\n□年金　算定"]
[null,null,null,null,null,null,null,null,1030,"-",-8,"1030--8","□健保　月変チェック\n□年金　算定"]
[null,null,null,null,null,null,null,null,1090,"-",-8,"1090--8","□健保　月変チェック\n□年金　算定"]
[null,null,null,null,null,null,null,null,1150,"-",-8,"1150--8","□健保　月変チェック\n□年金　算定"]
[null,null,null,null,null,null,null,null,1210,"-",-8,"1210--8","□健保　月変チェック\n□年金　算定"]
[null,null,null,null,null,null,null,null,1270,"-",-8,"1270--8","□健保　月変チェック\n□年金　算定"]
[null,null,null,null,null,null,null,null,1330,"-",-8,"1330--8","□健保　月変チェック\n□年金　算定"]
[null,null,null,null,null,null,null,null,1390,"-",-8,"1390--8","□健保　月変チェック\n□年金　算定"]
[null,null,null,null,null,null,null,null,1030,"-",-9,"1030--9","□健保　月変チェック\n□年金　算定"]
[null,null,null,null,null,null,null,null,1090,"-",-9,"1090--9","□健保　月変チェック\n□年金　算定"]
[null,null,null,null,null,null,null,null,1150,"-",-9,{"$f":"I207&J207&K207","v":"1150--9"},"□健保　月変チェック\n□年金　算定"]
[null,null,null,null,null,null,null,null,1210,"-",-9,"1210--9","□健保　月変チェック\n□年金　算定"]
[null,null,null,null,null,null,null,null,1270,"-",-9,"1270--9","□健保　月変チェック\n□年金　算定"]
[null,null,null,null,null,null,null,null,1330,"-",-9,"1330--9","□健保　月変チェック\n□年金　算定"]
[null,null,null,null,null,null,null,null,1390,"-",-9,"1390--9","□健保　月変チェック\n□年金　算定"]
[null,null,null,null,null,null,null,null,1090,"-",-10,"1090--10","□健保　月変チェック\n□年金　算定"]
[null,null,null,null,null,null,null,null,1150,"-",-10,"1150--10","□健保　月変チェック\n□年金　算定"]
[null,null,null,null,null,null,null,null,1210,"-",-10,"1210--10","□健保　月変チェック\n□年金　算定"]
[null,null,null,null,null,null,null,null,1270,"-",-10,"1270--10","□健保　月変チェック\n□年金　算定"]
[null,null,null,null,null,null,null,null,1330,"-",-10,"1330--10","□健保　月変チェック\n□年金　算定"]
[null,null,null,null,null,null,null,null,1390,"-",-10,"1390--10","□健保　月変チェック\n□年金　算定"]
[null,null,null,null,null,null,null,null,1150,"-",-11,"1150--11","□健保　月変チェック\n□年金　算定"]
[null,null,null,null,null,null,null,null,1210,"-",-11,"1210--11","□健保　月変チェック\n□年金　算定"]
[null,null,null,null,null,null,null,null,1270,"-",-11,"1270--11","□健保　月変チェック\n□年金　算定"]
[null,null,null,null,null,null,null,null,1330,"-",-11,"1330--11","□健保　月変チェック\n□年金　算定"]
[null,null,null,null,null,null,null,null,1390,"-",-11,"1390--11","□健保　月変チェック\n□年金　算定"]
[null,null,null,null,null,null,null,null,1210,"-",-12,"1210--12","□健保　月変チェック\n□年金　算定"]
[null,null,null,null,null,null,null,null,1270,"-",-12,"1270--12","□健保　月変チェック\n□年金　算定"]
[null,null,null,null,null,null,null,null,1330,"-",-12,"1330--12","□健保　月変チェック\n□年金　算定"]
[null,null,null,null,null,null,null,null,1390,"-",-12,"1390--12","□健保　月変チェック\n□年金　算定"]
[null,null,null,null,null,null,null,null,1270,"-",-13,"1270--13","□健保　月変チェック\n□年金　算定"]
[null,null,null,null,null,null,null,null,1330,"-",-13,"1330--13","□健保　月変チェック\n□年金　算定"]
[null,null,null,null,null,null,null,null,1390,"-",-13,"1390--13","□健保　月変チェック\n□年金　算定"]
[null,null,null,null,null,null,null,null,1330,"-",-14,"1330--14","□健保　月変チェック\n□年金　算定"]
[null,null,null,null,null,null,null,null,1390,"-",-14,"1390--14","□健保　月変チェック\n□年金　算定"]
[null,null,null,null,null,null,null,null,1390,"-",-15,"1390--15","□健保　月変チェック\n□年金　算定"]